"Body","Body Name","InvoiceDate","ClearanceDate","UniqueReference","SupplierName","SupplierRefNo","Amount","DepartmentExpenseArea","ExpenseType","ExpenseCode","ExtendedDe","AccountHolde","MerchantCategory"
"http://statistics.data.gov.uk/id/local-authority/43UM","Woking Borough Council","01/08/2023","01/08/2023","GPC/00024512","AMZNBUSINESS","PROCUREMENT CARD","6.66","INDEPENDENT LIVING SERVICES - HALE END COURT","EVENTS INCOME","N500","EXTERNALLY FUNDED- PAPER PLATES FOR THEMED LUNCH","RIANNA MEME","MISC SPECIALITY RETAIL"
"http://statistics.data.gov.uk/id/local-authority/43UM","Woking Borough Council","01/08/2023","01/08/2023","GPC/00024519","TRAVELODGE GB0000","PROCUREMENT CARD","229.13","HOUSING SERVICES - UKRAINE REFUGEE","EMERGENCY ACCOMODATION","Q525","EMERGENCY ACCOMMODATION","HEATHER WOODWARD","TRAVELODGE"
"http://statistics.data.gov.uk/id/local-authority/43UM","Woking Borough Council","01/08/2023","01/08/2023","GPC/00024521","TRAVELODGE GB0000","PROCUREMENT CARD","265.80","HOUSING SERVICES - HOUSING OPTIONS","BED & BREAKFAST EXPENDITURE","H786","TRAVELODGE EMERGENCY ACCOMMODATION","HEATHER WOODWARD","TRAVELODGE"
"http://statistics.data.gov.uk/id/local-authority/43UM","Woking Borough Council","01/08/2023","01/08/2023","GPC/00024522","TRAVELODGE GB0000","PROCUREMENT CARD","789.05","HOUSING SERVICES - HOUSING OPTIONS","BED & BREAKFAST EXPENDITURE","H786","TRAVELODGE EMERGENCY ACCOMMODATION","HEATHER WOODWARD","TRAVELODGE"
"http://statistics.data.gov.uk/id/local-authority/43UM","Woking Borough Council","01/08/2023","01/08/2023","GPC/00024523","TRAVELODGE GB0000","PROCUREMENT CARD","229.13","HOUSING SERVICES - HOUSING OPTIONS","BED & BREAKFAST EXPENDITURE","H786","TRAVELODGE EMERGENCY ACCOMMODATION","HEATHER WOODWARD","TRAVELODGE"
"http://statistics.data.gov.uk/id/local-authority/43UM","Woking Borough Council","01/08/2023","01/08/2023","GPC/00024524","TRAVIS PERKINS TRADING","PROCUREMENT CARD","7.60","HOUSING SERVICES - HOME IMPS & BEN AGENCY","HANDYPERSON MATERIALS","G201","EXTERNAL FUNDING HANDYPERSON MATERIALS","LEIGH ROBERTS","LUMBER/BUILD SUPPLY STORES"
"http://statistics.data.gov.uk/id/local-authority/43UM","Woking Borough Council","01/08/2023","01/08/2023","GPC/00024524","TRAVIS PERKINS TRADING","PROCUREMENT CARD","13.58","HOUSING SERVICES - HOME IMPS & BEN AGENCY","HANDYPERSON MATERIALS","G201","EXTERNAL FUNDING HANDYPERSON MATERIALS","LEIGH ROBERTS","LUMBER/BUILD SUPPLY STORES"
"http://statistics.data.gov.uk/id/local-authority/43UM","Woking Borough Council","01/08/2023","01/08/2023","GPC/00024525","TRAVELODGE GB0000","PROCUREMENT CARD","229.13","HOUSING SERVICES - HOUSING OPTIONS","BED & BREAKFAST EXPENDITURE","H786","TRAVELODGE EMERGENCY ACCOMMODATION","HEATHER WOODWARD","TRAVELODGE"
"http://statistics.data.gov.uk/id/local-authority/43UM","Woking Borough Council","01/08/2023","01/08/2023","GPC/00024526","TRAVIS PERKINS TRADING","PROCUREMENT CARD","15.20","HOUSING SERVICES - HOME IMPS & BEN AGENCY","HANDYPERSON MATERIALS","G201","EXTERNAL FUNDING HANDYPERSON MATERIALS","ROBERT ELDRIDGE","LUMBER/BUILD SUPPLY STORES"
"http://statistics.data.gov.uk/id/local-authority/43UM","Woking Borough Council","01/08/2023","01/08/2023","GPC/00024527","WH SMITH WOKING","PROCUREMENT CARD","5.83","HOUSING SERVICES - HOME IMPS & BEN AGENCY","HANDYPERSON MATERIALS","G201","EX FUNDING HANDYPERSON MATERIALS","HELEN KEMPSELL","NEWS DEALERS/NEWSSTANDS"
"http://statistics.data.gov.uk/id/local-authority/43UM","Woking Borough Council","01/08/2023","01/08/2023","GPC/00024528","ASDA STORES 4823","PROCUREMENT CARD","16.30","INDEPENDENT LIVING SERVICES - MEALS SERVICE - HALE END COURT","PROVISIONS","G410","GROCERIES FOR MW","FAYE MCCOMBE","GROCERY STORES"
"http://statistics.data.gov.uk/id/local-authority/43UM","Woking Borough Council","01/08/2023","01/08/2023","GPC/00024529","GOOD ENERGY LIMITED","PROCUREMENT CARD","375.00","CORPORATE STRATEGY - HOUSEHOLD SUPPORT FUND","HSF ENERGY/WATER NO CHILDREN","G256","HSF- ELECTRIC","RIANNA MEME","UTILITIES / ELEC/GAS/H20/SANI"
"http://statistics.data.gov.uk/id/local-authority/43UM","Woking Borough Council","01/08/2023","01/08/2023","GPC/00024530","TRAVELODGE GB0000","PROCUREMENT CARD","229.13","HOUSING SERVICES - HOUSING OPTIONS","BED & BREAKFAST EXPENDITURE","H786","TRAVELODGE EMERGENCY ACCOMMODATION","HEATHER WOODWARD","TRAVELODGE"
"http://statistics.data.gov.uk/id/local-authority/43UM","Woking Borough Council","01/08/2023","01/08/2023","GPC/00024531","AMZNMKTPLACE","PROCUREMENT CARD","13.32","INDEPENDENT LIVING SERVICES - MOORCROFT","FIXTURES & FITTINGS - NEW","D800","MAGNETS DOOR COUNTERS","RICHARD BUCKENHAM","MISC SPECIALITY RETAIL"
"http://statistics.data.gov.uk/id/local-authority/43UM","Woking Borough Council","01/08/2023","01/08/2023","GPC/00024532","TRAVELODGE GB0000","PROCUREMENT CARD","229.13","HOUSING SERVICES - HOUSING OPTIONS","BED & BREAKFAST EXPENDITURE","H786","TRAVELODGE EMERGENCY ACCOMMODATION","HEATHER WOODWARD","TRAVELODGE"
"http://statistics.data.gov.uk/id/local-authority/43UM","Woking Borough Council","01/08/2023","01/08/2023","GPC/00024533","TRAVELODGE GB0000","PROCUREMENT CARD","229.13","HOUSING SERVICES - HOUSING OPTIONS","BED & BREAKFAST EXPENDITURE","H786","TRAVELODGE EMERGENCY ACCOMMODATION","HEATHER WOODWARD","TRAVELODGE"
"http://statistics.data.gov.uk/id/local-authority/43UM","Woking Borough Council","02/08/2023","02/08/2023","GPC/00024590","ASDA STORES 4823","PROCUREMENT CARD","3.48","INDEPENDENT LIVING SERVICES - MEALS SERVICE - BROCKHILL","PROVISIONS","G410","GROCERIES FOR KITCHENS","REBECCA STEVENS","GROCERY STORES"
"http://statistics.data.gov.uk/id/local-authority/43UM","Woking Borough Council","02/08/2023","02/08/2023","GPC/00024590","ASDA STORES 4823","PROCUREMENT CARD","3.48","INDEPENDENT LIVING SERVICES - MEALS SERVICE - HALE END COURT","PROVISIONS","G410","GROCERIES FOR KITCHENS","REBECCA STEVENS","GROCERY STORES"
"http://statistics.data.gov.uk/id/local-authority/43UM","Woking Borough Council","02/08/2023","02/08/2023","GPC/00024590","ASDA STORES 4823","PROCUREMENT CARD","5.41","INDEPENDENT LIVING SERVICES - MEALS ON WHEELS","PROVISIONS","G410","GROCERIES FOR KITCHENS","REBECCA STEVENS","GROCERY STORES"
"http://statistics.data.gov.uk/id/local-authority/43UM","Woking Borough Council","02/08/2023","02/08/2023","GPC/00024591","AMZNMKTPLACE","PROCUREMENT CARD","8.32","INDEPENDENT LIVING SERVICES - MEALS ON WHEELS","PROVISIONS","G410","DRESSING POTS FOR MOW","REBECCA STEVENS","MISC SPECIALITY RETAIL"
"http://statistics.data.gov.uk/id/local-authority/43UM","Woking Borough Council","02/08/2023","02/08/2023","GPC/00024592","ASDA GROCERIES ONLINE","PROCUREMENT CARD","-2.45","INDEPENDENT LIVING SERVICES - MEALS ON WHEELS","PROVISIONS","G410","REFUND FOR KITCHEN GROCERIES","REBECCA STEVENS","GROCERY STORES"
"http://statistics.data.gov.uk/id/local-authority/43UM","Woking Borough Council","02/08/2023","02/08/2023","GPC/00024593","SELCO TRADING CTR","PROCUREMENT CARD","8.90","HOUSING SERVICES - HOME IMPS & BEN AGENCY","HANDYPERSON MATERIALS","G201","EXTERNAL FUNDING  HANDYPERSON MATERIALS","LEIGH ROBERTS","LUMBER/BUILD SUPPLY STORES"
"http://statistics.data.gov.uk/id/local-authority/43UM","Woking Borough Council","02/08/2023","02/08/2023","GPC/00024594","WEALDEN REHAB LTD","PROCUREMENT CARD","268.38","LEISURE SERVICES - SHEERWATER LEISURE CENTRE","R&M BUILDINGS - CONTRACTORS","D100","GOLIFT BATTERY SET","MATTHEW WHEELER","GEN CONTRACTORS RESIDENTIAL/COMMERCIAL"
"http://statistics.data.gov.uk/id/local-authority/43UM","Woking Borough Council","02/08/2023","02/08/2023","GPC/00024595","CRITERION CONSULTING E","PROCUREMENT CARD","260.00","HOUSING SERVICES - DISABLED FACILITIES GRANTS","MANDATORY GRANTS","Q712","STRUCTURAL ENGINEERS REPORT","HELEN KEMPSELL","ARCHITECTURAL/ENG/SURVEY"
"http://statistics.data.gov.uk/id/local-authority/43UM","Woking Borough Council","02/08/2023","02/08/2023","GPC/00024596","WWW.BUILDERDEPOT.CO.UK","PROCUREMENT CARD","157.58","NEIGHBOURHOOD SERVICES - PARKS-GENERAL","PLAY EQUIPMENT","G167","REPLACEMENT PLAY AREA DRAIN COVER","MR R D SMITH","LUMBER/BUILD SUPPLY STORES"
"http://statistics.data.gov.uk/id/local-authority/43UM","Woking Borough Council","02/08/2023","02/08/2023","GPC/00024597","ASDA PETROL 4823","PROCUREMENT CARD","34.01","INDEPENDENT LIVING SERVICES - MEALS ON WHEELS","PETROL","F200","MOW PETROL","REBECCA STEVENS","SERVICE STATIONS"
"http://statistics.data.gov.uk/id/local-authority/43UM","Woking Borough Council","02/08/2023","02/08/2023","GPC/00024598","W M MORRISON STORE","PROCUREMENT CARD","67.64","INDEPENDENT LIVING SERVICES - BROCKHILL EXTRA CARE","STEP DOWN","H300","EXTERNALLY FUNDED - STEP DOWN ITEMS","MRS M CHILCOTT","GROCERY STORES"
"http://statistics.data.gov.uk/id/local-authority/43UM","Woking Borough Council","02/08/2023","02/08/2023","GPC/00024599","ASDA GROCERIES ONLINE","PROCUREMENT CARD","2.47","INDEPENDENT LIVING SERVICES - MEALS SERVICE - BROCKHILL","PROVISIONS","G410","GROCERIES FOR KITCHENS","REBECCA STEVENS","GROCERY STORES"
"http://statistics.data.gov.uk/id/local-authority/43UM","Woking Borough Council","02/08/2023","02/08/2023","GPC/00024599","ASDA GROCERIES ONLINE","PROCUREMENT CARD","10.07","INDEPENDENT LIVING SERVICES - MEALS SERVICE -THE VYNE","PROVISIONS","G410","GROCERIES FOR KITCHENS","REBECCA STEVENS","GROCERY STORES"
"http://statistics.data.gov.uk/id/local-authority/43UM","Woking Borough Council","02/08/2023","02/08/2023","GPC/00024599","ASDA GROCERIES ONLINE","PROCUREMENT CARD","35.83","INDEPENDENT LIVING SERVICES - MEALS SERVICE - HALE END COURT","PROVISIONS","G410","GROCERIES FOR KITCHENS","REBECCA STEVENS","GROCERY STORES"
"http://statistics.data.gov.uk/id/local-authority/43UM","Woking Borough Council","02/08/2023","02/08/2023","GPC/00024599","ASDA GROCERIES ONLINE","PROCUREMENT CARD","39.42","INDEPENDENT LIVING SERVICES - MEALS ON WHEELS","PROVISIONS","G410","GROCERIES FOR KITCHENS","REBECCA STEVENS","GROCERY STORES"
"http://statistics.data.gov.uk/id/local-authority/43UM","Woking Borough Council","02/08/2023","02/08/2023","GPC/00024601","TRAVELODGE GB0000","PROCUREMENT CARD","91.66","HOUSING SERVICES - HOUSING OPTIONS","BED & BREAKFAST EXPENDITURE","H786","TRAVELODGE B&B","HEATHER WOODWARD","TRAVELODGE"
"http://statistics.data.gov.uk/id/local-authority/43UM","Woking Borough Council","02/08/2023","02/08/2023","GPC/00024602","TRAVELODGE GB0000","PROCUREMENT CARD","404.12","HOUSING SERVICES - HOUSING OPTIONS","BED & BREAKFAST EXPENDITURE","H786","TRAVELODGE B&B","HEATHER WOODWARD","TRAVELODGE"
"http://statistics.data.gov.uk/id/local-authority/43UM","Woking Borough Council","02/08/2023","02/08/2023","GPC/00024603","ASDA GROCERIES ONLINE","PROCUREMENT CARD","-5.40","INDEPENDENT LIVING SERVICES - MEALS ON WHEELS","PROVISIONS","G410","MOW GROCERY REFUND","REBECCA STEVENS","GROCERY STORES"
"http://statistics.data.gov.uk/id/local-authority/43UM","Woking Borough Council","02/08/2023","02/08/2023","GPC/00024604","TESCO PFS 4046","PROCUREMENT CARD","66.81","HOUSING SERVICES - HOME IMPS & BEN AGENCY","HANDYPERSON MATERIALS","G201","EXTERNAL FUNDING HANDYPERSON MATERIALS","ROBERT ELDRIDGE","SERVICE STATIONS"
"http://statistics.data.gov.uk/id/local-authority/43UM","Woking Borough Council","02/08/2023","02/08/2023","GPC/00024605","CRITERION CONSULTING E","PROCUREMENT CARD","260.00","HOUSING SERVICES - DISABLED FACILITIES GRANTS","MANDATORY GRANTS","Q712","STRUCTURAL ENGINEERS REPORT","HELEN KEMPSELL","ARCHITECTURAL/ENG/SURVEY"
"http://statistics.data.gov.uk/id/local-authority/43UM","Woking Borough Council","05/07/2023","02/08/2023","0000492138/001","STONE ARK LB & CO LTD","40920300","745.35","NEIGHBOURHOOD SERVICES - PARKS-GENERAL","GRD MTCE NON CCT","D240","GRD MTCE NON CCT","NEIGHBOURHOOD SERVICES","BUILDING CONSTRUCTION MATERIALS"
"http://statistics.data.gov.uk/id/local-authority/43UM","Woking Borough Council","11/05/2023","02/08/2023","0000492740/001","C BREWER & SON LTD","40977000","69.13","HOUSING SERVICES - RESPONSIVE REPARS HRA","HRA REPAIRS CONTRACTOR","D112","HRA REPAIRS CONTRACTOR","HOUSING SERVICES","BUILDING CONSTRUCTION MATERIALS"
"http://statistics.data.gov.uk/id/local-authority/43UM","Woking Borough Council","29/06/2023","02/08/2023","0000492881/001","CHURCHILL CONTRACT SERVICES LTD","40917700","1252.35","ASSET MANAGEMENT - CIVIC OFFICES","FACILITIES MANAGEMENT CONTRACT","D909","FACILITIES MANAGEMENT CONTRACT","ASSET MANAGEMENT","BUILDING CONSTRUCTION MATERIALS"
"http://statistics.data.gov.uk/id/local-authority/43UM","Woking Borough Council","01/04/2023","02/08/2023","0000492883/001","CHURCHILL CONTRACT SERVICES LTD","40917700","161866.52","ASSET MANAGEMENT - FACILITIES MANAGEMENT","CONTRACT CLEANING","D900","CONTRACT CLEANING","ASSET MANAGEMENT","BUILDING CONSTRUCTION MATERIALS"
"http://statistics.data.gov.uk/id/local-authority/43UM","Woking Borough Council","28/07/2023","02/08/2023","0065000571/001","MIKE FERGUSON","41045900","5.20","PLANNING SERVICES - PLANNING SERVICES GENERAL EXPE","BOOKS MAPS PLANS","G650","BOOKS MAPS PLANS","PLANNING SERVICES","BUILDING CONSTRUCTION MATERIALS"
"http://statistics.data.gov.uk/id/local-authority/43UM","Woking Borough Council","09/07/2023","02/08/2023","0000492182/001","GARY LEA","40308200","300.00","HOUSING SERVICES - ESTATE CLEANING HRA","	BULK WASTE COLLECTION","D138","	BULK WASTE COLLECTION","HOUSING SERVICES","CLEANING & JANITORIAL"
"http://statistics.data.gov.uk/id/local-authority/43UM","Woking Borough Council","09/07/2023","02/08/2023","0000492183/001","GARY LEA","40308200","385.00","HOUSING SERVICES - ESTATE CLEANING HRA","HRA CLEANING","D119","HRA CLEANING","HOUSING SERVICES","CLEANING & JANITORIAL"
"http://statistics.data.gov.uk/id/local-authority/43UM","Woking Borough Council","11/07/2023","02/08/2023","0000492250/001","WCS","00064200","60.00","INDEPENDENT LIVING SERVICES - MOORCROFT","WINDOW CLEANING","D910","WINDOW CLEANING","INDEPENDENT LIVING SERVICES","CLEANING & JANITORIAL"
"http://statistics.data.gov.uk/id/local-authority/43UM","Woking Borough Council","28/04/2023","02/08/2023","0000492877/001","BOLLSCAR BUILDERS LTD","41003800","3760.00","ASSET MANAGEMENT - GARAGES (XHRA)","SCHED 1A RESPONSIVE REPAIRS","D165","SCHED 1A RESPONSIVE REPAIRS","ASSET MANAGEMENT","CLEANING & JANITORIAL"
"http://statistics.data.gov.uk/id/local-authority/43UM","Woking Borough Council","29/06/2023","02/08/2023","0000491986/001","BIDVEST NOONAN UK LTD","40977700","-7550.62","ASSET MANAGEMENT - CIVIC OFFICES","CONTRACT SECURITY","H602","CONTRACT SECURITY","ASSET MANAGEMENT","CONSULTANCY"
"http://statistics.data.gov.uk/id/local-authority/43UM","Woking Borough Council","05/07/2023","02/08/2023","0000492119/001","WORTH TECHNICAL ACCOUNTING SOLUTIONS LIM","41092500","5000.00","CORPORATE STRATEGY - FIT FOR THE FUTURE TRANSFORMATION","OTHER CONSULTANTS","Q430","OTHER CONSULTANTS","CORPORATE STRATEGY","CONSULTANCY"
"http://statistics.data.gov.uk/id/local-authority/43UM","Woking Borough Council","05/07/2023","02/08/2023","0000492125/001","MARKS CONSULTING PARTNERS LIMITED","40708400","1500.00","ASSET MANAGEMENT - BUILDING SERVICES","TEMPORARY STAFF","A110","TEMPORARY STAFF","ASSET MANAGEMENT","CONSULTANCY"
"http://statistics.data.gov.uk/id/local-authority/43UM","Woking Borough Council","05/07/2023","02/08/2023","0000492126/001","MARKS CONSULTING PARTNERS LIMITED","40708400","2625.00","CORPORATE STRATEGY - FIT FOR THE FUTURE TRANSFORMATION","OTHER CONSULTANTS","Q430","OTHER CONSULTANTS","CORPORATE STRATEGY","CONSULTANCY"
"http://statistics.data.gov.uk/id/local-authority/43UM","Woking Borough Council","05/07/2023","02/08/2023","0000492127/001","MARKS CONSULTING PARTNERS LIMITED","40708400","2800.00","CORPORATE STRATEGY - FIT FOR THE FUTURE TRANSFORMATION","OTHER CONSULTANTS","Q430","OTHER CONSULTANTS","CORPORATE STRATEGY","CONSULTANCY"
"http://statistics.data.gov.uk/id/local-authority/43UM","Woking Borough Council","06/07/2023","02/08/2023","0000492142/001","PRIMARY BUSINESS SUPPORT","40912500","2916.19","CORPORATE STRATEGY - HOUSING AMP 23-24","CONSULTANCY & PROF SERVICES","Q172","CONSULTANCY & PROF SERVICES","CORPORATE STRATEGY","CONSULTANCY"
"http://statistics.data.gov.uk/id/local-authority/43UM","Woking Borough Council","06/07/2023","02/08/2023","0000492143/001","ARK WORKPLACE RISK LTD","40737700","801.00","ASSET MANAGEMENT - FACILITIES MANAGEMENT","FACILITIES MANAGEMENT REPAIRS","D908","FACILITIES MANAGEMENT REPAIRS","ASSET MANAGEMENT","CONSULTANCY"
"http://statistics.data.gov.uk/id/local-authority/43UM","Woking Borough Council","06/07/2023","02/08/2023","0000492161/001","JULIET-ANN BATISTA","40690700","89.60","CORPORATE STRATEGY - WAVS","INTERPRETATION & TRANSLATION","H636","INTERPRETATION & TRANSLATION","CORPORATE STRATEGY","CONSULTANCY"
"http://statistics.data.gov.uk/id/local-authority/43UM","Woking Borough Council","10/07/2023","02/08/2023","0000492199/001","ARK WORKPLACE RISK LTD","40737700","340.00","ASSET MANAGEMENT - BRIDGE (HG WELLS)","R&M BUILDINGS - CONTRACTORS","D100","R&M BUILDINGS - CONTRACTORS","ASSET MANAGEMENT","CONSULTANCY"
"http://statistics.data.gov.uk/id/local-authority/43UM","Woking Borough Council","10/07/2023","02/08/2023","0000492200/001","ARK WORKPLACE RISK LTD","40737700","340.00","ASSET MANAGEMENT - UNIT 15A MON WAY EAST","R&M BUILDINGS - CONTRACTORS","D100","R&M BUILDINGS - CONTRACTORS","ASSET MANAGEMENT","CONSULTANCY"
"http://statistics.data.gov.uk/id/local-authority/43UM","Woking Borough Council","07/07/2023","02/08/2023","0000492204/001","SIU WAN THOMAS","00520200","90.50","CORPORATE STRATEGY - WAVS","INTERPRETATION & TRANSLATION","H636","INTERPRETATION & TRANSLATION","CORPORATE STRATEGY","CONSULTANCY"
"http://statistics.data.gov.uk/id/local-authority/43UM","Woking Borough Council","07/07/2023","02/08/2023","0000492205/001","SIU WAN THOMAS","00520200","35.65","CORPORATE STRATEGY - WAVS","INTERPRETATION & TRANSLATION","H636","INTERPRETATION & TRANSLATION","CORPORATE STRATEGY","CONSULTANCY"
"http://statistics.data.gov.uk/id/local-authority/43UM","Woking Borough Council","07/07/2023","02/08/2023","0000492206/001","LUTHFUL KARIM","40662700","15.00","CORPORATE STRATEGY - WAVS","INTERPRETATION & TRANSLATION","H636","INTERPRETATION & TRANSLATION","CORPORATE STRATEGY","CONSULTANCY"
"http://statistics.data.gov.uk/id/local-authority/43UM","Woking Borough Council","07/07/2023","02/08/2023","0000492207/001","LUTHFUL KARIM","40662700","40.80","CORPORATE STRATEGY - WAVS","INTERPRETATION & TRANSLATION","H636","INTERPRETATION & TRANSLATION","CORPORATE STRATEGY","CONSULTANCY"
"http://statistics.data.gov.uk/id/local-authority/43UM","Woking Borough Council","07/07/2023","02/08/2023","0000492208/001","LUTHFUL KARIM","40662700","30.40","CORPORATE STRATEGY - WAVS","INTERPRETATION & TRANSLATION","H636","INTERPRETATION & TRANSLATION","CORPORATE STRATEGY","CONSULTANCY"
"http://statistics.data.gov.uk/id/local-authority/43UM","Woking Borough Council","07/07/2023","02/08/2023","0000492209/001","LUTHFUL KARIM","40662700","254.20","CORPORATE STRATEGY - WAVS","INTERPRETATION & TRANSLATION","H636","INTERPRETATION & TRANSLATION","CORPORATE STRATEGY","CONSULTANCY"
"http://statistics.data.gov.uk/id/local-authority/43UM","Woking Borough Council","06/07/2023","02/08/2023","0000492226/001","JENNIFER PERRI-DAMIANO","40688000","32.00","CORPORATE STRATEGY - WAVS","INTERPRETATION & TRANSLATION","H636","INTERPRETATION & TRANSLATION","CORPORATE STRATEGY","CONSULTANCY"
"http://statistics.data.gov.uk/id/local-authority/43UM","Woking Borough Council","10/07/2023","02/08/2023","0000492235/001","ARK WORKPLACE RISK LTD","40737700","340.00","ASSET MANAGEMENT - UNIT 15A MON WAY EAST","R&M BUILDINGS - CONTRACTORS","D100","R&M BUILDINGS - CONTRACTORS","ASSET MANAGEMENT","CONSULTANCY"
"http://statistics.data.gov.uk/id/local-authority/43UM","Woking Borough Council","11/07/2023","02/08/2023","0000492253/001","PAVEMENT CREATIVE","41100900","10000.00","CORPORATE STRATEGY - PLACE BRANDING & MARKETING","OTHER CONSULTANTS","Q430","OTHER CONSULTANTS","CORPORATE STRATEGY","CONSULTANCY"
"http://statistics.data.gov.uk/id/local-authority/43UM","Woking Borough Council","11/07/2023","02/08/2023","0000492253/002","PAVEMENT CREATIVE","41100900","20000.00","CORPORATE STRATEGY - PLACE BRANDING & MARKETING","OTHER CONSULTANTS","Q430","OTHER CONSULTANTS","CORPORATE STRATEGY","CONSULTANCY"
"http://statistics.data.gov.uk/id/local-authority/43UM","Woking Borough Council","11/07/2023","02/08/2023","0000492328/001","JULIET-ANN BATISTA","40690700","79.60","CORPORATE STRATEGY - WAVS","INTERPRETATION & TRANSLATION","H636","INTERPRETATION & TRANSLATION","CORPORATE STRATEGY","CONSULTANCY"
"http://statistics.data.gov.uk/id/local-authority/43UM","Woking Borough Council","10/07/2023","02/08/2023","0000492330/001","YANGCHHEN YESHI","40674200","68.40","CORPORATE STRATEGY - WAVS","INTERPRETATION & TRANSLATION","H636","INTERPRETATION & TRANSLATION","CORPORATE STRATEGY","CONSULTANCY"
"http://statistics.data.gov.uk/id/local-authority/43UM","Woking Borough Council","30/06/2023","02/08/2023","0000492408/001","BRUTON KNOWLES","00413900","3162.50","ASSET MANAGEMENT - PROPERTY SERVICES","CONSULTANTS","H670","CONSULTANTS","ASSET MANAGEMENT","CONSULTANCY"
"http://statistics.data.gov.uk/id/local-authority/43UM","Woking Borough Council","26/06/2023","02/08/2023","0000492777/001","BIDVEST NOONAN UK LTD","40977700","4454.61","ASSET MANAGEMENT - WOLSEY PLACE","PEACOCKS R&M HOLDING","D108","PEACOCKS R&M HOLDING","ASSET MANAGEMENT","CONSULTANCY"
"http://statistics.data.gov.uk/id/local-authority/43UM","Woking Borough Council","26/06/2023","02/08/2023","0000492777/002","BIDVEST NOONAN UK LTD","40977700","14188.37","ASSET MANAGEMENT - CIVIC OFFICES","CONTRACT SECURITY","H602","CONTRACT SECURITY","ASSET MANAGEMENT","CONSULTANCY"
"http://statistics.data.gov.uk/id/local-authority/43UM","Woking Borough Council","26/06/2023","02/08/2023","0000492777/003","BIDVEST NOONAN UK LTD","40977700","11063.63","NEIGHBOURHOOD SERVICES - CAR PARKS ADMIN&OPERATIONAL EX","CONTRACT SECURITY","H602","CONTRACT SECURITY","NEIGHBOURHOOD SERVICES","CONSULTANCY"
"http://statistics.data.gov.uk/id/local-authority/43UM","Woking Borough Council","26/06/2023","02/08/2023","0000492777/004","BIDVEST NOONAN UK LTD","40977700","65952.69","ASSET MANAGEMENT - PEACOCKS - GENERAL","PEACOCKS R&M HOLDING","D108","PEACOCKS R&M HOLDING","ASSET MANAGEMENT","CONSULTANCY"
"http://statistics.data.gov.uk/id/local-authority/43UM","Woking Borough Council","26/06/2023","02/08/2023","0000492777/005","BIDVEST NOONAN UK LTD","40977700","10345.62","ASSET MANAGEMENT - VICTORIA PLACE-HENRY PLAZA","PEACOCKS R&M HOLDING","D108","PEACOCKS R&M HOLDING","ASSET MANAGEMENT","CONSULTANCY"
"http://statistics.data.gov.uk/id/local-authority/43UM","Woking Borough Council","26/06/2023","02/08/2023","0000492777/006","BIDVEST NOONAN UK LTD","40977700","4625.01","ASSET MANAGEMENT - WOLSEY PLACE","PEACOCKS R&M HOLDING","D108","PEACOCKS R&M HOLDING","ASSET MANAGEMENT","CONSULTANCY"
"http://statistics.data.gov.uk/id/local-authority/43UM","Woking Borough Council","26/06/2023","02/08/2023","0000492781/001","THE RENTAL INCOME CONSULTANCY LTD","41076400","282.80","HOUSING SERVICES - HOUSING LANDLORD SERVICES","RENT COLLECTION","Y828","RENT COLLECTION","HOUSING SERVICES","CONSULTANCY"
"http://statistics.data.gov.uk/id/local-authority/43UM","Woking Borough Council","22/05/2023","02/08/2023","0000492891/001","NASH BOND LTD","40238200","5000.00","ASSET MANAGEMENT - 1/3 MERCIA WK & 51 COMM WY CAP","MAIN CONTRACTOR","Q200","MAIN CONTRACTOR","ASSET MANAGEMENT","CONSULTANCY"
"http://statistics.data.gov.uk/id/local-authority/43UM","Woking Borough Council","31/07/2023","02/08/2023","0000492945/001","CIVICA ELECTION SERVICES LIMITED","40886600","112.20","CORPORATE STRATEGY - REGISTER OF ELECTORS","POSTAGE - STANDARD TARIFF","G700","POSTAGE - STANDARD TARIFF","CORPORATE STRATEGY","CONSULTANCY"
"http://statistics.data.gov.uk/id/local-authority/43UM","Woking Borough Council","31/07/2023","02/08/2023","0000492945/002","CIVICA ELECTION SERVICES LIMITED","40886600","24.86","CORPORATE STRATEGY - REGISTER OF ELECTORS","STATIONERY","G620","STATIONERY","CORPORATE STRATEGY","CONSULTANCY"
"http://statistics.data.gov.uk/id/local-authority/43UM","Woking Borough Council","28/03/2023","02/08/2023","0000491696/001","SKANSKA RASHLEIGH WEATHERFOIL LTD","40413600","114825.39","ASSET MANAGEMENT - CIVIC OFFICES","FACILITIES MANAGEMENT CONTRACT","D909","FACILITIES MANAGEMENT CONTRACT","ASSET MANAGEMENT","FACILITIES & MANAGEMENT SERVICES"
"http://statistics.data.gov.uk/id/local-authority/43UM","Woking Borough Council","07/06/2023","02/08/2023","0000491700/001","SKANSKA RASHLEIGH WEATHERFOIL LTD","40413600","-114825.39","ASSET MANAGEMENT - CIVIC OFFICES","FACILITIES MANAGEMENT CONTRACT","D909","FACILITIES MANAGEMENT CONTRACT","ASSET MANAGEMENT","FACILITIES & MANAGEMENT SERVICES"
"http://statistics.data.gov.uk/id/local-authority/43UM","Woking Borough Council","10/07/2023","02/08/2023","0000492170/001","FRONTLINE PROTECTION SGD LTD","40542500","839.99","HOUSING SERVICES - 121 CHERTSEY ROAD","CARETAKING/SECURITY","D995","CARETAKING/SECURITY","HOUSING SERVICES","FACILITIES & MANAGEMENT SERVICES"
"http://statistics.data.gov.uk/id/local-authority/43UM","Woking Borough Council","10/07/2023","02/08/2023","0000492232/001","TONY TEAM LTD","40749900","210.00","ASSET MANAGEMENT - FACILITIES MANAGEMENT","FACILITIES MANAGEMENT REPAIRS","D908","FACILITIES MANAGEMENT REPAIRS","ASSET MANAGEMENT","FACILITIES & MANAGEMENT SERVICES"
"http://statistics.data.gov.uk/id/local-authority/43UM","Woking Borough Council","07/07/2023","02/08/2023","0000492325/001","ASBESTOS BUILDING CONSULTANCY LTD","41088200","7975.00","ASSET MANAGEMENT - 31 WOLSEY WALK REMOVAL","MAIN CONTRACTOR","Q200","MAIN CONTRACTOR","ASSET MANAGEMENT","FACILITIES & MANAGEMENT SERVICES"
"http://statistics.data.gov.uk/id/local-authority/43UM","Woking Borough Council","07/07/2023","02/08/2023","0000492327/001","ASBESTOS BUILDING CONSULTANCY LTD","41088200","480.00","ASSET MANAGEMENT - 31 WOLSEY WALK REMOVAL","MAIN CONTRACTOR","Q200","MAIN CONTRACTOR","ASSET MANAGEMENT","FACILITIES & MANAGEMENT SERVICES"
"http://statistics.data.gov.uk/id/local-authority/43UM","Woking Borough Council","06/07/2023","02/08/2023","0000492436/001","RAINER SECURITY PRODUCTS LTD","00030400","70.00","NEIGHBOURHOOD SERVICES - PARKS-GENERAL","GRD MTCE NON CCT","D240","GRD MTCE NON CCT","NEIGHBOURHOOD SERVICES","FACILITIES & MANAGEMENT SERVICES"
"http://statistics.data.gov.uk/id/local-authority/43UM","Woking Borough Council","06/07/2023","02/08/2023","0000492436/002","RAINER SECURITY PRODUCTS LTD","00030400","19.90","NEIGHBOURHOOD SERVICES - PARKS-GENERAL","GRD MTCE NON CCT","D240","GRD MTCE NON CCT","NEIGHBOURHOOD SERVICES","FACILITIES & MANAGEMENT SERVICES"
"http://statistics.data.gov.uk/id/local-authority/43UM","Woking Borough Council","06/07/2023","02/08/2023","0000492436/003","RAINER SECURITY PRODUCTS LTD","00030400","26.50","NEIGHBOURHOOD SERVICES - PARKS-GENERAL","GRD MTCE NON CCT","D240","GRD MTCE NON CCT","NEIGHBOURHOOD SERVICES","FACILITIES & MANAGEMENT SERVICES"
"http://statistics.data.gov.uk/id/local-authority/43UM","Woking Borough Council","06/07/2023","02/08/2023","0000492436/004","RAINER SECURITY PRODUCTS LTD","00030400","8.50","NEIGHBOURHOOD SERVICES - PARKS-GENERAL","GRD MTCE NON CCT","D240","GRD MTCE NON CCT","NEIGHBOURHOOD SERVICES","FACILITIES & MANAGEMENT SERVICES"
"http://statistics.data.gov.uk/id/local-authority/43UM","Woking Borough Council","07/06/2023","02/08/2023","0000492714/001","SKANSKA RASHLEIGH WEATHERFOIL LTD","40413600","108773.49","ASSET MANAGEMENT - FACILITIES MANAGEMENT","FACILITIES MANAGEMENT CONTRACT","D909","FACILITIES MANAGEMENT CONTRACT","ASSET MANAGEMENT","FACILITIES & MANAGEMENT SERVICES"
"http://statistics.data.gov.uk/id/local-authority/43UM","Woking Borough Council","30/06/2023","02/08/2023","0000492715/001","SKANSKA RASHLEIGH WEATHERFOIL LTD","40413600","108773.49","ASSET MANAGEMENT - FACILITIES MANAGEMENT","FACILITIES MANAGEMENT CONTRACT","D909","FACILITIES MANAGEMENT CONTRACT","ASSET MANAGEMENT","FACILITIES & MANAGEMENT SERVICES"
"http://statistics.data.gov.uk/id/local-authority/43UM","Woking Borough Council","07/06/2023","02/08/2023","0000492716/001","SKANSKA RASHLEIGH WEATHERFOIL LTD","40413600","108773.49","ASSET MANAGEMENT - FACILITIES MANAGEMENT","FACILITIES MANAGEMENT CONTRACT","D909","FACILITIES MANAGEMENT CONTRACT","ASSET MANAGEMENT","FACILITIES & MANAGEMENT SERVICES"
"http://statistics.data.gov.uk/id/local-authority/43UM","Woking Borough Council","15/05/2023","02/08/2023","0000492755/001","SKANSKA RASHLEIGH WEATHERFOIL LTD","40413600","108773.49","ASSET MANAGEMENT - FACILITIES MANAGEMENT","FACILITIES MANAGEMENT CONTRACT","D909","FACILITIES MANAGEMENT CONTRACT","ASSET MANAGEMENT","FACILITIES & MANAGEMENT SERVICES"
"http://statistics.data.gov.uk/id/local-authority/43UM","Woking Borough Council","03/05/2023","02/08/2023","0000491304/001","ISTA ENERGY SOLUTIONS LTD","41016400","1140.00","CORPORATE STRATEGY - HOUSING AMP 23-24","HEAT COST ALLOCATORS","Q132","HEAT COST ALLOCATORS","CORPORATE STRATEGY","FINANCIAL SERVICES"
"http://statistics.data.gov.uk/id/local-authority/43UM","Woking Borough Council","03/05/2023","02/08/2023","0000491305/001","ISTA ENERGY SOLUTIONS LTD","41016400","1260.00","CORPORATE STRATEGY - HOUSING AMP 23-24","HEAT COST ALLOCATORS","Q132","HEAT COST ALLOCATORS","CORPORATE STRATEGY","FINANCIAL SERVICES"
"http://statistics.data.gov.uk/id/local-authority/43UM","Woking Borough Council","03/05/2023","02/08/2023","0000491306/001","ISTA ENERGY SOLUTIONS LTD","41016400","1100.00","CORPORATE STRATEGY - HOUSING AMP 23-24","HEAT COST ALLOCATORS","Q132","HEAT COST ALLOCATORS","CORPORATE STRATEGY","FINANCIAL SERVICES"
"http://statistics.data.gov.uk/id/local-authority/43UM","Woking Borough Council","03/05/2023","02/08/2023","0000491307/001","ISTA ENERGY SOLUTIONS LTD","41016400","1150.00","CORPORATE STRATEGY - HOUSING AMP 23-24","HEAT COST ALLOCATORS","Q132","HEAT COST ALLOCATORS","CORPORATE STRATEGY","FINANCIAL SERVICES"
"http://statistics.data.gov.uk/id/local-authority/43UM","Woking Borough Council","03/05/2023","02/08/2023","0000491308/001","ISTA ENERGY SOLUTIONS LTD","41016400","470.00","CORPORATE STRATEGY - HOUSING AMP 23-24","HEAT COST ALLOCATORS","Q132","HEAT COST ALLOCATORS","CORPORATE STRATEGY","FINANCIAL SERVICES"
"http://statistics.data.gov.uk/id/local-authority/43UM","Woking Borough Council","03/05/2023","02/08/2023","0000491309/001","ISTA ENERGY SOLUTIONS LTD","41016400","470.00","CORPORATE STRATEGY - HOUSING AMP 23-24","HEAT COST ALLOCATORS","Q132","HEAT COST ALLOCATORS","CORPORATE STRATEGY","FINANCIAL SERVICES"
"http://statistics.data.gov.uk/id/local-authority/43UM","Woking Borough Council","03/05/2023","02/08/2023","0000491310/001","ISTA ENERGY SOLUTIONS LTD","41016400","310.00","CORPORATE STRATEGY - HOUSING AMP 23-24","HEAT COST ALLOCATORS","Q132","HEAT COST ALLOCATORS","CORPORATE STRATEGY","FINANCIAL SERVICES"
"http://statistics.data.gov.uk/id/local-authority/43UM","Woking Borough Council","03/05/2023","02/08/2023","0000491311/001","ISTA ENERGY SOLUTIONS LTD","41016400","550.00","CORPORATE STRATEGY - HOUSING AMP 23-24","HEAT COST ALLOCATORS","Q132","HEAT COST ALLOCATORS","CORPORATE STRATEGY","FINANCIAL SERVICES"
"http://statistics.data.gov.uk/id/local-authority/43UM","Woking Borough Council","03/05/2023","02/08/2023","0000491312/001","ISTA ENERGY SOLUTIONS LTD","41016400","350.00","CORPORATE STRATEGY - HOUSING AMP 23-24","HEAT COST ALLOCATORS","Q132","HEAT COST ALLOCATORS","CORPORATE STRATEGY","FINANCIAL SERVICES"
"http://statistics.data.gov.uk/id/local-authority/43UM","Woking Borough Council","03/05/2023","02/08/2023","0000491313/001","ISTA ENERGY SOLUTIONS LTD","41016400","860.00","CORPORATE STRATEGY - HOUSING AMP 23-24","HEAT COST ALLOCATORS","Q132","HEAT COST ALLOCATORS","CORPORATE STRATEGY","FINANCIAL SERVICES"
"http://statistics.data.gov.uk/id/local-authority/43UM","Woking Borough Council","03/05/2023","02/08/2023","0000491314/001","ISTA ENERGY SOLUTIONS LTD","41016400","550.00","CORPORATE STRATEGY - HOUSING AMP 23-24","HEAT COST ALLOCATORS","Q132","HEAT COST ALLOCATORS","CORPORATE STRATEGY","FINANCIAL SERVICES"
"http://statistics.data.gov.uk/id/local-authority/43UM","Woking Borough Council","10/05/2023","02/08/2023","0000491315/001","ISTA ENERGY SOLUTIONS LTD","41016400","470.00","CORPORATE STRATEGY - HOUSING AMP 23-24","HEAT COST ALLOCATORS","Q132","HEAT COST ALLOCATORS","CORPORATE STRATEGY","FINANCIAL SERVICES"
"http://statistics.data.gov.uk/id/local-authority/43UM","Woking Borough Council","10/05/2023","02/08/2023","0000491316/001","ISTA ENERGY SOLUTIONS LTD","41016400","470.00","CORPORATE STRATEGY - HOUSING AMP 23-24","HEAT COST ALLOCATORS","Q132","HEAT COST ALLOCATORS","CORPORATE STRATEGY","FINANCIAL SERVICES"
"http://statistics.data.gov.uk/id/local-authority/43UM","Woking Borough Council","10/05/2023","02/08/2023","0000491317/001","ISTA ENERGY SOLUTIONS LTD","41016400","780.00","CORPORATE STRATEGY - HOUSING AMP 23-24","HEAT COST ALLOCATORS","Q132","HEAT COST ALLOCATORS","CORPORATE STRATEGY","FINANCIAL SERVICES"
"http://statistics.data.gov.uk/id/local-authority/43UM","Woking Borough Council","10/05/2023","02/08/2023","0000491318/001","ISTA ENERGY SOLUTIONS LTD","41016400","310.00","CORPORATE STRATEGY - HOUSING AMP 23-24","HEAT COST ALLOCATORS","Q132","HEAT COST ALLOCATORS","CORPORATE STRATEGY","FINANCIAL SERVICES"
"http://statistics.data.gov.uk/id/local-authority/43UM","Woking Borough Council","10/05/2023","02/08/2023","0000491319/001","ISTA ENERGY SOLUTIONS LTD","41016400","870.00","CORPORATE STRATEGY - HOUSING AMP 23-24","HEAT COST ALLOCATORS","Q132","HEAT COST ALLOCATORS","CORPORATE STRATEGY","FINANCIAL SERVICES"
"http://statistics.data.gov.uk/id/local-authority/43UM","Woking Borough Council","10/05/2023","02/08/2023","0000491320/001","ISTA ENERGY SOLUTIONS LTD","41016400","270.00","CORPORATE STRATEGY - HOUSING AMP 23-24","HEAT COST ALLOCATORS","Q132","HEAT COST ALLOCATORS","CORPORATE STRATEGY","FINANCIAL SERVICES"
"http://statistics.data.gov.uk/id/local-authority/43UM","Woking Borough Council","16/05/2023","02/08/2023","0000491321/001","ISTA ENERGY SOLUTIONS LTD","41016400","230.00","CORPORATE STRATEGY - HOUSING AMP 23-24","HEAT COST ALLOCATORS","Q132","HEAT COST ALLOCATORS","CORPORATE STRATEGY","FINANCIAL SERVICES"
"http://statistics.data.gov.uk/id/local-authority/43UM","Woking Borough Council","16/05/2023","02/08/2023","0000491322/001","ISTA ENERGY SOLUTIONS LTD","41016400","550.00","CORPORATE STRATEGY - HOUSING AMP 23-24","HEAT COST ALLOCATORS","Q132","HEAT COST ALLOCATORS","CORPORATE STRATEGY","FINANCIAL SERVICES"
"http://statistics.data.gov.uk/id/local-authority/43UM","Woking Borough Council","17/05/2023","02/08/2023","0000491323/001","ISTA ENERGY SOLUTIONS LTD","41016400","440.00","CORPORATE STRATEGY - HOUSING AMP 23-24","HEAT COST ALLOCATORS","Q132","HEAT COST ALLOCATORS","CORPORATE STRATEGY","FINANCIAL SERVICES"
"http://statistics.data.gov.uk/id/local-authority/43UM","Woking Borough Council","22/05/2023","02/08/2023","0000491324/001","ISTA ENERGY SOLUTIONS LTD","41016400","310.00","CORPORATE STRATEGY - HOUSING AMP 23-24","HEAT COST ALLOCATORS","Q132","HEAT COST ALLOCATORS","CORPORATE STRATEGY","FINANCIAL SERVICES"
"http://statistics.data.gov.uk/id/local-authority/43UM","Woking Borough Council","02/07/2023","02/08/2023","0000492188/001","BRISTOW & SUTOR","40257600","19.90","REVENUES AND BENEFITS - RENT ALLOWANCES","DEBT COLLECTION AGENCY COMMISS","H910","DEBT COLLECTION AGENCY COMMISS","REVENUES AND BENEFITS","FINANCIAL SERVICES"
"http://statistics.data.gov.uk/id/local-authority/43UM","Woking Borough Council","07/07/2023","02/08/2023","0000492210/001","PONNAIAH PATHMANATHAN","40739200","36.80","CORPORATE STRATEGY - WAVS","INTERPRETATION & TRANSLATION","H636","INTERPRETATION & TRANSLATION","CORPORATE STRATEGY","FINANCIAL SERVICES"
"http://statistics.data.gov.uk/id/local-authority/43UM","Woking Borough Council","15/07/2023","02/08/2023","0000492682/001","BOOM! CREDIT UNION","40344200","1216.00","CORPORATE STRATEGY - SURREY SAVE CREDIT UNION","PAYMENTS OVER","S340","PAYMENTS OVER","CORPORATE STRATEGY","FINANCIAL SERVICES"
"http://statistics.data.gov.uk/id/local-authority/43UM","Woking Borough Council","05/07/2023","02/08/2023","0065000549/001","ABIGAIL LAFLIN","41076700","6.92","INDEPENDENT LIVING SERVICES - FAMILY SUPPORT PROGRAMME","STUDENT EXPENSES","H482","STUDENT EXPENSES","INDEPENDENT LIVING SERVICES","FINANCIAL SERVICES"
"http://statistics.data.gov.uk/id/local-authority/43UM","Woking Borough Council","25/07/2023","02/08/2023","0065000565/001","LUCIE RICE","40862400","15.30","INDEPENDENT LIVING SERVICES - FAMILY CENTRES","PARKING COSTS","F510","PARKING COSTS","INDEPENDENT LIVING SERVICES","FINANCIAL SERVICES"
"http://statistics.data.gov.uk/id/local-authority/43UM","Woking Borough Council","27/07/2023","02/08/2023","0065000568/001","LUCY PARR","40996100","11.96","HOUSING SERVICES - HOME IMPS & BEN AGENCY","PARKING COSTS","F510","PARKING COSTS","HOUSING SERVICES","FINANCIAL SERVICES"
"http://statistics.data.gov.uk/id/local-authority/43UM","Woking Borough Council","08/07/2023","02/08/2023","0000492402/001","BUILDIMAGE LTD","40630900","1133.16","CORPORATE STRATEGY - HOUSING AMP 23-24","DISREPAIR CLAIM WORKS","Q173","DISREPAIR CLAIM WORKS","CORPORATE STRATEGY","FURNITURE & SOFT FURNISHINGS"
"http://statistics.data.gov.uk/id/local-authority/43UM","Woking Borough Council","08/07/2023","02/08/2023","0000492403/001","BUILDIMAGE LTD","40630900","843.90","CORPORATE STRATEGY - HOUSING AMP 23-24","DISREPAIR CLAIM WORKS","Q173","DISREPAIR CLAIM WORKS","CORPORATE STRATEGY","FURNITURE & SOFT FURNISHINGS"
"http://statistics.data.gov.uk/id/local-authority/43UM","Woking Borough Council","08/07/2023","02/08/2023","0000492404/001","BUILDIMAGE LTD","40630900","5864.89","HOUSING SERVICES - RESPONSIVE REPARS HRA","HRA REPAIRS CONTRACTOR","D112","HRA REPAIRS CONTRACTOR","HOUSING SERVICES","FURNITURE & SOFT FURNISHINGS"
"http://statistics.data.gov.uk/id/local-authority/43UM","Woking Borough Council","08/07/2023","02/08/2023","0000492405/001","BUILDIMAGE LTD","40630900","4697.47","HOUSING SERVICES - RESPONSIVE REPARS HRA","HRA REPAIRS CONTRACTOR","D112","HRA REPAIRS CONTRACTOR","HOUSING SERVICES","FURNITURE & SOFT FURNISHINGS"
"http://statistics.data.gov.uk/id/local-authority/43UM","Woking Borough Council","08/07/2023","02/08/2023","0000492406/001","BUILDIMAGE LTD","40630900","3438.35","HOUSING SERVICES - RESPONSIVE REPARS HRA","HRA REPAIRS CONTRACTOR","D112","HRA REPAIRS CONTRACTOR","HOUSING SERVICES","FURNITURE & SOFT FURNISHINGS"
"http://statistics.data.gov.uk/id/local-authority/43UM","Woking Borough Council","08/07/2023","02/08/2023","0000492407/001","BUILDIMAGE LTD","40630900","4078.34","HOUSING SERVICES - RESPONSIVE REPARS HRA","HRA REPAIRS CONTRACTOR","D112","HRA REPAIRS CONTRACTOR","HOUSING SERVICES","FURNITURE & SOFT FURNISHINGS"
"http://statistics.data.gov.uk/id/local-authority/43UM","Woking Borough Council","28/05/2023","02/08/2023","0000492759/001","CRONER-I LIMITED","40735000","865.44","CORPORATE MANAGEMENT GROUP - STAFF TRAINING/GENERAL COSTS","HEALTH CARE","A780","HEALTH CARE","CORPORATE MANAGEMENT GROUP","HEALTH & SAFETY"
"http://statistics.data.gov.uk/id/local-authority/43UM","Woking Borough Council","09/07/2023","02/08/2023","0000492180/001","ATG ACCESS LTD","40584300","211.71","NEIGHBOURHOOD SERVICES - TOWN CTR MANAGEMENT","R&M BUILDINGS - CONTRACTORS","D100","R&M BUILDINGS - CONTRACTORS","NEIGHBOURHOOD SERVICES","HIGHWAY EQUIPMENT & MATERIALS"
"http://statistics.data.gov.uk/id/local-authority/43UM","Woking Borough Council","10/07/2023","02/08/2023","0000492237/001","PROJECT 114 LTD","40370300","3045.00","HOUSING SERVICES - HOUSING OPTIONS","BED & BREAKFAST EXPENDITURE","H786","BED & BREAKFAST EXPENDITURE","HOUSING SERVICES","HOUSING MANAGEMENT"
"http://statistics.data.gov.uk/id/local-authority/43UM","Woking Borough Council","11/07/2023","02/08/2023","0000492242/001","ATKINSONS GUEST HOUSE","40250600","875.00","HOUSING SERVICES - HOUSING OPTIONS","BED & BREAKFAST EXPENDITURE","H786","BED & BREAKFAST EXPENDITURE","HOUSING SERVICES","HOUSING MANAGEMENT"
"http://statistics.data.gov.uk/id/local-authority/43UM","Woking Borough Council","11/07/2023","02/08/2023","0000492243/001","ATKINSONS GUEST HOUSE","40250600","685.00","HOUSING SERVICES - HOUSING OPTIONS","BED & BREAKFAST EXPENDITURE","H786","BED & BREAKFAST EXPENDITURE","HOUSING SERVICES","HOUSING MANAGEMENT"
"http://statistics.data.gov.uk/id/local-authority/43UM","Woking Borough Council","11/07/2023","02/08/2023","0000492244/001","ATKINSONS GUEST HOUSE","40250600","685.00","HOUSING SERVICES - HOUSING OPTIONS","BED & BREAKFAST EXPENDITURE","H786","BED & BREAKFAST EXPENDITURE","HOUSING SERVICES","HOUSING MANAGEMENT"
"http://statistics.data.gov.uk/id/local-authority/43UM","Woking Borough Council","11/07/2023","02/08/2023","0000492245/001","ATKINSONS GUEST HOUSE","40250600","625.00","HOUSING SERVICES - HOUSING OPTIONS","BED & BREAKFAST EXPENDITURE","H786","BED & BREAKFAST EXPENDITURE","HOUSING SERVICES","HOUSING MANAGEMENT"
"http://statistics.data.gov.uk/id/local-authority/43UM","Woking Borough Council","11/07/2023","02/08/2023","0000492246/001","ATKINSONS GUEST HOUSE","40250600","685.00","HOUSING SERVICES - HOUSING OPTIONS","BED & BREAKFAST EXPENDITURE","H786","BED & BREAKFAST EXPENDITURE","HOUSING SERVICES","HOUSING MANAGEMENT"
"http://statistics.data.gov.uk/id/local-authority/43UM","Woking Borough Council","11/07/2023","02/08/2023","0000492247/001","ATKINSONS GUEST HOUSE","40250600","685.00","HOUSING SERVICES - HOUSING OPTIONS","BED & BREAKFAST EXPENDITURE","H786","BED & BREAKFAST EXPENDITURE","HOUSING SERVICES","HOUSING MANAGEMENT"
"http://statistics.data.gov.uk/id/local-authority/43UM","Woking Borough Council","11/07/2023","02/08/2023","0000492315/001","HEADLINE DESIGN & PRINT","00016900","487.50","CORPORATE STRATEGY - PUBLIC RELATIONS","PROMOTIONS & GRANTS","H467","PROMOTIONS & GRANTS","CORPORATE STRATEGY","HOUSING MANAGEMENT"
"http://statistics.data.gov.uk/id/local-authority/43UM","Woking Borough Council","11/07/2023","02/08/2023","0000492316/001","HEADLINE DESIGN & PRINT","00016900","262.50","NEIGHBOURHOOD SERVICES - ARTS DEVELOPMENT","EXTERNAL PRINTING - PUBLICITY","G605","EXTERNAL PRINTING - PUBLICITY","NEIGHBOURHOOD SERVICES","HOUSING MANAGEMENT"
"http://statistics.data.gov.uk/id/local-authority/43UM","Woking Borough Council","11/07/2023","02/08/2023","0000492316/002","HEADLINE DESIGN & PRINT","00016900","51.80","NEIGHBOURHOOD SERVICES - ARTS DEVELOPMENT","EXTERNAL PRINTING - PUBLICITY","G605","EXTERNAL PRINTING - PUBLICITY","NEIGHBOURHOOD SERVICES","HOUSING MANAGEMENT"
"http://statistics.data.gov.uk/id/local-authority/43UM","Woking Borough Council","05/07/2023","02/08/2023","0000492362/001","PCPS LONDON LTD","41077600","4775.00","HOUSING SERVICES - RESPONSIVE REPARS HRA","HRA REPAIRS CONTRACTOR","D112","HRA REPAIRS CONTRACTOR","HOUSING SERVICES","HOUSING MANAGEMENT"
"http://statistics.data.gov.uk/id/local-authority/43UM","Woking Borough Council","11/07/2023","02/08/2023","0000492479/001","PORTERS","00021300","56.00","HOUSING SERVICES - TENANTS REMOVAL EXPENS","REMOVAL EXPENSES","H775","REMOVAL EXPENSES","HOUSING SERVICES","HOUSING MANAGEMENT"
"http://statistics.data.gov.uk/id/local-authority/43UM","Woking Borough Council","27/06/2023","02/08/2023","0000492645/001","BENJAMIN VASSELL & LEVI VASSELL","40715900","2468.16","HOUSING SERVICES - PRIVATE SECTOR LEASING SCHEME","LEASE PAYMENTS TO LANDLORD","H787","LEASE PAYMENTS TO LANDLORD","HOUSING SERVICES","HOUSING MANAGEMENT"
"http://statistics.data.gov.uk/id/local-authority/43UM","Woking Borough Council","31/05/2023","02/08/2023","0000492779/001","ENVIROSURV LTD","41034700","75.25","CORPORATE STRATEGY - HOUSING AMP 23-24","COMPLIANCE REMEDIALS 2022-23","Q156","COMPLIANCE REMEDIALS 2022-23","CORPORATE STRATEGY","HOUSING MANAGEMENT"
"http://statistics.data.gov.uk/id/local-authority/43UM","Woking Borough Council","16/05/2023","02/08/2023","0000490738/001","BLC GROUP LTD","41081900","5403.75","CORPORATE STRATEGY - FIT FOR THE FUTURE TRANSFORMATION","OTHER CONSULTANTS","Q430","OTHER CONSULTANTS","CORPORATE STRATEGY","HUMAN RESOURCES"
"http://statistics.data.gov.uk/id/local-authority/43UM","Woking Borough Council","22/05/2023","02/08/2023","0000491040/001","BLC GROUP LTD","41081900","3475.00","CORPORATE STRATEGY - FIT FOR THE FUTURE TRANSFORMATION","OTHER CONSULTANTS","Q430","OTHER CONSULTANTS","CORPORATE STRATEGY","HUMAN RESOURCES"
"http://statistics.data.gov.uk/id/local-authority/43UM","Woking Borough Council","26/05/2023","02/08/2023","0000491128/001","BLC GROUP LTD","41081900","3475.00","CORPORATE STRATEGY - FIT FOR THE FUTURE TRANSFORMATION","OTHER CONSULTANTS","Q430","OTHER CONSULTANTS","CORPORATE STRATEGY","HUMAN RESOURCES"
"http://statistics.data.gov.uk/id/local-authority/43UM","Woking Borough Council","31/05/2023","02/08/2023","0000491197/001","OYSTER PARTNERSHIP","40443300","645.90","HOUSING SERVICES - REPAIRS ADMINISTRATION","TEMPORARY STAFF","H687","TEMPORARY STAFF","HOUSING SERVICES","HUMAN RESOURCES"
"http://statistics.data.gov.uk/id/local-authority/43UM","Woking Borough Council","28/07/2023","02/08/2023","0000491941/001","OYSTER PARTNERSHIP","40443300","758.63","HOUSING SERVICES - HOUSING LANDLORD SERVICES","TEMPORARY STAFF","A110","TEMPORARY STAFF","HOUSING SERVICES","HUMAN RESOURCES"
"http://statistics.data.gov.uk/id/local-authority/43UM","Woking Borough Council","06/07/2023","02/08/2023","0000492190/001","ASSOCIATION OF ELECTORAL ADMINISTRATORS","00583500","222.00","CORPORATE MANAGEMENT GROUP - STAFF TRAINING/GENERAL COSTS","TRAINING - CORPORATE","A910","TRAINING - CORPORATE","CORPORATE MANAGEMENT GROUP","HUMAN RESOURCES"
"http://statistics.data.gov.uk/id/local-authority/43UM","Woking Borough Council","10/07/2023","02/08/2023","0000492197/001","FREEDOM LEISURE","40296500","205.80","INDEPENDENT LIVING SERVICES - MOORCROFT","WELL BEING ACTIVITIES","H419","WELL BEING ACTIVITIES","INDEPENDENT LIVING SERVICES","HUMAN RESOURCES"
"http://statistics.data.gov.uk/id/local-authority/43UM","Woking Borough Council","05/07/2023","02/08/2023","0000492217/001","VENN GROUP LIMITED","40383900","384.00","REVENUES AND BENEFITS - BENEFIT SERVICES","TEMPORARY STAFF","A110","TEMPORARY STAFF","REVENUES AND BENEFITS","HUMAN RESOURCES"
"http://statistics.data.gov.uk/id/local-authority/43UM","Woking Borough Council","05/07/2023","02/08/2023","0000492218/001","VENN GROUP LIMITED","40383900","3600.00","CORPORATE STRATEGY - LEGAL","TEMPORARY STAFF","A110","TEMPORARY STAFF","CORPORATE STRATEGY","HUMAN RESOURCES"
"http://statistics.data.gov.uk/id/local-authority/43UM","Woking Borough Council","05/07/2023","02/08/2023","0000492468/001","OYSTER PARTNERSHIP","40443300","1820.91","PLANNING SERVICES - DEVELOPMENT CONTROL","TEMPORARY STAFF","A110","TEMPORARY STAFF","PLANNING SERVICES","HUMAN RESOURCES"
"http://statistics.data.gov.uk/id/local-authority/43UM","Woking Borough Council","14/07/2023","02/08/2023","0000492647/001","FAITH RECRUITMENT","01709500","40.93","NEIGHBOURHOOD SERVICES - PARKING SERVICES","TEMPORARY STAFF","A110","TEMPORARY STAFF","NEIGHBOURHOOD SERVICES","HUMAN RESOURCES"
"http://statistics.data.gov.uk/id/local-authority/43UM","Woking Borough Council","24/07/2023","02/08/2023","0000492649/001","ABC UMBRELLA LTD","41031700","150.00","REVENUES AND BENEFITS - COUNCIL TAX","TEMPORARY STAFF","A110","TEMPORARY STAFF","REVENUES AND BENEFITS","HUMAN RESOURCES"
"http://statistics.data.gov.uk/id/local-authority/43UM","Woking Borough Council","21/07/2023","02/08/2023","0000492652/001","FAITH RECRUITMENT","01709500","1500.00","REVENUES AND BENEFITS - COUNCIL TAX","TEMPORARY STAFF","A110","TEMPORARY STAFF","REVENUES AND BENEFITS","HUMAN RESOURCES"
"http://statistics.data.gov.uk/id/local-authority/43UM","Woking Borough Council","14/07/2023","02/08/2023","0000492656/001","FAITH RECRUITMENT","01709500","46.37","CORPORATE STRATEGY - CUSTOMER SERVICES","TEMPORARY STAFF","A110","TEMPORARY STAFF","CORPORATE STRATEGY","HUMAN RESOURCES"
"http://statistics.data.gov.uk/id/local-authority/43UM","Woking Borough Council","14/07/2023","02/08/2023","0000492728/001","FAITH RECRUITMENT","01709500","442.58","HOUSING SERVICES - REPAIRS ADMINISTRATION","TEMPORARY STAFF","H687","TEMPORARY STAFF","HOUSING SERVICES","HUMAN RESOURCES"
"http://statistics.data.gov.uk/id/local-authority/43UM","Woking Borough Council","31/05/2023","02/08/2023","0000492763/001","VIVID RESOURCING","40463200","7100.00","CORPORATE STRATEGY - FIT FOR THE FUTURE TRANSFORMATION","OTHER CONSULTANTS","Q430","OTHER CONSULTANTS","CORPORATE STRATEGY","HUMAN RESOURCES"
"http://statistics.data.gov.uk/id/local-authority/43UM","Woking Borough Council","21/07/2023","02/08/2023","0000492790/001","FAITH RECRUITMENT","01709500","388.58","NEIGHBOURHOOD SERVICES - PARKING SERVICES","TEMPORARY STAFF","A110","TEMPORARY STAFF","NEIGHBOURHOOD SERVICES","HUMAN RESOURCES"
"http://statistics.data.gov.uk/id/local-authority/43UM","Woking Borough Council","21/07/2023","02/08/2023","0000492795/001","FAITH RECRUITMENT","01709500","599.94","HOUSING SERVICES - REPAIRS ADMINISTRATION","TEMPORARY STAFF","H687","TEMPORARY STAFF","HOUSING SERVICES","HUMAN RESOURCES"
"http://statistics.data.gov.uk/id/local-authority/43UM","Woking Borough Council","28/07/2023","02/08/2023","0000492802/001","FLYING UMBRELLA","41022200","1000.00","REVENUES AND BENEFITS - BENEFIT SERVICES","TEMPORARY STAFF","A110","TEMPORARY STAFF","REVENUES AND BENEFITS","HUMAN RESOURCES"
"http://statistics.data.gov.uk/id/local-authority/43UM","Woking Borough Council","07/06/2023","02/08/2023","0000492933/001","OYSTER PARTNERSHIP","40443300","1519.02","PLANNING SERVICES - DEVELOPMENT CONTROL","TEMPORARY STAFF","A110","TEMPORARY STAFF","PLANNING SERVICES","HUMAN RESOURCES"
"http://statistics.data.gov.uk/id/local-authority/43UM","Woking Borough Council","21/06/2023","02/08/2023","0000492948/001","OYSTER PARTNERSHIP","40443300","1831.46","PLANNING SERVICES - DEVELOPMENT CONTROL","TEMPORARY STAFF","A110","TEMPORARY STAFF","PLANNING SERVICES","HUMAN RESOURCES"
"http://statistics.data.gov.uk/id/local-authority/43UM","Woking Borough Council","31/05/2023","02/08/2023","0000491418/001","CHIPSIDE LIMITED","40615000","480.00","NEIGHBOURHOOD SERVICES - CAR PARKS ADMIN&OPERATIONAL EX","SOFTWARE LICENCE","G183","SOFTWARE LICENCE","NEIGHBOURHOOD SERVICES","INFORMATION COMMUNICATION TECHNOLOGY"
"http://statistics.data.gov.uk/id/local-authority/43UM","Woking Borough Council","01/06/2023","02/08/2023","0000491419/001","CHIPSIDE LIMITED","40615000","120.00","NEIGHBOURHOOD SERVICES - CAR PARKS ADMIN&OPERATIONAL EX","SOFTWARE LICENCE","G183","SOFTWARE LICENCE","NEIGHBOURHOOD SERVICES","INFORMATION COMMUNICATION TECHNOLOGY"
"http://statistics.data.gov.uk/id/local-authority/43UM","Woking Borough Council","01/06/2023","02/08/2023","0000491420/001","CHIPSIDE LIMITED","40615000","250.00","NEIGHBOURHOOD SERVICES - CAR PARKS ADMIN&OPERATIONAL EX","SOFTWARE LICENCE","G183","SOFTWARE LICENCE","NEIGHBOURHOOD SERVICES","INFORMATION COMMUNICATION TECHNOLOGY"
"http://statistics.data.gov.uk/id/local-authority/43UM","Woking Borough Council","01/07/2023","02/08/2023","0000492014/001","CHIPSIDE LIMITED","40615000","250.00","NEIGHBOURHOOD SERVICES - CAR PARKS ADMIN&OPERATIONAL EX","SOFTWARE LICENCE","G183","SOFTWARE LICENCE","NEIGHBOURHOOD SERVICES","INFORMATION COMMUNICATION TECHNOLOGY"
"http://statistics.data.gov.uk/id/local-authority/43UM","Woking Borough Council","10/07/2023","02/08/2023","0000492259/001","CMIS-UK LIMITED","40655600","120.00","CORPORATE STRATEGY - TOWN CENTRE FORUM","ECDEV INWARD INVESTMENT PLAN","H409","ECDEV INWARD INVESTMENT PLAN","CORPORATE STRATEGY","INFORMATION COMMUNICATION TECHNOLOGY"
"http://statistics.data.gov.uk/id/local-authority/43UM","Woking Borough Council","10/07/2023","02/08/2023","0000492334/001","GAMMA TELECOM LIMITED","40610100","6150.09","INFORMATION TECHNOLOGY - COMMUNICATIONS","NETWORK CIRCUITS","G800","NETWORK CIRCUITS","INFORMATION TECHNOLOGY","INFORMATION COMMUNICATION TECHNOLOGY"
"http://statistics.data.gov.uk/id/local-authority/43UM","Woking Borough Council","18/07/2023","02/08/2023","0000492623/001","CHIPSIDE LIMITED","40615000","-105.00","NEIGHBOURHOOD SERVICES - CAR PARKS ADMIN&OPERATIONAL EX","SOFTWARE LICENCE","G183","SOFTWARE LICENCE","NEIGHBOURHOOD SERVICES","INFORMATION COMMUNICATION TECHNOLOGY"
"http://statistics.data.gov.uk/id/local-authority/43UM","Woking Borough Council","18/07/2023","02/08/2023","0000492625/001","CHIPSIDE LIMITED","40615000","-420.00","NEIGHBOURHOOD SERVICES - CAR PARKS ADMIN&OPERATIONAL EX","SOFTWARE LICENCE","G183","SOFTWARE LICENCE","NEIGHBOURHOOD SERVICES","INFORMATION COMMUNICATION TECHNOLOGY"
"http://statistics.data.gov.uk/id/local-authority/43UM","Woking Borough Council","27/07/2023","02/08/2023","0000492804/001","VIRGIN MEDIA BUSINESS","00316500","24.89","ASSET MANAGEMENT - C.C.T.V.","CCTV TRANSMISSION MAINTENANCE","D342","CCTV TRANSMISSION MAINTENANCE","ASSET MANAGEMENT","INFORMATION COMMUNICATION TECHNOLOGY"
"http://statistics.data.gov.uk/id/local-authority/43UM","Woking Borough Council","27/07/2023","02/08/2023","0000492804/002","VIRGIN MEDIA BUSINESS","00316500","0.11","ASSET MANAGEMENT - C.C.T.V.","CCTV TRANSMISSION MAINTENANCE","D342","CCTV TRANSMISSION MAINTENANCE","ASSET MANAGEMENT","INFORMATION COMMUNICATION TECHNOLOGY"
"http://statistics.data.gov.uk/id/local-authority/43UM","Woking Borough Council","25/07/2023","02/08/2023","0000492854/001","VIRGIN MEDIA BUSINESS","00316500","5636.36","ASSET MANAGEMENT - C.C.T.V.","CCTV TRANSMISSION MAINTENANCE","D342","CCTV TRANSMISSION MAINTENANCE","ASSET MANAGEMENT","INFORMATION COMMUNICATION TECHNOLOGY"
"http://statistics.data.gov.uk/id/local-authority/43UM","Woking Borough Council","25/07/2023","02/08/2023","0000492854/002","VIRGIN MEDIA BUSINESS","00316500","24.89","ASSET MANAGEMENT - C.C.T.V.","CCTV TRANSMISSION MAINTENANCE","D342","CCTV TRANSMISSION MAINTENANCE","ASSET MANAGEMENT","INFORMATION COMMUNICATION TECHNOLOGY"
"http://statistics.data.gov.uk/id/local-authority/43UM","Woking Borough Council","01/07/2023","02/08/2023","0000492962/001","PARK NOW LTD","40098500","3352.08","NEIGHBOURHOOD SERVICES - CAR PARKS ADMIN&OPERATIONAL EX","PAYMENT TO RINGGO SUPPLIER","H693","PAYMENT TO RINGGO SUPPLIER","NEIGHBOURHOOD SERVICES","INFORMATION COMMUNICATION TECHNOLOGY"
"http://statistics.data.gov.uk/id/local-authority/43UM","Woking Borough Council","10/07/2023","02/08/2023","0000492198/001","SHENA GRIGOR","40056300","74.66","NEIGHBOURHOOD SERVICES - SPORTS DEVELOPMENT","HIRE OF PREMISES","D505","HIRE OF PREMISES","NEIGHBOURHOOD SERVICES","ARTS & LEISURE SERVICES"
"http://statistics.data.gov.uk/id/local-authority/43UM","Woking Borough Council","09/07/2023","02/08/2023","0000492177/001","WHISTL UK LIMITED","00367900","26.04","CORPORATE STRATEGY - POSTAGE","POSTAGE - STANDARD TARIFF","G700","POSTAGE - STANDARD TARIFF","CORPORATE STRATEGY","MAIL SERVICES"
"http://statistics.data.gov.uk/id/local-authority/43UM","Woking Borough Council","09/07/2023","02/08/2023","0000492178/001","WHISTL UK LIMITED","00367900","2545.88","CORPORATE STRATEGY - POSTAGE","POSTAGE - STANDARD TARIFF","G700","POSTAGE - STANDARD TARIFF","CORPORATE STRATEGY","MAIL SERVICES"
"http://statistics.data.gov.uk/id/local-authority/43UM","Woking Borough Council","11/07/2023","02/08/2023","0000492336/001","ROYAL MAIL GROUP LTD","00040000","0.82","CORPORATE STRATEGY - POSTAGE","POSTAGE - REPLY PAID","G710","POSTAGE - REPLY PAID","CORPORATE STRATEGY","MAIL SERVICES"
"http://statistics.data.gov.uk/id/local-authority/43UM","Woking Borough Council","10/07/2023","02/08/2023","0000492233/001","AKW MEDI-CARE LIMITED","01281500","190.60","HOUSING SERVICES - HOME IMPS & BEN AGENCY","HANDYPERSON MATERIALS","G201","HANDYPERSON MATERIALS","HOUSING SERVICES","HEALTHCARE"
"http://statistics.data.gov.uk/id/local-authority/43UM","Woking Borough Council","10/07/2023","02/08/2023","0000492233/002","AKW MEDI-CARE LIMITED","01281500","206.90","HOUSING SERVICES - HOME IMPS & BEN AGENCY","HANDYPERSON MATERIALS","G201","HANDYPERSON MATERIALS","HOUSING SERVICES","HEALTHCARE"
"http://statistics.data.gov.uk/id/local-authority/43UM","Woking Borough Council","01/04/2023","02/08/2023","0000492847/001","TP HEALTH LTD","40624300","802.74","CORPORATE MANAGEMENT GROUP - STAFF TRAINING/GENERAL COSTS","HEALTH CARE","A780","HEALTH CARE","CORPORATE MANAGEMENT GROUP","HEALTHCARE"
"http://statistics.data.gov.uk/id/local-authority/43UM","Woking Borough Council","18/04/2023","02/08/2023","0000492892/001","PATROL","40058700","1225.50","NEIGHBOURHOOD SERVICES - CAR PARKS ADMIN&OPERATIONAL EX","PENALTY CHARGE NOTICE FEE PCN","H676","PENALTY CHARGE NOTICE FEE PCN","NEIGHBOURHOOD SERVICES","STREET & TRAFFIC MANAGEMENT"
"http://statistics.data.gov.uk/id/local-authority/43UM","Woking Borough Council","16/06/2023","02/08/2023","0000491788/001","OPUS GAS SUPPLY LTD","41068800","61.76","ASSET MANAGEMENT - 39 DARTMOUTH AVE (XHRA)","GAS","D420","GAS","ASSET MANAGEMENT","UTILITIES"
"http://statistics.data.gov.uk/id/local-authority/43UM","Woking Borough Council","20/06/2023","02/08/2023","0000491850/001","BRITISH GAS BUSINESS","00065700","65.73","ASSET MANAGEMENT - WOLSEY PLACE","ELECTRICITY","D400","ELECTRICITY","ASSET MANAGEMENT","UTILITIES"
"http://statistics.data.gov.uk/id/local-authority/43UM","Woking Borough Council","15/01/2023","02/08/2023","0000491955/001","POZITIVE ENERGY","40980200","580.87","ASSET MANAGEMENT - WOLSEY PLACE","ELECTRICITY","D400","ELECTRICITY","ASSET MANAGEMENT","UTILITIES"
"http://statistics.data.gov.uk/id/local-authority/43UM","Woking Borough Council","27/06/2023","02/08/2023","0000492035/001","ARCOM IT LTD","40352600","198.00","INFORMATION TECHNOLOGY - ICT GENERAL REPLACEMENT 2023/24","SERVICES","Q053","SERVICES","INFORMATION TECHNOLOGY","UTILITIES"
"http://statistics.data.gov.uk/id/local-authority/43UM","Woking Borough Council","03/07/2023","02/08/2023","0000492111/001","E.ON ENERGY SOLUTIONS LIMITED","40941500","117.75","ASSET MANAGEMENT - CMS HOUSE 15 21 POOLE ROAD","ELECTRICITY","D400","ELECTRICITY","ASSET MANAGEMENT","UTILITIES"
"http://statistics.data.gov.uk/id/local-authority/43UM","Woking Borough Council","06/06/2023","02/08/2023","0000492130/001","E.ON ENERGY SOLUTIONS LIMITED","40941500","60.26","HOUSING SERVICES - 47 DARTMOUTH AVE","ELECTRICITY","D400","ELECTRICITY","HOUSING SERVICES","UTILITIES"
"http://statistics.data.gov.uk/id/local-authority/43UM","Woking Borough Council","06/07/2023","02/08/2023","0000492131/001","TOTAL GAS & POWER LIMITED","40456400","619.36","ASSET MANAGEMENT - PEACOCK WALK MARKET","ELECTRICITY","D400","ELECTRICITY","ASSET MANAGEMENT","UTILITIES"
"http://statistics.data.gov.uk/id/local-authority/43UM","Woking Borough Council","05/07/2023","02/08/2023","0000492141/001","CORONA ENERGY RETAIL 4 LIMITED","41080700","1506.23","ASSET MANAGEMENT - PUBLIC CONVENIENCES","ELECTRICITY","D400","ELECTRICITY","ASSET MANAGEMENT","UTILITIES"
"http://statistics.data.gov.uk/id/local-authority/43UM","Woking Borough Council","05/07/2023","02/08/2023","0000492141/002","CORONA ENERGY RETAIL 4 LIMITED","41080700","13.23","ASSET MANAGEMENT - PUBLIC CONVENIENCES","CLIMATE CHANGE LEVY","D430","CLIMATE CHANGE LEVY","ASSET MANAGEMENT","UTILITIES"
"http://statistics.data.gov.uk/id/local-authority/43UM","Woking Borough Council","05/07/2023","02/08/2023","0000492141/003","CORONA ENERGY RETAIL 4 LIMITED","41080700","-14.83","HOUSING SERVICES - LANDLORDS EXPENSES","ELECTRICITY","D400","ELECTRICITY","HOUSING SERVICES","UTILITIES"
"http://statistics.data.gov.uk/id/local-authority/43UM","Woking Borough Council","05/07/2023","02/08/2023","0000492141/004","CORONA ENERGY RETAIL 4 LIMITED","41080700","-19.41","HOUSING SERVICES - LANDLORDS EXPENSES","ELECTRICITY","D400","ELECTRICITY","HOUSING SERVICES","UTILITIES"
"http://statistics.data.gov.uk/id/local-authority/43UM","Woking Borough Council","05/07/2023","02/08/2023","0000492141/005","CORONA ENERGY RETAIL 4 LIMITED","41080700","-78.46","HOUSING SERVICES - LANDLORDS EXPENSES","ELECTRICITY","D400","ELECTRICITY","HOUSING SERVICES","UTILITIES"
"http://statistics.data.gov.uk/id/local-authority/43UM","Woking Borough Council","05/07/2023","02/08/2023","0000492141/006","CORONA ENERGY RETAIL 4 LIMITED","41080700","-68.16","HOUSING SERVICES - LANDLORDS EXPENSES","ELECTRICITY","D400","ELECTRICITY","HOUSING SERVICES","UTILITIES"
"http://statistics.data.gov.uk/id/local-authority/43UM","Woking Borough Council","05/07/2023","02/08/2023","0000492141/007","CORONA ENERGY RETAIL 4 LIMITED","41080700","-75.03","HOUSING SERVICES - LANDLORDS EXPENSES","ELECTRICITY","D400","ELECTRICITY","HOUSING SERVICES","UTILITIES"
"http://statistics.data.gov.uk/id/local-authority/43UM","Woking Borough Council","05/07/2023","02/08/2023","0000492141/008","CORONA ENERGY RETAIL 4 LIMITED","41080700","-144.75","HOUSING SERVICES - LANDLORDS EXPENSES","ELECTRICITY","D400","ELECTRICITY","HOUSING SERVICES","UTILITIES"
"http://statistics.data.gov.uk/id/local-authority/43UM","Woking Borough Council","05/07/2023","02/08/2023","0000492141/009","CORONA ENERGY RETAIL 4 LIMITED","41080700","-76.40","HOUSING SERVICES - LANDLORDS EXPENSES","ELECTRICITY","D400","ELECTRICITY","HOUSING SERVICES","UTILITIES"
"http://statistics.data.gov.uk/id/local-authority/43UM","Woking Borough Council","05/07/2023","02/08/2023","0000492141/010","CORONA ENERGY RETAIL 4 LIMITED","41080700","-84.65","HOUSING SERVICES - LANDLORDS EXPENSES","ELECTRICITY","D400","ELECTRICITY","HOUSING SERVICES","UTILITIES"
"http://statistics.data.gov.uk/id/local-authority/43UM","Woking Borough Council","05/07/2023","02/08/2023","0000492141/011","CORONA ENERGY RETAIL 4 LIMITED","41080700","-87.40","HOUSING SERVICES - LANDLORDS EXPENSES","ELECTRICITY","D400","ELECTRICITY","HOUSING SERVICES","UTILITIES"
"http://statistics.data.gov.uk/id/local-authority/43UM","Woking Borough Council","05/07/2023","02/08/2023","0000492141/012","CORONA ENERGY RETAIL 4 LIMITED","41080700","16.25","HOUSING SERVICES - LANDLORDS EXPENSES","ELECTRICITY","D400","ELECTRICITY","HOUSING SERVICES","UTILITIES"
"http://statistics.data.gov.uk/id/local-authority/43UM","Woking Borough Council","05/07/2023","02/08/2023","0000492141/013","CORONA ENERGY RETAIL 4 LIMITED","41080700","17.97","HOUSING SERVICES - LANDLORDS EXPENSES","ELECTRICITY","D400","ELECTRICITY","HOUSING SERVICES","UTILITIES"
"http://statistics.data.gov.uk/id/local-authority/43UM","Woking Borough Council","05/07/2023","02/08/2023","0000492141/014","CORONA ENERGY RETAIL 4 LIMITED","41080700","24.06","HOUSING SERVICES - LANDLORDS EXPENSES","ELECTRICITY","D400","ELECTRICITY","HOUSING SERVICES","UTILITIES"
"http://statistics.data.gov.uk/id/local-authority/43UM","Woking Borough Council","05/07/2023","02/08/2023","0000492141/015","CORONA ENERGY RETAIL 4 LIMITED","41080700","22.31","HOUSING SERVICES - LANDLORDS EXPENSES","ELECTRICITY","D400","ELECTRICITY","HOUSING SERVICES","UTILITIES"
"http://statistics.data.gov.uk/id/local-authority/43UM","Woking Borough Council","05/07/2023","02/08/2023","0000492141/016","CORONA ENERGY RETAIL 4 LIMITED","41080700","18.31","HOUSING SERVICES - LANDLORDS EXPENSES","ELECTRICITY","D400","ELECTRICITY","HOUSING SERVICES","UTILITIES"
"http://statistics.data.gov.uk/id/local-authority/43UM","Woking Borough Council","05/07/2023","02/08/2023","0000492141/017","CORONA ENERGY RETAIL 4 LIMITED","41080700","18.66","HOUSING SERVICES - LANDLORDS EXPENSES","ELECTRICITY","D400","ELECTRICITY","HOUSING SERVICES","UTILITIES"
"http://statistics.data.gov.uk/id/local-authority/43UM","Woking Borough Council","05/07/2023","02/08/2023","0000492141/018","CORONA ENERGY RETAIL 4 LIMITED","41080700","17.28","HOUSING SERVICES - LANDLORDS EXPENSES","ELECTRICITY","D400","ELECTRICITY","HOUSING SERVICES","UTILITIES"
"http://statistics.data.gov.uk/id/local-authority/43UM","Woking Borough Council","05/07/2023","02/08/2023","0000492141/019","CORONA ENERGY RETAIL 4 LIMITED","41080700","17.28","HOUSING SERVICES - LANDLORDS EXPENSES","ELECTRICITY","D400","ELECTRICITY","HOUSING SERVICES","UTILITIES"
"http://statistics.data.gov.uk/id/local-authority/43UM","Woking Borough Council","05/07/2023","02/08/2023","0000492141/020","CORONA ENERGY RETAIL 4 LIMITED","41080700","157.88","HOUSING SERVICES - LANDLORDS EXPENSES","ELECTRICITY","D400","ELECTRICITY","HOUSING SERVICES","UTILITIES"
"http://statistics.data.gov.uk/id/local-authority/43UM","Woking Borough Council","05/07/2023","02/08/2023","0000492141/021","CORONA ENERGY RETAIL 4 LIMITED","41080700","148.25","HOUSING SERVICES - LANDLORDS EXPENSES","ELECTRICITY","D400","ELECTRICITY","HOUSING SERVICES","UTILITIES"
"http://statistics.data.gov.uk/id/local-authority/43UM","Woking Borough Council","05/07/2023","02/08/2023","0000492141/022","CORONA ENERGY RETAIL 4 LIMITED","41080700","201.60","ASSET MANAGEMENT - ALBION HOUSE (WOKING ONE)","ELECTRICITY","D400","ELECTRICITY","ASSET MANAGEMENT","UTILITIES"
"http://statistics.data.gov.uk/id/local-authority/43UM","Woking Borough Council","05/07/2023","02/08/2023","0000492141/023","CORONA ENERGY RETAIL 4 LIMITED","41080700","96.65","HOUSING SERVICES - LANDLORDS EXPENSES","ELECTRICITY","D400","ELECTRICITY","HOUSING SERVICES","UTILITIES"
"http://statistics.data.gov.uk/id/local-authority/43UM","Woking Borough Council","05/07/2023","02/08/2023","0000492141/024","CORONA ENERGY RETAIL 4 LIMITED","41080700","963.43","HOUSING SERVICES - LANDLORDS EXPENSES","ELECTRICITY","D400","ELECTRICITY","HOUSING SERVICES","UTILITIES"
"http://statistics.data.gov.uk/id/local-authority/43UM","Woking Borough Council","05/07/2023","02/08/2023","0000492141/025","CORONA ENERGY RETAIL 4 LIMITED","41080700","210.02","HOUSING SERVICES - LANDLORDS EXPENSES","ELECTRICITY","D400","ELECTRICITY","HOUSING SERVICES","UTILITIES"
"http://statistics.data.gov.uk/id/local-authority/43UM","Woking Borough Council","05/07/2023","02/08/2023","0000492141/026","CORONA ENERGY RETAIL 4 LIMITED","41080700","292.23","HOUSING SERVICES - LANDLORDS EXPENSES","ELECTRICITY","D400","ELECTRICITY","HOUSING SERVICES","UTILITIES"
"http://statistics.data.gov.uk/id/local-authority/43UM","Woking Borough Council","05/07/2023","02/08/2023","0000492141/027","CORONA ENERGY RETAIL 4 LIMITED","41080700","163.12","HOUSING SERVICES - LANDLORDS EXPENSES","ELECTRICITY","D400","ELECTRICITY","HOUSING SERVICES","UTILITIES"
"http://statistics.data.gov.uk/id/local-authority/43UM","Woking Borough Council","05/07/2023","02/08/2023","0000492141/028","CORONA ENERGY RETAIL 4 LIMITED","41080700","141.80","HOUSING SERVICES - LANDLORDS EXPENSES","ELECTRICITY","D400","ELECTRICITY","HOUSING SERVICES","UTILITIES"
"http://statistics.data.gov.uk/id/local-authority/43UM","Woking Borough Council","05/07/2023","02/08/2023","0000492141/029","CORONA ENERGY RETAIL 4 LIMITED","41080700","3991.11","INDEPENDENT LIVING SERVICES - ALPHA RD COMMUNITY HALL","ELECTRICITY","D400","ELECTRICITY","INDEPENDENT LIVING SERVICES","UTILITIES"
"http://statistics.data.gov.uk/id/local-authority/43UM","Woking Borough Council","05/07/2023","02/08/2023","0000492141/030","CORONA ENERGY RETAIL 4 LIMITED","41080700","35.04","INDEPENDENT LIVING SERVICES - ALPHA RD COMMUNITY HALL","CLIMATE CHANGE LEVY","D430","CLIMATE CHANGE LEVY","INDEPENDENT LIVING SERVICES","UTILITIES"
"http://statistics.data.gov.uk/id/local-authority/43UM","Woking Borough Council","05/07/2023","02/08/2023","0000492141/031","CORONA ENERGY RETAIL 4 LIMITED","41080700","347.34","ASSET MANAGEMENT - PUBLIC CONVENIENCES","ELECTRICITY","D400","ELECTRICITY","ASSET MANAGEMENT","UTILITIES"
"http://statistics.data.gov.uk/id/local-authority/43UM","Woking Borough Council","05/07/2023","02/08/2023","0000492141/032","CORONA ENERGY RETAIL 4 LIMITED","41080700","263.37","HOUSING SERVICES - LANDLORDS EXPENSES","ELECTRICITY","D400","ELECTRICITY","HOUSING SERVICES","UTILITIES"
"http://statistics.data.gov.uk/id/local-authority/43UM","Woking Borough Council","05/07/2023","02/08/2023","0000492141/033","CORONA ENERGY RETAIL 4 LIMITED","41080700","218.77","HOUSING SERVICES - LANDLORDS EXPENSES","ELECTRICITY","D400","ELECTRICITY","HOUSING SERVICES","UTILITIES"
"http://statistics.data.gov.uk/id/local-authority/43UM","Woking Borough Council","05/07/2023","02/08/2023","0000492141/034","CORONA ENERGY RETAIL 4 LIMITED","41080700","1699.51","HOUSING SERVICES - LANDLORDS EXPENSES","ELECTRICITY","D400","ELECTRICITY","HOUSING SERVICES","UTILITIES"
"http://statistics.data.gov.uk/id/local-authority/43UM","Woking Borough Council","05/07/2023","02/08/2023","0000492141/035","CORONA ENERGY RETAIL 4 LIMITED","41080700","10.93","HOUSING SERVICES - LANDLORDS EXPENSES","ELECTRICITY","D400","ELECTRICITY","HOUSING SERVICES","UTILITIES"
"http://statistics.data.gov.uk/id/local-authority/43UM","Woking Borough Council","05/07/2023","02/08/2023","0000492141/036","CORONA ENERGY RETAIL 4 LIMITED","41080700","-16.18","HOUSING SERVICES - LANDLORDS EXPENSES","ELECTRICITY","D400","ELECTRICITY","HOUSING SERVICES","UTILITIES"
"http://statistics.data.gov.uk/id/local-authority/43UM","Woking Borough Council","05/07/2023","02/08/2023","0000492141/037","CORONA ENERGY RETAIL 4 LIMITED","41080700","-11.09","HOUSING SERVICES - LANDLORDS EXPENSES","ELECTRICITY","D400","ELECTRICITY","HOUSING SERVICES","UTILITIES"
"http://statistics.data.gov.uk/id/local-authority/43UM","Woking Borough Council","05/07/2023","02/08/2023","0000492141/038","CORONA ENERGY RETAIL 4 LIMITED","41080700","10.06","HOUSING SERVICES - LANDLORDS EXPENSES","ELECTRICITY","D400","ELECTRICITY","HOUSING SERVICES","UTILITIES"
"http://statistics.data.gov.uk/id/local-authority/43UM","Woking Borough Council","05/07/2023","02/08/2023","0000492141/039","CORONA ENERGY RETAIL 4 LIMITED","41080700","10.06","HOUSING SERVICES - LANDLORDS EXPENSES","ELECTRICITY","D400","ELECTRICITY","HOUSING SERVICES","UTILITIES"
"http://statistics.data.gov.uk/id/local-authority/43UM","Woking Borough Council","05/07/2023","02/08/2023","0000492141/040","CORONA ENERGY RETAIL 4 LIMITED","41080700","10.06","HOUSING SERVICES - LANDLORDS EXPENSES","ELECTRICITY","D400","ELECTRICITY","HOUSING SERVICES","UTILITIES"
"http://statistics.data.gov.uk/id/local-authority/43UM","Woking Borough Council","05/07/2023","02/08/2023","0000492141/041","CORONA ENERGY RETAIL 4 LIMITED","41080700","41.54","HOUSING SERVICES - LANDLORDS EXPENSES","ELECTRICITY","D400","ELECTRICITY","HOUSING SERVICES","UTILITIES"
"http://statistics.data.gov.uk/id/local-authority/43UM","Woking Borough Council","05/07/2023","02/08/2023","0000492141/042","CORONA ENERGY RETAIL 4 LIMITED","41080700","286.99","HOUSING SERVICES - LANDLORDS EXPENSES","ELECTRICITY","D400","ELECTRICITY","HOUSING SERVICES","UTILITIES"
"http://statistics.data.gov.uk/id/local-authority/43UM","Woking Borough Council","05/07/2023","02/08/2023","0000492141/043","CORONA ENERGY RETAIL 4 LIMITED","41080700","29.30","HOUSING SERVICES - LANDLORDS EXPENSES","ELECTRICITY","D400","ELECTRICITY","HOUSING SERVICES","UTILITIES"
"http://statistics.data.gov.uk/id/local-authority/43UM","Woking Borough Council","05/07/2023","02/08/2023","0000492141/044","CORONA ENERGY RETAIL 4 LIMITED","41080700","224.01","HOUSING SERVICES - LANDLORDS EXPENSES","ELECTRICITY","D400","ELECTRICITY","HOUSING SERVICES","UTILITIES"
"http://statistics.data.gov.uk/id/local-authority/43UM","Woking Borough Council","05/07/2023","02/08/2023","0000492141/045","CORONA ENERGY RETAIL 4 LIMITED","41080700","44.18","HOUSING SERVICES - LANDLORDS EXPENSES","ELECTRICITY","D400","ELECTRICITY","HOUSING SERVICES","UTILITIES"
"http://statistics.data.gov.uk/id/local-authority/43UM","Woking Borough Council","05/07/2023","02/08/2023","0000492141/046","CORONA ENERGY RETAIL 4 LIMITED","41080700","451.42","HOUSING SERVICES - LANDLORDS EXPENSES","ELECTRICITY","D400","ELECTRICITY","HOUSING SERVICES","UTILITIES"
"http://statistics.data.gov.uk/id/local-authority/43UM","Woking Borough Council","05/07/2023","02/08/2023","0000492141/047","CORONA ENERGY RETAIL 4 LIMITED","41080700","953.78","HOUSING SERVICES - LANDLORDS EXPENSES","ELECTRICITY","D400","ELECTRICITY","HOUSING SERVICES","UTILITIES"
"http://statistics.data.gov.uk/id/local-authority/43UM","Woking Borough Council","05/07/2023","02/08/2023","0000492141/048","CORONA ENERGY RETAIL 4 LIMITED","41080700","94.90","HOUSING SERVICES - LANDLORDS EXPENSES","ELECTRICITY","D400","ELECTRICITY","HOUSING SERVICES","UTILITIES"
"http://statistics.data.gov.uk/id/local-authority/43UM","Woking Borough Council","05/07/2023","02/08/2023","0000492141/049","CORONA ENERGY RETAIL 4 LIMITED","41080700","37.17","HOUSING SERVICES - LANDLORDS EXPENSES","ELECTRICITY","D400","ELECTRICITY","HOUSING SERVICES","UTILITIES"
"http://statistics.data.gov.uk/id/local-authority/43UM","Woking Borough Council","05/07/2023","02/08/2023","0000492141/050","CORONA ENERGY RETAIL 4 LIMITED","41080700","10.06","HOUSING SERVICES - LANDLORDS EXPENSES","ELECTRICITY","D400","ELECTRICITY","HOUSING SERVICES","UTILITIES"
"http://statistics.data.gov.uk/id/local-authority/43UM","Woking Borough Council","05/07/2023","02/08/2023","0000492141/051","CORONA ENERGY RETAIL 4 LIMITED","41080700","76.53","HOUSING SERVICES - LANDLORDS EXPENSES","ELECTRICITY","D400","ELECTRICITY","HOUSING SERVICES","UTILITIES"
"http://statistics.data.gov.uk/id/local-authority/43UM","Woking Borough Council","05/07/2023","02/08/2023","0000492141/052","CORONA ENERGY RETAIL 4 LIMITED","41080700","118.25","HOUSING SERVICES - LANDLORDS EXPENSES","ELECTRICITY","D400","ELECTRICITY","HOUSING SERVICES","UTILITIES"
"http://statistics.data.gov.uk/id/local-authority/43UM","Woking Borough Council","05/07/2023","02/08/2023","0000492141/053","CORONA ENERGY RETAIL 4 LIMITED","41080700","807.39","HOUSING SERVICES - LANDLORDS EXPENSES","ELECTRICITY","D400","ELECTRICITY","HOUSING SERVICES","UTILITIES"
"http://statistics.data.gov.uk/id/local-authority/43UM","Woking Borough Council","05/07/2023","02/08/2023","0000492141/054","CORONA ENERGY RETAIL 4 LIMITED","41080700","1427.86","HOUSING SERVICES - LANDLORDS EXPENSES","ELECTRICITY","D400","ELECTRICITY","HOUSING SERVICES","UTILITIES"
"http://statistics.data.gov.uk/id/local-authority/43UM","Woking Borough Council","05/07/2023","02/08/2023","0000492141/055","CORONA ENERGY RETAIL 4 LIMITED","41080700","734.28","HOUSING SERVICES - LANDLORDS EXPENSES","ELECTRICITY","D400","ELECTRICITY","HOUSING SERVICES","UTILITIES"
"http://statistics.data.gov.uk/id/local-authority/43UM","Woking Borough Council","05/07/2023","02/08/2023","0000492141/056","CORONA ENERGY RETAIL 4 LIMITED","41080700","1001.89","HOUSING SERVICES - LANDLORDS EXPENSES","ELECTRICITY","D400","ELECTRICITY","HOUSING SERVICES","UTILITIES"
"http://statistics.data.gov.uk/id/local-authority/43UM","Woking Borough Council","05/07/2023","02/08/2023","0000492141/057","CORONA ENERGY RETAIL 4 LIMITED","41080700","164.00","HOUSING SERVICES - LANDLORDS EXPENSES","ELECTRICITY","D400","ELECTRICITY","HOUSING SERVICES","UTILITIES"
"http://statistics.data.gov.uk/id/local-authority/43UM","Woking Borough Council","05/07/2023","02/08/2023","0000492141/058","CORONA ENERGY RETAIL 4 LIMITED","41080700","481.16","HOUSING SERVICES - LANDLORDS EXPENSES","ELECTRICITY","D400","ELECTRICITY","HOUSING SERVICES","UTILITIES"
"http://statistics.data.gov.uk/id/local-authority/43UM","Woking Borough Council","05/07/2023","02/08/2023","0000492141/059","CORONA ENERGY RETAIL 4 LIMITED","41080700","1052.64","HOUSING SERVICES - LANDLORDS EXPENSES","ELECTRICITY","D400","ELECTRICITY","HOUSING SERVICES","UTILITIES"
"http://statistics.data.gov.uk/id/local-authority/43UM","Woking Borough Council","05/07/2023","02/08/2023","0000492141/060","CORONA ENERGY RETAIL 4 LIMITED","41080700","96.65","HOUSING SERVICES - LANDLORDS EXPENSES","ELECTRICITY","D400","ELECTRICITY","HOUSING SERVICES","UTILITIES"
"http://statistics.data.gov.uk/id/local-authority/43UM","Woking Borough Council","05/07/2023","02/08/2023","0000492141/061","CORONA ENERGY RETAIL 4 LIMITED","41080700","87.02","HOUSING SERVICES - LANDLORDS EXPENSES","ELECTRICITY","D400","ELECTRICITY","HOUSING SERVICES","UTILITIES"
"http://statistics.data.gov.uk/id/local-authority/43UM","Woking Borough Council","05/07/2023","02/08/2023","0000492141/062","CORONA ENERGY RETAIL 4 LIMITED","41080700","464.54","HOUSING SERVICES - LANDLORDS EXPENSES","ELECTRICITY","D400","ELECTRICITY","HOUSING SERVICES","UTILITIES"
"http://statistics.data.gov.uk/id/local-authority/43UM","Woking Borough Council","05/07/2023","02/08/2023","0000492141/063","CORONA ENERGY RETAIL 4 LIMITED","41080700","101.90","HOUSING SERVICES - LANDLORDS EXPENSES","ELECTRICITY","D400","ELECTRICITY","HOUSING SERVICES","UTILITIES"
"http://statistics.data.gov.uk/id/local-authority/43UM","Woking Borough Council","05/07/2023","02/08/2023","0000492141/064","CORONA ENERGY RETAIL 4 LIMITED","41080700","341.22","HOUSING SERVICES - LANDLORDS EXPENSES","ELECTRICITY","D400","ELECTRICITY","HOUSING SERVICES","UTILITIES"
"http://statistics.data.gov.uk/id/local-authority/43UM","Woking Borough Council","05/07/2023","02/08/2023","0000492141/065","CORONA ENERGY RETAIL 4 LIMITED","41080700","98.40","HOUSING SERVICES - LANDLORDS EXPENSES","ELECTRICITY","D400","ELECTRICITY","HOUSING SERVICES","UTILITIES"
"http://statistics.data.gov.uk/id/local-authority/43UM","Woking Borough Council","05/07/2023","02/08/2023","0000492141/066","CORONA ENERGY RETAIL 4 LIMITED","41080700","90.53","HOUSING SERVICES - LANDLORDS EXPENSES","ELECTRICITY","D400","ELECTRICITY","HOUSING SERVICES","UTILITIES"
"http://statistics.data.gov.uk/id/local-authority/43UM","Woking Borough Council","05/07/2023","02/08/2023","0000492141/067","CORONA ENERGY RETAIL 4 LIMITED","41080700","1472.11","HOUSING SERVICES - LANDLORDS EXPENSES","ELECTRICITY","D400","ELECTRICITY","HOUSING SERVICES","UTILITIES"
"http://statistics.data.gov.uk/id/local-authority/43UM","Woking Borough Council","05/07/2023","02/08/2023","0000492141/068","CORONA ENERGY RETAIL 4 LIMITED","41080700","88.78","HOUSING SERVICES - LANDLORDS EXPENSES","ELECTRICITY","D400","ELECTRICITY","HOUSING SERVICES","UTILITIES"
"http://statistics.data.gov.uk/id/local-authority/43UM","Woking Borough Council","05/07/2023","02/08/2023","0000492141/069","CORONA ENERGY RETAIL 4 LIMITED","41080700","144.75","HOUSING SERVICES - LANDLORDS EXPENSES","ELECTRICITY","D400","ELECTRICITY","HOUSING SERVICES","UTILITIES"
"http://statistics.data.gov.uk/id/local-authority/43UM","Woking Borough Council","05/07/2023","02/08/2023","0000492141/070","CORONA ENERGY RETAIL 4 LIMITED","41080700","83.53","HOUSING SERVICES - LANDLORDS EXPENSES","ELECTRICITY","D400","ELECTRICITY","HOUSING SERVICES","UTILITIES"
"http://statistics.data.gov.uk/id/local-authority/43UM","Woking Borough Council","05/07/2023","02/08/2023","0000492141/071","CORONA ENERGY RETAIL 4 LIMITED","41080700","24.93","HOUSING SERVICES - LANDLORDS EXPENSES","ELECTRICITY","D400","ELECTRICITY","HOUSING SERVICES","UTILITIES"
"http://statistics.data.gov.uk/id/local-authority/43UM","Woking Borough Council","05/07/2023","02/08/2023","0000492141/072","CORONA ENERGY RETAIL 4 LIMITED","41080700","442.67","HOUSING SERVICES - LANDLORDS EXPENSES","ELECTRICITY","D400","ELECTRICITY","HOUSING SERVICES","UTILITIES"
"http://statistics.data.gov.uk/id/local-authority/43UM","Woking Borough Council","05/07/2023","02/08/2023","0000492141/073","CORONA ENERGY RETAIL 4 LIMITED","41080700","21.44","HOUSING SERVICES - LANDLORDS EXPENSES","ELECTRICITY","D400","ELECTRICITY","HOUSING SERVICES","UTILITIES"
"http://statistics.data.gov.uk/id/local-authority/43UM","Woking Borough Council","05/07/2023","02/08/2023","0000492141/074","CORONA ENERGY RETAIL 4 LIMITED","41080700","90.53","HOUSING SERVICES - LANDLORDS EXPENSES","ELECTRICITY","D400","ELECTRICITY","HOUSING SERVICES","UTILITIES"
"http://statistics.data.gov.uk/id/local-authority/43UM","Woking Borough Council","05/07/2023","02/08/2023","0000492141/075","CORONA ENERGY RETAIL 4 LIMITED","41080700","170.66","NEIGHBOURHOOD SERVICES - PARKS-GENERAL","ELECTRICITY","D400","ELECTRICITY","NEIGHBOURHOOD SERVICES","UTILITIES"
"http://statistics.data.gov.uk/id/local-authority/43UM","Woking Borough Council","05/07/2023","02/08/2023","0000492141/076","CORONA ENERGY RETAIL 4 LIMITED","41080700","1525.62","HOUSING SERVICES - 121 CHERTSEY ROAD","ELECTRICITY","D400","ELECTRICITY","HOUSING SERVICES","UTILITIES"
"http://statistics.data.gov.uk/id/local-authority/43UM","Woking Borough Council","05/07/2023","02/08/2023","0000492141/077","CORONA ENERGY RETAIL 4 LIMITED","41080700","30.61","HOUSING SERVICES - 121 CHERTSEY ROAD","ELECTRICITY","D400","ELECTRICITY","HOUSING SERVICES","UTILITIES"
"http://statistics.data.gov.uk/id/local-authority/43UM","Woking Borough Council","05/07/2023","02/08/2023","0000492141/078","CORONA ENERGY RETAIL 4 LIMITED","41080700","43.10","HOUSING SERVICES - 121 CHERTSEY ROAD","ELECTRICITY","D400","ELECTRICITY","HOUSING SERVICES","UTILITIES"
"http://statistics.data.gov.uk/id/local-authority/43UM","Woking Borough Council","05/07/2023","02/08/2023","0000492141/079","CORONA ENERGY RETAIL 4 LIMITED","41080700","81.78","HOUSING SERVICES - TEMPORARY ACCOMMODATION","ELECTRICITY","D400","ELECTRICITY","HOUSING SERVICES","UTILITIES"
"http://statistics.data.gov.uk/id/local-authority/43UM","Woking Borough Council","05/07/2023","02/08/2023","0000492141/080","CORONA ENERGY RETAIL 4 LIMITED","41080700","-90.53","HOUSING SERVICES - TEMPORARY ACCOMMODATION","ELECTRICITY","D400","ELECTRICITY","HOUSING SERVICES","UTILITIES"
"http://statistics.data.gov.uk/id/local-authority/43UM","Woking Borough Council","05/07/2023","02/08/2023","0000492141/081","CORONA ENERGY RETAIL 4 LIMITED","41080700","-50.96","HOUSING SERVICES - TEMPORARY ACCOMMODATION","ELECTRICITY","D400","ELECTRICITY","HOUSING SERVICES","UTILITIES"
"http://statistics.data.gov.uk/id/local-authority/43UM","Woking Borough Council","05/07/2023","02/08/2023","0000492141/082","CORONA ENERGY RETAIL 4 LIMITED","41080700","-193.96","HOUSING SERVICES - TEMPORARY ACCOMMODATION","ELECTRICITY","D400","ELECTRICITY","HOUSING SERVICES","UTILITIES"
"http://statistics.data.gov.uk/id/local-authority/43UM","Woking Borough Council","05/07/2023","02/08/2023","0000492141/083","CORONA ENERGY RETAIL 4 LIMITED","41080700","-374.78","HOUSING SERVICES - TEMPORARY ACCOMMODATION","ELECTRICITY","D400","ELECTRICITY","HOUSING SERVICES","UTILITIES"
"http://statistics.data.gov.uk/id/local-authority/43UM","Woking Borough Council","05/07/2023","02/08/2023","0000492141/084","CORONA ENERGY RETAIL 4 LIMITED","41080700","-39.97","HOUSING SERVICES - TEMPORARY ACCOMMODATION","ELECTRICITY","D400","ELECTRICITY","HOUSING SERVICES","UTILITIES"
"http://statistics.data.gov.uk/id/local-authority/43UM","Woking Borough Council","05/07/2023","02/08/2023","0000492141/085","CORONA ENERGY RETAIL 4 LIMITED","41080700","-69.54","HOUSING SERVICES - TEMPORARY ACCOMMODATION","ELECTRICITY","D400","ELECTRICITY","HOUSING SERVICES","UTILITIES"
"http://statistics.data.gov.uk/id/local-authority/43UM","Woking Borough Council","05/07/2023","02/08/2023","0000492141/086","CORONA ENERGY RETAIL 4 LIMITED","41080700","42.42","HOUSING SERVICES - TEMPORARY ACCOMMODATION","ELECTRICITY","D400","ELECTRICITY","HOUSING SERVICES","UTILITIES"
"http://statistics.data.gov.uk/id/local-authority/43UM","Woking Borough Council","05/07/2023","02/08/2023","0000492141/087","CORONA ENERGY RETAIL 4 LIMITED","41080700","44.18","HOUSING SERVICES - TEMPORARY ACCOMMODATION","ELECTRICITY","D400","ELECTRICITY","HOUSING SERVICES","UTILITIES"
"http://statistics.data.gov.uk/id/local-authority/43UM","Woking Borough Council","05/07/2023","02/08/2023","0000492141/088","CORONA ENERGY RETAIL 4 LIMITED","41080700","27.24","HOUSING SERVICES - TEMPORARY ACCOMMODATION","ELECTRICITY","D400","ELECTRICITY","HOUSING SERVICES","UTILITIES"
"http://statistics.data.gov.uk/id/local-authority/43UM","Woking Borough Council","05/07/2023","02/08/2023","0000492141/089","CORONA ENERGY RETAIL 4 LIMITED","41080700","157.88","HOUSING SERVICES - TEMPORARY ACCOMMODATION","ELECTRICITY","D400","ELECTRICITY","HOUSING SERVICES","UTILITIES"
"http://statistics.data.gov.uk/id/local-authority/43UM","Woking Borough Council","05/07/2023","02/08/2023","0000492141/090","CORONA ENERGY RETAIL 4 LIMITED","41080700","351.16","HOUSING SERVICES - TEMPORARY ACCOMMODATION","ELECTRICITY","D400","ELECTRICITY","HOUSING SERVICES","UTILITIES"
"http://statistics.data.gov.uk/id/local-authority/43UM","Woking Borough Council","05/07/2023","02/08/2023","0000492141/091","CORONA ENERGY RETAIL 4 LIMITED","41080700","181.59","HOUSING SERVICES - TEMPORARY ACCOMMODATION","ELECTRICITY","D400","ELECTRICITY","HOUSING SERVICES","UTILITIES"
"http://statistics.data.gov.uk/id/local-authority/43UM","Woking Borough Council","05/07/2023","02/08/2023","0000492141/092","CORONA ENERGY RETAIL 4 LIMITED","41080700","20.71","HOUSING SERVICES - TEMPORARY ACCOMMODATION","ELECTRICITY","D400","ELECTRICITY","HOUSING SERVICES","UTILITIES"
"http://statistics.data.gov.uk/id/local-authority/43UM","Woking Borough Council","05/07/2023","02/08/2023","0000492141/093","CORONA ENERGY RETAIL 4 LIMITED","41080700","30.18","HOUSING SERVICES - TEMPORARY ACCOMMODATION","ELECTRICITY","D400","ELECTRICITY","HOUSING SERVICES","UTILITIES"
"http://statistics.data.gov.uk/id/local-authority/43UM","Woking Borough Council","05/07/2023","02/08/2023","0000492141/094","CORONA ENERGY RETAIL 4 LIMITED","41080700","31.05","HOUSING SERVICES - TEMPORARY ACCOMMODATION","ELECTRICITY","D400","ELECTRICITY","HOUSING SERVICES","UTILITIES"
"http://statistics.data.gov.uk/id/local-authority/43UM","Woking Borough Council","05/07/2023","02/08/2023","0000492141/095","CORONA ENERGY RETAIL 4 LIMITED","41080700","316.73","HOUSING SERVICES - LANDLORDS EXPENSES","ELECTRICITY","D400","ELECTRICITY","HOUSING SERVICES","UTILITIES"
"http://statistics.data.gov.uk/id/local-authority/43UM","Woking Borough Council","05/07/2023","02/08/2023","0000492141/096","CORONA ENERGY RETAIL 4 LIMITED","41080700","243.58","HOUSING SERVICES - TEMPORARY ACCOMMODATION","ELECTRICITY","D400","ELECTRICITY","HOUSING SERVICES","UTILITIES"
"http://statistics.data.gov.uk/id/local-authority/43UM","Woking Borough Council","05/07/2023","02/08/2023","0000492141/097","CORONA ENERGY RETAIL 4 LIMITED","41080700","215.60","HOUSING SERVICES - TEMPORARY ACCOMMODATION","ELECTRICITY","D400","ELECTRICITY","HOUSING SERVICES","UTILITIES"
"http://statistics.data.gov.uk/id/local-authority/43UM","Woking Borough Council","05/07/2023","02/08/2023","0000492141/098","CORONA ENERGY RETAIL 4 LIMITED","41080700","335.15","HOUSING SERVICES - TEMPORARY ACCOMMODATION","ELECTRICITY","D400","ELECTRICITY","HOUSING SERVICES","UTILITIES"
"http://statistics.data.gov.uk/id/local-authority/43UM","Woking Borough Council","05/07/2023","02/08/2023","0000492141/099","CORONA ENERGY RETAIL 4 LIMITED","41080700","370.08","HOUSING SERVICES - LANDLORDS EXPENSES","ELECTRICITY","D400","ELECTRICITY","HOUSING SERVICES","UTILITIES"
"http://statistics.data.gov.uk/id/local-authority/43UM","Woking Borough Council","05/07/2023","02/08/2023","0000492141/100","CORONA ENERGY RETAIL 4 LIMITED","41080700","147.38","HOUSING SERVICES - LANDLORDS EXPENSES","ELECTRICITY","D400","ELECTRICITY","HOUSING SERVICES","UTILITIES"
"http://statistics.data.gov.uk/id/local-authority/43UM","Woking Borough Council","05/07/2023","02/08/2023","0000492141/101","CORONA ENERGY RETAIL 4 LIMITED","41080700","524.34","HOUSING SERVICES - LANDLORDS EXPENSES","ELECTRICITY","D400","ELECTRICITY","HOUSING SERVICES","UTILITIES"
"http://statistics.data.gov.uk/id/local-authority/43UM","Woking Borough Council","05/07/2023","02/08/2023","0000492141/102","CORONA ENERGY RETAIL 4 LIMITED","41080700","213.00","HOUSING SERVICES - LANDLORDS EXPENSES","ELECTRICITY","D400","ELECTRICITY","HOUSING SERVICES","UTILITIES"
"http://statistics.data.gov.uk/id/local-authority/43UM","Woking Borough Council","05/07/2023","02/08/2023","0000492141/103","CORONA ENERGY RETAIL 4 LIMITED","41080700","399.27","HOUSING SERVICES - LANDLORDS EXPENSES","ELECTRICITY","D400","ELECTRICITY","HOUSING SERVICES","UTILITIES"
"http://statistics.data.gov.uk/id/local-authority/43UM","Woking Borough Council","05/07/2023","02/08/2023","0000492141/104","CORONA ENERGY RETAIL 4 LIMITED","41080700","33.67","HOUSING SERVICES - LANDLORDS EXPENSES","ELECTRICITY","D400","ELECTRICITY","HOUSING SERVICES","UTILITIES"
"http://statistics.data.gov.uk/id/local-authority/43UM","Woking Borough Council","05/07/2023","02/08/2023","0000492141/105","CORONA ENERGY RETAIL 4 LIMITED","41080700","10.93","HOUSING SERVICES - LANDLORDS EXPENSES","ELECTRICITY","D400","ELECTRICITY","HOUSING SERVICES","UTILITIES"
"http://statistics.data.gov.uk/id/local-authority/43UM","Woking Borough Council","05/07/2023","02/08/2023","0000492141/106","CORONA ENERGY RETAIL 4 LIMITED","41080700","172.41","HOUSING SERVICES - LANDLORDS EXPENSES","ELECTRICITY","D400","ELECTRICITY","HOUSING SERVICES","UTILITIES"
"http://statistics.data.gov.uk/id/local-authority/43UM","Woking Borough Council","05/07/2023","02/08/2023","0000492141/107","CORONA ENERGY RETAIL 4 LIMITED","41080700","104.52","HOUSING SERVICES - LANDLORDS EXPENSES","ELECTRICITY","D400","ELECTRICITY","HOUSING SERVICES","UTILITIES"
"http://statistics.data.gov.uk/id/local-authority/43UM","Woking Borough Council","05/07/2023","02/08/2023","0000492141/108","CORONA ENERGY RETAIL 4 LIMITED","41080700","584.71","HOUSING SERVICES - LANDLORDS EXPENSES","ELECTRICITY","D400","ELECTRICITY","HOUSING SERVICES","UTILITIES"
"http://statistics.data.gov.uk/id/local-authority/43UM","Woking Borough Council","05/07/2023","02/08/2023","0000492141/109","CORONA ENERGY RETAIL 4 LIMITED","41080700","1071.53","HOUSING SERVICES - LANDLORDS EXPENSES","ELECTRICITY","D400","ELECTRICITY","HOUSING SERVICES","UTILITIES"
"http://statistics.data.gov.uk/id/local-authority/43UM","Woking Borough Council","05/07/2023","02/08/2023","0000492141/110","CORONA ENERGY RETAIL 4 LIMITED","41080700","114.14","HOUSING SERVICES - LANDLORDS EXPENSES","ELECTRICITY","D400","ELECTRICITY","HOUSING SERVICES","UTILITIES"
"http://statistics.data.gov.uk/id/local-authority/43UM","Woking Borough Council","05/07/2023","02/08/2023","0000492141/111","CORONA ENERGY RETAIL 4 LIMITED","41080700","1337.42","ASSET MANAGEMENT - WOLSEY PLACE","ELECTRICITY","D400","ELECTRICITY","ASSET MANAGEMENT","UTILITIES"
"http://statistics.data.gov.uk/id/local-authority/43UM","Woking Borough Council","05/07/2023","02/08/2023","0000492141/112","CORONA ENERGY RETAIL 4 LIMITED","41080700","11.73","ASSET MANAGEMENT - WOLSEY PLACE","CLIMATE CHANGE LEVY","D430","CLIMATE CHANGE LEVY","ASSET MANAGEMENT","UTILITIES"
"http://statistics.data.gov.uk/id/local-authority/43UM","Woking Borough Council","05/07/2023","02/08/2023","0000492141/113","CORONA ENERGY RETAIL 4 LIMITED","41080700","2522.62","ASSET MANAGEMENT - PROVINCIAL HOUSE","ELECTRICITY","D400","ELECTRICITY","ASSET MANAGEMENT","UTILITIES"
"http://statistics.data.gov.uk/id/local-authority/43UM","Woking Borough Council","05/07/2023","02/08/2023","0000492141/114","CORONA ENERGY RETAIL 4 LIMITED","41080700","22.03","ASSET MANAGEMENT - PROVINCIAL HOUSE","CLIMATE CHANGE LEVY","D430","CLIMATE CHANGE LEVY","ASSET MANAGEMENT","UTILITIES"
"http://statistics.data.gov.uk/id/local-authority/43UM","Woking Borough Council","05/07/2023","02/08/2023","0000492141/115","CORONA ENERGY RETAIL 4 LIMITED","41080700","905.71","ASSET MANAGEMENT - PROVINCIAL HOUSE","ELECTRICITY","D400","ELECTRICITY","ASSET MANAGEMENT","UTILITIES"
"http://statistics.data.gov.uk/id/local-authority/43UM","Woking Borough Council","05/07/2023","02/08/2023","0000492141/116","CORONA ENERGY RETAIL 4 LIMITED","41080700","137.76","ASSET MANAGEMENT - TOWN SQUARE LIGHTING","ELECTRICITY","D400","ELECTRICITY","ASSET MANAGEMENT","UTILITIES"
"http://statistics.data.gov.uk/id/local-authority/43UM","Woking Borough Council","05/07/2023","02/08/2023","0000492141/117","CORONA ENERGY RETAIL 4 LIMITED","41080700","520.52","ASSET MANAGEMENT - TOWN SQUARE LIGHTING","ELECTRICITY","D400","ELECTRICITY","ASSET MANAGEMENT","UTILITIES"
"http://statistics.data.gov.uk/id/local-authority/43UM","Woking Borough Council","05/07/2023","02/08/2023","0000492141/118","CORONA ENERGY RETAIL 4 LIMITED","41080700","117868.99","ASSET MANAGEMENT - WOLSEY PLACE","ELECTRICITY","D400","ELECTRICITY","ASSET MANAGEMENT","UTILITIES"
"http://statistics.data.gov.uk/id/local-authority/43UM","Woking Borough Council","05/07/2023","02/08/2023","0000492141/119","CORONA ENERGY RETAIL 4 LIMITED","41080700","1087.77","ASSET MANAGEMENT - WOLSEY PLACE","CLIMATE CHANGE LEVY","D430","CLIMATE CHANGE LEVY","ASSET MANAGEMENT","UTILITIES"
"http://statistics.data.gov.uk/id/local-authority/43UM","Woking Borough Council","05/07/2023","02/08/2023","0000492141/120","CORONA ENERGY RETAIL 4 LIMITED","41080700","186.41","HOUSING SERVICES - LANDLORDS EXPENSES","ELECTRICITY","D400","ELECTRICITY","HOUSING SERVICES","UTILITIES"
"http://statistics.data.gov.uk/id/local-authority/43UM","Woking Borough Council","05/07/2023","02/08/2023","0000492141/121","CORONA ENERGY RETAIL 4 LIMITED","41080700","163.12","HOUSING SERVICES - LANDLORDS EXPENSES","ELECTRICITY","D400","ELECTRICITY","HOUSING SERVICES","UTILITIES"
"http://statistics.data.gov.uk/id/local-authority/43UM","Woking Borough Council","05/07/2023","02/08/2023","0000492141/122","CORONA ENERGY RETAIL 4 LIMITED","41080700","800.72","HOUSING SERVICES - LANDLORDS EXPENSES","ELECTRICITY","D400","ELECTRICITY","HOUSING SERVICES","UTILITIES"
"http://statistics.data.gov.uk/id/local-authority/43UM","Woking Borough Council","05/07/2023","02/08/2023","0000492141/123","CORONA ENERGY RETAIL 4 LIMITED","41080700","-130.75","HOUSING SERVICES - LANDLORDS EXPENSES","ELECTRICITY","D400","ELECTRICITY","HOUSING SERVICES","UTILITIES"
"http://statistics.data.gov.uk/id/local-authority/43UM","Woking Borough Council","05/07/2023","02/08/2023","0000492141/124","CORONA ENERGY RETAIL 4 LIMITED","41080700","-71.24","HOUSING SERVICES - LANDLORDS EXPENSES","ELECTRICITY","D400","ELECTRICITY","HOUSING SERVICES","UTILITIES"
"http://statistics.data.gov.uk/id/local-authority/43UM","Woking Borough Council","05/07/2023","02/08/2023","0000492141/125","CORONA ENERGY RETAIL 4 LIMITED","41080700","48.21","HOUSING SERVICES - LANDLORDS EXPENSES","ELECTRICITY","D400","ELECTRICITY","HOUSING SERVICES","UTILITIES"
"http://statistics.data.gov.uk/id/local-authority/43UM","Woking Borough Council","05/07/2023","02/08/2023","0000492141/126","CORONA ENERGY RETAIL 4 LIMITED","41080700","85.27","HOUSING SERVICES - LANDLORDS EXPENSES","ELECTRICITY","D400","ELECTRICITY","HOUSING SERVICES","UTILITIES"
"http://statistics.data.gov.uk/id/local-authority/43UM","Woking Borough Council","05/07/2023","02/08/2023","0000492141/127","CORONA ENERGY RETAIL 4 LIMITED","41080700","78.28","HOUSING SERVICES - LANDLORDS EXPENSES","ELECTRICITY","D400","ELECTRICITY","HOUSING SERVICES","UTILITIES"
"http://statistics.data.gov.uk/id/local-authority/43UM","Woking Borough Council","05/07/2023","02/08/2023","0000492141/128","CORONA ENERGY RETAIL 4 LIMITED","41080700","112.40","HOUSING SERVICES - LANDLORDS EXPENSES","ELECTRICITY","D400","ELECTRICITY","HOUSING SERVICES","UTILITIES"
"http://statistics.data.gov.uk/id/local-authority/43UM","Woking Borough Council","05/07/2023","02/08/2023","0000492141/129","CORONA ENERGY RETAIL 4 LIMITED","41080700","184.66","HOUSING SERVICES - LANDLORDS EXPENSES","ELECTRICITY","D400","ELECTRICITY","HOUSING SERVICES","UTILITIES"
"http://statistics.data.gov.uk/id/local-authority/43UM","Woking Borough Council","05/07/2023","02/08/2023","0000492141/130","CORONA ENERGY RETAIL 4 LIMITED","41080700","443.55","HOUSING SERVICES - LANDLORDS EXPENSES","ELECTRICITY","D400","ELECTRICITY","HOUSING SERVICES","UTILITIES"
"http://statistics.data.gov.uk/id/local-authority/43UM","Woking Borough Council","05/07/2023","02/08/2023","0000492141/131","CORONA ENERGY RETAIL 4 LIMITED","41080700","293.11","HOUSING SERVICES - LANDLORDS EXPENSES","ELECTRICITY","D400","ELECTRICITY","HOUSING SERVICES","UTILITIES"
"http://statistics.data.gov.uk/id/local-authority/43UM","Woking Borough Council","05/07/2023","02/08/2023","0000492141/132","CORONA ENERGY RETAIL 4 LIMITED","41080700","347.67","HOUSING SERVICES - LANDLORDS EXPENSES","ELECTRICITY","D400","ELECTRICITY","HOUSING SERVICES","UTILITIES"
"http://statistics.data.gov.uk/id/local-authority/43UM","Woking Borough Council","05/07/2023","02/08/2023","0000492141/133","CORONA ENERGY RETAIL 4 LIMITED","41080700","114.14","HOUSING SERVICES - LANDLORDS EXPENSES","ELECTRICITY","D400","ELECTRICITY","HOUSING SERVICES","UTILITIES"
"http://statistics.data.gov.uk/id/local-authority/43UM","Woking Borough Council","05/07/2023","02/08/2023","0000492141/134","CORONA ENERGY RETAIL 4 LIMITED","41080700","-67.47","HOUSING SERVICES - LANDLORDS EXPENSES","ELECTRICITY","D400","ELECTRICITY","HOUSING SERVICES","UTILITIES"
"http://statistics.data.gov.uk/id/local-authority/43UM","Woking Borough Council","05/07/2023","02/08/2023","0000492141/135","CORONA ENERGY RETAIL 4 LIMITED","41080700","-122.89","HOUSING SERVICES - LANDLORDS EXPENSES","ELECTRICITY","D400","ELECTRICITY","HOUSING SERVICES","UTILITIES"
"http://statistics.data.gov.uk/id/local-authority/43UM","Woking Borough Council","05/07/2023","02/08/2023","0000492141/136","CORONA ENERGY RETAIL 4 LIMITED","41080700","89.66","HOUSING SERVICES - LANDLORDS EXPENSES","ELECTRICITY","D400","ELECTRICITY","HOUSING SERVICES","UTILITIES"
"http://statistics.data.gov.uk/id/local-authority/43UM","Woking Borough Council","05/07/2023","02/08/2023","0000492141/137","CORONA ENERGY RETAIL 4 LIMITED","41080700","98.40","HOUSING SERVICES - LANDLORDS EXPENSES","ELECTRICITY","D400","ELECTRICITY","HOUSING SERVICES","UTILITIES"
"http://statistics.data.gov.uk/id/local-authority/43UM","Woking Borough Council","05/07/2023","02/08/2023","0000492141/138","CORONA ENERGY RETAIL 4 LIMITED","41080700","54.74","HOUSING SERVICES - LANDLORDS EXPENSES","ELECTRICITY","D400","ELECTRICITY","HOUSING SERVICES","UTILITIES"
"http://statistics.data.gov.uk/id/local-authority/43UM","Woking Borough Council","05/07/2023","02/08/2023","0000492141/139","CORONA ENERGY RETAIL 4 LIMITED","41080700","152.62","HOUSING SERVICES - LANDLORDS EXPENSES","ELECTRICITY","D400","ELECTRICITY","HOUSING SERVICES","UTILITIES"
"http://statistics.data.gov.uk/id/local-authority/43UM","Woking Borough Council","05/07/2023","02/08/2023","0000492141/140","CORONA ENERGY RETAIL 4 LIMITED","41080700","136.01","HOUSING SERVICES - LANDLORDS EXPENSES","ELECTRICITY","D400","ELECTRICITY","HOUSING SERVICES","UTILITIES"
"http://statistics.data.gov.uk/id/local-authority/43UM","Woking Borough Council","05/07/2023","02/08/2023","0000492141/141","CORONA ENERGY RETAIL 4 LIMITED","41080700","10.06","HOUSING SERVICES - LANDLORDS EXPENSES","ELECTRICITY","D400","ELECTRICITY","HOUSING SERVICES","UTILITIES"
"http://statistics.data.gov.uk/id/local-authority/43UM","Woking Borough Council","05/07/2023","02/08/2023","0000492141/142","CORONA ENERGY RETAIL 4 LIMITED","41080700","10.06","HOUSING SERVICES - LANDLORDS EXPENSES","ELECTRICITY","D400","ELECTRICITY","HOUSING SERVICES","UTILITIES"
"http://statistics.data.gov.uk/id/local-authority/43UM","Woking Borough Council","05/07/2023","02/08/2023","0000492141/143","CORONA ENERGY RETAIL 4 LIMITED","41080700","89.66","HOUSING SERVICES - LANDLORDS EXPENSES","ELECTRICITY","D400","ELECTRICITY","HOUSING SERVICES","UTILITIES"
"http://statistics.data.gov.uk/id/local-authority/43UM","Woking Borough Council","05/07/2023","02/08/2023","0000492141/144","CORONA ENERGY RETAIL 4 LIMITED","41080700","10.06","HOUSING SERVICES - LANDLORDS EXPENSES","ELECTRICITY","D400","ELECTRICITY","HOUSING SERVICES","UTILITIES"
"http://statistics.data.gov.uk/id/local-authority/43UM","Woking Borough Council","05/07/2023","02/08/2023","0000492141/145","CORONA ENERGY RETAIL 4 LIMITED","41080700","69.54","HOUSING SERVICES - LANDLORDS EXPENSES","ELECTRICITY","D400","ELECTRICITY","HOUSING SERVICES","UTILITIES"
"http://statistics.data.gov.uk/id/local-authority/43UM","Woking Borough Council","05/07/2023","02/08/2023","0000492141/146","CORONA ENERGY RETAIL 4 LIMITED","41080700","21.44","HOUSING SERVICES - LANDLORDS EXPENSES","ELECTRICITY","D400","ELECTRICITY","HOUSING SERVICES","UTILITIES"
"http://statistics.data.gov.uk/id/local-authority/43UM","Woking Borough Council","05/07/2023","02/08/2023","0000492141/147","CORONA ENERGY RETAIL 4 LIMITED","41080700","169.24","HOUSING SERVICES - LANDLORDS EXPENSES","ELECTRICITY","D400","ELECTRICITY","HOUSING SERVICES","UTILITIES"
"http://statistics.data.gov.uk/id/local-authority/43UM","Woking Borough Council","05/07/2023","02/08/2023","0000492141/148","CORONA ENERGY RETAIL 4 LIMITED","41080700","170.99","HOUSING SERVICES - LANDLORDS EXPENSES","ELECTRICITY","D400","ELECTRICITY","HOUSING SERVICES","UTILITIES"
"http://statistics.data.gov.uk/id/local-authority/43UM","Woking Borough Council","05/07/2023","02/08/2023","0000492141/149","CORONA ENERGY RETAIL 4 LIMITED","41080700","53.79","HOUSING SERVICES - LANDLORDS EXPENSES","ELECTRICITY","D400","ELECTRICITY","HOUSING SERVICES","UTILITIES"
"http://statistics.data.gov.uk/id/local-authority/43UM","Woking Borough Council","05/07/2023","02/08/2023","0000492141/150","CORONA ENERGY RETAIL 4 LIMITED","41080700","17.93","HOUSING SERVICES - LANDLORDS EXPENSES","ELECTRICITY","D400","ELECTRICITY","HOUSING SERVICES","UTILITIES"
"http://statistics.data.gov.uk/id/local-authority/43UM","Woking Borough Council","05/07/2023","02/08/2023","0000492141/151","CORONA ENERGY RETAIL 4 LIMITED","41080700","87.02","HOUSING SERVICES - LANDLORDS EXPENSES","ELECTRICITY","D400","ELECTRICITY","HOUSING SERVICES","UTILITIES"
"http://statistics.data.gov.uk/id/local-authority/43UM","Woking Borough Council","05/07/2023","02/08/2023","0000492141/152","CORONA ENERGY RETAIL 4 LIMITED","41080700","55.54","HOUSING SERVICES - LANDLORDS EXPENSES","ELECTRICITY","D400","ELECTRICITY","HOUSING SERVICES","UTILITIES"
"http://statistics.data.gov.uk/id/local-authority/43UM","Woking Borough Council","05/07/2023","02/08/2023","0000492141/153","CORONA ENERGY RETAIL 4 LIMITED","41080700","38.05","HOUSING SERVICES - LANDLORDS EXPENSES","ELECTRICITY","D400","ELECTRICITY","HOUSING SERVICES","UTILITIES"
"http://statistics.data.gov.uk/id/local-authority/43UM","Woking Borough Council","05/07/2023","02/08/2023","0000492141/154","CORONA ENERGY RETAIL 4 LIMITED","41080700","44.18","HOUSING SERVICES - LANDLORDS EXPENSES","ELECTRICITY","D400","ELECTRICITY","HOUSING SERVICES","UTILITIES"
"http://statistics.data.gov.uk/id/local-authority/43UM","Woking Borough Council","05/07/2023","02/08/2023","0000492141/155","CORONA ENERGY RETAIL 4 LIMITED","41080700","10.06","HOUSING SERVICES - TEMPORARY ACCOMMODATION","ELECTRICITY","D400","ELECTRICITY","HOUSING SERVICES","UTILITIES"
"http://statistics.data.gov.uk/id/local-authority/43UM","Woking Borough Council","05/07/2023","02/08/2023","0000492141/156","CORONA ENERGY RETAIL 4 LIMITED","41080700","55.21","HOUSING SERVICES - LANDLORDS EXPENSES","ELECTRICITY","D400","ELECTRICITY","HOUSING SERVICES","UTILITIES"
"http://statistics.data.gov.uk/id/local-authority/43UM","Woking Borough Council","05/07/2023","02/08/2023","0000492141/157","CORONA ENERGY RETAIL 4 LIMITED","41080700","62.53","HOUSING SERVICES - LANDLORDS EXPENSES","ELECTRICITY","D400","ELECTRICITY","HOUSING SERVICES","UTILITIES"
"http://statistics.data.gov.uk/id/local-authority/43UM","Woking Borough Council","05/07/2023","02/08/2023","0000492141/158","CORONA ENERGY RETAIL 4 LIMITED","41080700","32.80","HOUSING SERVICES - LANDLORDS EXPENSES","ELECTRICITY","D400","ELECTRICITY","HOUSING SERVICES","UTILITIES"
"http://statistics.data.gov.uk/id/local-authority/43UM","Woking Borough Council","05/07/2023","02/08/2023","0000492141/159","CORONA ENERGY RETAIL 4 LIMITED","41080700","16.18","HOUSING SERVICES - LANDLORDS EXPENSES","ELECTRICITY","D400","ELECTRICITY","HOUSING SERVICES","UTILITIES"
"http://statistics.data.gov.uk/id/local-authority/43UM","Woking Borough Council","05/07/2023","02/08/2023","0000492141/160","CORONA ENERGY RETAIL 4 LIMITED","41080700","3557.23","HOUSING SERVICES - LANDLORDS EXPENSES","ELECTRICITY","D400","ELECTRICITY","HOUSING SERVICES","UTILITIES"
"http://statistics.data.gov.uk/id/local-authority/43UM","Woking Borough Council","05/07/2023","02/08/2023","0000492141/161","CORONA ENERGY RETAIL 4 LIMITED","41080700","115.89","HOUSING SERVICES - LANDLORDS EXPENSES","ELECTRICITY","D400","ELECTRICITY","HOUSING SERVICES","UTILITIES"
"http://statistics.data.gov.uk/id/local-authority/43UM","Woking Borough Council","05/07/2023","02/08/2023","0000492141/162","CORONA ENERGY RETAIL 4 LIMITED","41080700","109.76","HOUSING SERVICES - LANDLORDS EXPENSES","ELECTRICITY","D400","ELECTRICITY","HOUSING SERVICES","UTILITIES"
"http://statistics.data.gov.uk/id/local-authority/43UM","Woking Borough Council","05/07/2023","02/08/2023","0000492141/163","CORONA ENERGY RETAIL 4 LIMITED","41080700","42.42","HOUSING SERVICES - LANDLORDS EXPENSES","ELECTRICITY","D400","ELECTRICITY","HOUSING SERVICES","UTILITIES"
"http://statistics.data.gov.uk/id/local-authority/43UM","Woking Borough Council","05/07/2023","02/08/2023","0000492141/164","CORONA ENERGY RETAIL 4 LIMITED","41080700","74.78","HOUSING SERVICES - LANDLORDS EXPENSES","ELECTRICITY","D400","ELECTRICITY","HOUSING SERVICES","UTILITIES"
"http://statistics.data.gov.uk/id/local-authority/43UM","Woking Borough Council","05/07/2023","02/08/2023","0000492141/165","CORONA ENERGY RETAIL 4 LIMITED","41080700","99.27","HOUSING SERVICES - LANDLORDS EXPENSES","ELECTRICITY","D400","ELECTRICITY","HOUSING SERVICES","UTILITIES"
"http://statistics.data.gov.uk/id/local-authority/43UM","Woking Borough Council","05/07/2023","02/08/2023","0000492141/166","CORONA ENERGY RETAIL 4 LIMITED","41080700","108.89","HOUSING SERVICES - LANDLORDS EXPENSES","ELECTRICITY","D400","ELECTRICITY","HOUSING SERVICES","UTILITIES"
"http://statistics.data.gov.uk/id/local-authority/43UM","Woking Borough Council","05/07/2023","02/08/2023","0000492141/167","CORONA ENERGY RETAIL 4 LIMITED","41080700","206.53","HOUSING SERVICES - LANDLORDS EXPENSES","ELECTRICITY","D400","ELECTRICITY","HOUSING SERVICES","UTILITIES"
"http://statistics.data.gov.uk/id/local-authority/43UM","Woking Borough Council","05/07/2023","02/08/2023","0000492141/168","CORONA ENERGY RETAIL 4 LIMITED","41080700","127.26","HOUSING SERVICES - LANDLORDS EXPENSES","ELECTRICITY","D400","ELECTRICITY","HOUSING SERVICES","UTILITIES"
"http://statistics.data.gov.uk/id/local-authority/43UM","Woking Borough Council","05/07/2023","02/08/2023","0000492141/169","CORONA ENERGY RETAIL 4 LIMITED","41080700","482.03","HOUSING SERVICES - LANDLORDS EXPENSES","ELECTRICITY","D400","ELECTRICITY","HOUSING SERVICES","UTILITIES"
"http://statistics.data.gov.uk/id/local-authority/43UM","Woking Borough Council","05/07/2023","02/08/2023","0000492141/170","CORONA ENERGY RETAIL 4 LIMITED","41080700","36.76","HOUSING SERVICES - LANDLORDS EXPENSES","ELECTRICITY","D400","ELECTRICITY","HOUSING SERVICES","UTILITIES"
"http://statistics.data.gov.uk/id/local-authority/43UM","Woking Borough Council","05/07/2023","02/08/2023","0000492141/171","CORONA ENERGY RETAIL 4 LIMITED","41080700","391.95","HOUSING SERVICES - LANDLORDS EXPENSES","ELECTRICITY","D400","ELECTRICITY","HOUSING SERVICES","UTILITIES"
"http://statistics.data.gov.uk/id/local-authority/43UM","Woking Borough Council","05/07/2023","02/08/2023","0000492141/172","CORONA ENERGY RETAIL 4 LIMITED","41080700","260.20","HOUSING SERVICES - LANDLORDS EXPENSES","ELECTRICITY","D400","ELECTRICITY","HOUSING SERVICES","UTILITIES"
"http://statistics.data.gov.uk/id/local-authority/43UM","Woking Borough Council","05/07/2023","02/08/2023","0000492141/173","CORONA ENERGY RETAIL 4 LIMITED","41080700","16.18","HOUSING SERVICES - LANDLORDS EXPENSES","ELECTRICITY","D400","ELECTRICITY","HOUSING SERVICES","UTILITIES"
"http://statistics.data.gov.uk/id/local-authority/43UM","Woking Borough Council","05/07/2023","02/08/2023","0000492141/174","CORONA ENERGY RETAIL 4 LIMITED","41080700","1445.14","ASSET MANAGEMENT - PEACOCKS - GLOCS CHAMB","ELECTRICITY","D400","ELECTRICITY","ASSET MANAGEMENT","UTILITIES"
"http://statistics.data.gov.uk/id/local-authority/43UM","Woking Borough Council","05/07/2023","02/08/2023","0000492141/175","CORONA ENERGY RETAIL 4 LIMITED","41080700","13.87","ASSET MANAGEMENT - PEACOCKS - GLOCS CHAMB","CLIMATE CHANGE LEVY","D430","CLIMATE CHANGE LEVY","ASSET MANAGEMENT","UTILITIES"
"http://statistics.data.gov.uk/id/local-authority/43UM","Woking Borough Council","05/07/2023","02/08/2023","0000492141/176","CORONA ENERGY RETAIL 4 LIMITED","41080700","93.15","HOUSING SERVICES - LANDLORDS EXPENSES","ELECTRICITY","D400","ELECTRICITY","HOUSING SERVICES","UTILITIES"
"http://statistics.data.gov.uk/id/local-authority/43UM","Woking Borough Council","05/07/2023","02/08/2023","0000492141/177","CORONA ENERGY RETAIL 4 LIMITED","41080700","11934.49","HOUSING SERVICES - LANDLORDS EXPENSES","ELECTRICITY","D400","ELECTRICITY","HOUSING SERVICES","UTILITIES"
"http://statistics.data.gov.uk/id/local-authority/43UM","Woking Borough Council","05/07/2023","02/08/2023","0000492141/178","CORONA ENERGY RETAIL 4 LIMITED","41080700","105.43","HOUSING SERVICES - LANDLORDS EXPENSES","CLIMATE CHANGE LEVY","D430","CLIMATE CHANGE LEVY","HOUSING SERVICES","UTILITIES"
"http://statistics.data.gov.uk/id/local-authority/43UM","Woking Borough Council","05/07/2023","02/08/2023","0000492141/179","CORONA ENERGY RETAIL 4 LIMITED","41080700","236.26","HOUSING SERVICES - LANDLORDS EXPENSES","ELECTRICITY","D400","ELECTRICITY","HOUSING SERVICES","UTILITIES"
"http://statistics.data.gov.uk/id/local-authority/43UM","Woking Borough Council","05/07/2023","02/08/2023","0000492141/180","CORONA ENERGY RETAIL 4 LIMITED","41080700","424.63","HOUSING SERVICES - LANDLORDS EXPENSES","ELECTRICITY","D400","ELECTRICITY","HOUSING SERVICES","UTILITIES"
"http://statistics.data.gov.uk/id/local-authority/43UM","Woking Borough Council","05/07/2023","02/08/2023","0000492141/181","CORONA ENERGY RETAIL 4 LIMITED","41080700","1451.47","HOUSING SERVICES - LANDLORDS EXPENSES","ELECTRICITY","D400","ELECTRICITY","HOUSING SERVICES","UTILITIES"
"http://statistics.data.gov.uk/id/local-authority/43UM","Woking Borough Council","05/07/2023","02/08/2023","0000492141/182","CORONA ENERGY RETAIL 4 LIMITED","41080700","156.73","HOUSING SERVICES - LANDLORDS EXPENSES","ELECTRICITY","D400","ELECTRICITY","HOUSING SERVICES","UTILITIES"
"http://statistics.data.gov.uk/id/local-authority/43UM","Woking Borough Council","05/07/2023","02/08/2023","0000492141/183","CORONA ENERGY RETAIL 4 LIMITED","41080700","16.18","HOUSING SERVICES - LANDLORDS EXPENSES","ELECTRICITY","D400","ELECTRICITY","HOUSING SERVICES","UTILITIES"
"http://statistics.data.gov.uk/id/local-authority/43UM","Woking Borough Council","05/07/2023","02/08/2023","0000492141/184","CORONA ENERGY RETAIL 4 LIMITED","41080700","157.88","HOUSING SERVICES - LANDLORDS EXPENSES","ELECTRICITY","D400","ELECTRICITY","HOUSING SERVICES","UTILITIES"
"http://statistics.data.gov.uk/id/local-authority/43UM","Woking Borough Council","05/07/2023","02/08/2023","0000492141/185","CORONA ENERGY RETAIL 4 LIMITED","41080700","219.97","ASSET MANAGEMENT - PUBLIC CONVENIENCES","ELECTRICITY","D400","ELECTRICITY","ASSET MANAGEMENT","UTILITIES"
"http://statistics.data.gov.uk/id/local-authority/43UM","Woking Borough Council","05/07/2023","02/08/2023","0000492141/186","CORONA ENERGY RETAIL 4 LIMITED","41080700","801.62","ASSET MANAGEMENT - PUBLIC CONVENIENCES","ELECTRICITY","D400","ELECTRICITY","ASSET MANAGEMENT","UTILITIES"
"http://statistics.data.gov.uk/id/local-authority/43UM","Woking Borough Council","05/07/2023","02/08/2023","0000492141/187","CORONA ENERGY RETAIL 4 LIMITED","41080700","84.40","HOUSING SERVICES - LANDLORDS EXPENSES","ELECTRICITY","D400","ELECTRICITY","HOUSING SERVICES","UTILITIES"
"http://statistics.data.gov.uk/id/local-authority/43UM","Woking Borough Council","05/07/2023","02/08/2023","0000492141/188","CORONA ENERGY RETAIL 4 LIMITED","41080700","120.26","HOUSING SERVICES - LANDLORDS EXPENSES","ELECTRICITY","D400","ELECTRICITY","HOUSING SERVICES","UTILITIES"
"http://statistics.data.gov.uk/id/local-authority/43UM","Woking Borough Council","05/07/2023","02/08/2023","0000492141/189","CORONA ENERGY RETAIL 4 LIMITED","41080700","121.14","HOUSING SERVICES - LANDLORDS EXPENSES","ELECTRICITY","D400","ELECTRICITY","HOUSING SERVICES","UTILITIES"
"http://statistics.data.gov.uk/id/local-authority/43UM","Woking Borough Council","05/07/2023","02/08/2023","0000492141/190","CORONA ENERGY RETAIL 4 LIMITED","41080700","91.40","HOUSING SERVICES - LANDLORDS EXPENSES","ELECTRICITY","D400","ELECTRICITY","HOUSING SERVICES","UTILITIES"
"http://statistics.data.gov.uk/id/local-authority/43UM","Woking Borough Council","05/07/2023","02/08/2023","0000492141/191","CORONA ENERGY RETAIL 4 LIMITED","41080700","267.74","HOUSING SERVICES - LANDLORDS EXPENSES","ELECTRICITY","D400","ELECTRICITY","HOUSING SERVICES","UTILITIES"
"http://statistics.data.gov.uk/id/local-authority/43UM","Woking Borough Council","05/07/2023","02/08/2023","0000492141/192","CORONA ENERGY RETAIL 4 LIMITED","41080700","357.83","HOUSING SERVICES - LANDLORDS EXPENSES","ELECTRICITY","D400","ELECTRICITY","HOUSING SERVICES","UTILITIES"
"http://statistics.data.gov.uk/id/local-authority/43UM","Woking Borough Council","05/07/2023","02/08/2023","0000492141/193","CORONA ENERGY RETAIL 4 LIMITED","41080700","739.51","HOUSING SERVICES - LANDLORDS EXPENSES","ELECTRICITY","D400","ELECTRICITY","HOUSING SERVICES","UTILITIES"
"http://statistics.data.gov.uk/id/local-authority/43UM","Woking Borough Council","05/07/2023","02/08/2023","0000492141/194","CORONA ENERGY RETAIL 4 LIMITED","41080700","18.80","HOUSING SERVICES - LANDLORDS EXPENSES","ELECTRICITY","D400","ELECTRICITY","HOUSING SERVICES","UTILITIES"
"http://statistics.data.gov.uk/id/local-authority/43UM","Woking Borough Council","05/07/2023","02/08/2023","0000492141/195","CORONA ENERGY RETAIL 4 LIMITED","41080700","385.83","HOUSING SERVICES - LANDLORDS EXPENSES","ELECTRICITY","D400","ELECTRICITY","HOUSING SERVICES","UTILITIES"
"http://statistics.data.gov.uk/id/local-authority/43UM","Woking Borough Council","05/07/2023","02/08/2023","0000492141/196","CORONA ENERGY RETAIL 4 LIMITED","41080700","38.48","HOUSING SERVICES - DISABLED FACILITIES GRANTS","ELECTRICITY","D400","ELECTRICITY","HOUSING SERVICES","UTILITIES"
"http://statistics.data.gov.uk/id/local-authority/43UM","Woking Borough Council","05/07/2023","02/08/2023","0000492141/197","CORONA ENERGY RETAIL 4 LIMITED","41080700","48.55","HOUSING SERVICES - LANDLORDS EXPENSES","ELECTRICITY","D400","ELECTRICITY","HOUSING SERVICES","UTILITIES"
"http://statistics.data.gov.uk/id/local-authority/43UM","Woking Borough Council","05/07/2023","02/08/2023","0000492141/198","CORONA ENERGY RETAIL 4 LIMITED","41080700","159.36","HOUSING SERVICES - LANDLORDS EXPENSES","ELECTRICITY","D400","ELECTRICITY","HOUSING SERVICES","UTILITIES"
"http://statistics.data.gov.uk/id/local-authority/43UM","Woking Borough Council","05/07/2023","02/08/2023","0000492141/199","CORONA ENERGY RETAIL 4 LIMITED","41080700","96.65","HOUSING SERVICES - LANDLORDS EXPENSES","ELECTRICITY","D400","ELECTRICITY","HOUSING SERVICES","UTILITIES"
"http://statistics.data.gov.uk/id/local-authority/43UM","Woking Borough Council","05/07/2023","02/08/2023","0000492141/200","CORONA ENERGY RETAIL 4 LIMITED","41080700","474.16","HOUSING SERVICES - LANDLORDS EXPENSES","ELECTRICITY","D400","ELECTRICITY","HOUSING SERVICES","UTILITIES"
"http://statistics.data.gov.uk/id/local-authority/43UM","Woking Borough Council","05/07/2023","02/08/2023","0000492141/201","CORONA ENERGY RETAIL 4 LIMITED","41080700","359.58","ASSET MANAGEMENT - UNIT 15A MON WAY EAST","ELECTRICITY","D400","ELECTRICITY","ASSET MANAGEMENT","UTILITIES"
"http://statistics.data.gov.uk/id/local-authority/43UM","Woking Borough Council","05/07/2023","02/08/2023","0000492141/202","CORONA ENERGY RETAIL 4 LIMITED","41080700","5566.33","INDEPENDENT LIVING SERVICES - MOORCROFT","ELECTRICITY","D400","ELECTRICITY","INDEPENDENT LIVING SERVICES","UTILITIES"
"http://statistics.data.gov.uk/id/local-authority/43UM","Woking Borough Council","05/07/2023","02/08/2023","0000492141/203","CORONA ENERGY RETAIL 4 LIMITED","41080700","49.00","INDEPENDENT LIVING SERVICES - MOORCROFT","CLIMATE CHANGE LEVY","D430","CLIMATE CHANGE LEVY","INDEPENDENT LIVING SERVICES","UTILITIES"
"http://statistics.data.gov.uk/id/local-authority/43UM","Woking Borough Council","05/07/2023","02/08/2023","0000492141/204","CORONA ENERGY RETAIL 4 LIMITED","41080700","28.98","NEIGHBOURHOOD SERVICES - PARKS-GENERAL","ELECTRICITY","D400","ELECTRICITY","NEIGHBOURHOOD SERVICES","UTILITIES"
"http://statistics.data.gov.uk/id/local-authority/43UM","Woking Borough Council","05/07/2023","02/08/2023","0000492141/205","CORONA ENERGY RETAIL 4 LIMITED","41080700","614.10","NEIGHBOURHOOD SERVICES - MUSLIM BURIAL GROUND PEACE GARDEN","ELECTRICITY","D400","ELECTRICITY","NEIGHBOURHOOD SERVICES","UTILITIES"
"http://statistics.data.gov.uk/id/local-authority/43UM","Woking Borough Council","05/07/2023","02/08/2023","0000492141/206","CORONA ENERGY RETAIL 4 LIMITED","41080700","21.44","NEIGHBOURHOOD SERVICES - PARKS-GENERAL","ELECTRICITY","D400","ELECTRICITY","NEIGHBOURHOOD SERVICES","UTILITIES"
"http://statistics.data.gov.uk/id/local-authority/43UM","Woking Borough Council","05/07/2023","02/08/2023","0000492141/207","CORONA ENERGY RETAIL 4 LIMITED","41080700","12.42","HOUSING SERVICES - LANDLORDS EXPENSES","ELECTRICITY","D400","ELECTRICITY","HOUSING SERVICES","UTILITIES"
"http://statistics.data.gov.uk/id/local-authority/43UM","Woking Borough Council","05/07/2023","02/08/2023","0000492141/208","CORONA ENERGY RETAIL 4 LIMITED","41080700","12.42","HOUSING SERVICES - LANDLORDS EXPENSES","ELECTRICITY","D400","ELECTRICITY","HOUSING SERVICES","UTILITIES"
"http://statistics.data.gov.uk/id/local-authority/43UM","Woking Borough Council","05/07/2023","02/08/2023","0000492141/209","CORONA ENERGY RETAIL 4 LIMITED","41080700","12.42","HOUSING SERVICES - LANDLORDS EXPENSES","ELECTRICITY","D400","ELECTRICITY","HOUSING SERVICES","UTILITIES"
"http://statistics.data.gov.uk/id/local-authority/43UM","Woking Borough Council","05/07/2023","02/08/2023","0000492141/210","CORONA ENERGY RETAIL 4 LIMITED","41080700","18.80","HOUSING SERVICES - LANDLORDS EXPENSES","ELECTRICITY","D400","ELECTRICITY","HOUSING SERVICES","UTILITIES"
"http://statistics.data.gov.uk/id/local-authority/43UM","Woking Borough Council","05/07/2023","02/08/2023","0000492141/211","CORONA ENERGY RETAIL 4 LIMITED","41080700","-155.24","HOUSING SERVICES - LANDLORDS EXPENSES","ELECTRICITY","D400","ELECTRICITY","HOUSING SERVICES","UTILITIES"
"http://statistics.data.gov.uk/id/local-authority/43UM","Woking Borough Council","05/07/2023","02/08/2023","0000492141/212","CORONA ENERGY RETAIL 4 LIMITED","41080700","-83.27","HOUSING SERVICES - LANDLORDS EXPENSES","ELECTRICITY","D400","ELECTRICITY","HOUSING SERVICES","UTILITIES"
"http://statistics.data.gov.uk/id/local-authority/43UM","Woking Borough Council","05/07/2023","02/08/2023","0000492141/213","CORONA ENERGY RETAIL 4 LIMITED","41080700","70.90","HOUSING SERVICES - LANDLORDS EXPENSES","ELECTRICITY","D400","ELECTRICITY","HOUSING SERVICES","UTILITIES"
"http://statistics.data.gov.uk/id/local-authority/43UM","Woking Borough Council","05/07/2023","02/08/2023","0000492141/214","CORONA ENERGY RETAIL 4 LIMITED","41080700","130.75","HOUSING SERVICES - LANDLORDS EXPENSES","ELECTRICITY","D400","ELECTRICITY","HOUSING SERVICES","UTILITIES"
"http://statistics.data.gov.uk/id/local-authority/43UM","Woking Borough Council","05/07/2023","02/08/2023","0000492141/215","CORONA ENERGY RETAIL 4 LIMITED","41080700","46.80","HOUSING SERVICES - LANDLORDS EXPENSES","ELECTRICITY","D400","ELECTRICITY","HOUSING SERVICES","UTILITIES"
"http://statistics.data.gov.uk/id/local-authority/43UM","Woking Borough Council","05/07/2023","02/08/2023","0000492141/216","CORONA ENERGY RETAIL 4 LIMITED","41080700","102.44","HOUSING SERVICES - LANDLORDS EXPENSES","ELECTRICITY","D400","ELECTRICITY","HOUSING SERVICES","UTILITIES"
"http://statistics.data.gov.uk/id/local-authority/43UM","Woking Borough Council","05/07/2023","02/08/2023","0000492141/217","CORONA ENERGY RETAIL 4 LIMITED","41080700","321.98","HOUSING SERVICES - LANDLORDS EXPENSES","ELECTRICITY","D400","ELECTRICITY","HOUSING SERVICES","UTILITIES"
"http://statistics.data.gov.uk/id/local-authority/43UM","Woking Borough Council","05/07/2023","02/08/2023","0000492141/218","CORONA ENERGY RETAIL 4 LIMITED","41080700","105.94","HOUSING SERVICES - LANDLORDS EXPENSES","ELECTRICITY","D400","ELECTRICITY","HOUSING SERVICES","UTILITIES"
"http://statistics.data.gov.uk/id/local-authority/43UM","Woking Borough Council","05/07/2023","02/08/2023","0000492141/219","CORONA ENERGY RETAIL 4 LIMITED","41080700","91.40","HOUSING SERVICES - LANDLORDS EXPENSES","ELECTRICITY","D400","ELECTRICITY","HOUSING SERVICES","UTILITIES"
"http://statistics.data.gov.uk/id/local-authority/43UM","Woking Borough Council","05/07/2023","02/08/2023","0000492141/220","CORONA ENERGY RETAIL 4 LIMITED","41080700","318.81","HOUSING SERVICES - LANDLORDS EXPENSES","ELECTRICITY","D400","ELECTRICITY","HOUSING SERVICES","UTILITIES"
"http://statistics.data.gov.uk/id/local-authority/43UM","Woking Borough Council","05/07/2023","02/08/2023","0000492141/221","CORONA ENERGY RETAIL 4 LIMITED","41080700","31.05","HOUSING SERVICES - LANDLORDS EXPENSES","ELECTRICITY","D400","ELECTRICITY","HOUSING SERVICES","UTILITIES"
"http://statistics.data.gov.uk/id/local-authority/43UM","Woking Borough Council","05/07/2023","02/08/2023","0000492141/222","CORONA ENERGY RETAIL 4 LIMITED","41080700","64.28","HOUSING SERVICES - LANDLORDS EXPENSES","ELECTRICITY","D400","ELECTRICITY","HOUSING SERVICES","UTILITIES"
"http://statistics.data.gov.uk/id/local-authority/43UM","Woking Borough Council","05/07/2023","02/08/2023","0000492141/223","CORONA ENERGY RETAIL 4 LIMITED","41080700","45.05","HOUSING SERVICES - LANDLORDS EXPENSES","ELECTRICITY","D400","ELECTRICITY","HOUSING SERVICES","UTILITIES"
"http://statistics.data.gov.uk/id/local-authority/43UM","Woking Borough Council","05/07/2023","02/08/2023","0000492141/224","CORONA ENERGY RETAIL 4 LIMITED","41080700","18395.70","ASSET MANAGEMENT - PEACOCK WALK MARKET","ELECTRICITY","D400","ELECTRICITY","ASSET MANAGEMENT","UTILITIES"
"http://statistics.data.gov.uk/id/local-authority/43UM","Woking Borough Council","05/07/2023","02/08/2023","0000492141/225","CORONA ENERGY RETAIL 4 LIMITED","41080700","168.45","ASSET MANAGEMENT - PEACOCK WALK MARKET","CLIMATE CHANGE LEVY","D430","CLIMATE CHANGE LEVY","ASSET MANAGEMENT","UTILITIES"
"http://statistics.data.gov.uk/id/local-authority/43UM","Woking Borough Council","05/07/2023","02/08/2023","0000492141/226","CORONA ENERGY RETAIL 4 LIMITED","41080700","-19.41","HOUSING SERVICES - LANDLORDS EXPENSES","ELECTRICITY","D400","ELECTRICITY","HOUSING SERVICES","UTILITIES"
"http://statistics.data.gov.uk/id/local-authority/43UM","Woking Borough Council","05/07/2023","02/08/2023","0000492141/227","CORONA ENERGY RETAIL 4 LIMITED","41080700","-15.85","HOUSING SERVICES - LANDLORDS EXPENSES","ELECTRICITY","D400","ELECTRICITY","HOUSING SERVICES","UTILITIES"
"http://statistics.data.gov.uk/id/local-authority/43UM","Woking Borough Council","05/07/2023","02/08/2023","0000492141/228","CORONA ENERGY RETAIL 4 LIMITED","41080700","12.42","HOUSING SERVICES - LANDLORDS EXPENSES","ELECTRICITY","D400","ELECTRICITY","HOUSING SERVICES","UTILITIES"
"http://statistics.data.gov.uk/id/local-authority/43UM","Woking Borough Council","05/07/2023","02/08/2023","0000492141/229","CORONA ENERGY RETAIL 4 LIMITED","41080700","12.42","HOUSING SERVICES - LANDLORDS EXPENSES","ELECTRICITY","D400","ELECTRICITY","HOUSING SERVICES","UTILITIES"
"http://statistics.data.gov.uk/id/local-authority/43UM","Woking Borough Council","05/07/2023","02/08/2023","0000492141/230","CORONA ENERGY RETAIL 4 LIMITED","41080700","12.42","HOUSING SERVICES - LANDLORDS EXPENSES","ELECTRICITY","D400","ELECTRICITY","HOUSING SERVICES","UTILITIES"
"http://statistics.data.gov.uk/id/local-authority/43UM","Woking Borough Council","05/07/2023","02/08/2023","0000492141/231","CORONA ENERGY RETAIL 4 LIMITED","41080700","-17.05","HOUSING SERVICES - LANDLORDS EXPENSES","ELECTRICITY","D400","ELECTRICITY","HOUSING SERVICES","UTILITIES"
"http://statistics.data.gov.uk/id/local-authority/43UM","Woking Borough Council","05/07/2023","02/08/2023","0000492141/232","CORONA ENERGY RETAIL 4 LIMITED","41080700","-13.16","HOUSING SERVICES - LANDLORDS EXPENSES","ELECTRICITY","D400","ELECTRICITY","HOUSING SERVICES","UTILITIES"
"http://statistics.data.gov.uk/id/local-authority/43UM","Woking Borough Council","05/07/2023","02/08/2023","0000492141/233","CORONA ENERGY RETAIL 4 LIMITED","41080700","10.06","HOUSING SERVICES - LANDLORDS EXPENSES","ELECTRICITY","D400","ELECTRICITY","HOUSING SERVICES","UTILITIES"
"http://statistics.data.gov.uk/id/local-authority/43UM","Woking Borough Council","05/07/2023","02/08/2023","0000492141/234","CORONA ENERGY RETAIL 4 LIMITED","41080700","10.06","HOUSING SERVICES - LANDLORDS EXPENSES","ELECTRICITY","D400","ELECTRICITY","HOUSING SERVICES","UTILITIES"
"http://statistics.data.gov.uk/id/local-authority/43UM","Woking Borough Council","05/07/2023","02/08/2023","0000492141/235","CORONA ENERGY RETAIL 4 LIMITED","41080700","10.06","HOUSING SERVICES - LANDLORDS EXPENSES","ELECTRICITY","D400","ELECTRICITY","HOUSING SERVICES","UTILITIES"
"http://statistics.data.gov.uk/id/local-authority/43UM","Woking Borough Council","05/07/2023","02/08/2023","0000492141/236","CORONA ENERGY RETAIL 4 LIMITED","41080700","113.27","HOUSING SERVICES - LANDLORDS EXPENSES","ELECTRICITY","D400","ELECTRICITY","HOUSING SERVICES","UTILITIES"
"http://statistics.data.gov.uk/id/local-authority/43UM","Woking Borough Council","05/07/2023","02/08/2023","0000492141/237","CORONA ENERGY RETAIL 4 LIMITED","41080700","22.31","HOUSING SERVICES - LANDLORDS EXPENSES","ELECTRICITY","D400","ELECTRICITY","HOUSING SERVICES","UTILITIES"
"http://statistics.data.gov.uk/id/local-authority/43UM","Woking Borough Council","05/07/2023","02/08/2023","0000492141/238","CORONA ENERGY RETAIL 4 LIMITED","41080700","13.23","NEIGHBOURHOOD SERVICES - PARKS-GENERAL","ELECTRICITY","D400","ELECTRICITY","NEIGHBOURHOOD SERVICES","UTILITIES"
"http://statistics.data.gov.uk/id/local-authority/43UM","Woking Borough Council","05/07/2023","02/08/2023","0000492141/239","CORONA ENERGY RETAIL 4 LIMITED","41080700","13.29","HOUSING SERVICES - LANDLORDS EXPENSES","ELECTRICITY","D400","ELECTRICITY","HOUSING SERVICES","UTILITIES"
"http://statistics.data.gov.uk/id/local-authority/43UM","Woking Borough Council","05/07/2023","02/08/2023","0000492141/240","CORONA ENERGY RETAIL 4 LIMITED","41080700","506.52","HOUSING SERVICES - LANDLORDS EXPENSES","ELECTRICITY","D400","ELECTRICITY","HOUSING SERVICES","UTILITIES"
"http://statistics.data.gov.uk/id/local-authority/43UM","Woking Borough Council","05/07/2023","02/08/2023","0000492141/241","CORONA ENERGY RETAIL 4 LIMITED","41080700","177.72","HOUSING SERVICES - LANDLORDS EXPENSES","ELECTRICITY","D400","ELECTRICITY","HOUSING SERVICES","UTILITIES"
"http://statistics.data.gov.uk/id/local-authority/43UM","Woking Borough Council","05/07/2023","02/08/2023","0000492141/242","CORONA ENERGY RETAIL 4 LIMITED","41080700","57.90","HOUSING SERVICES - LANDLORDS EXPENSES","ELECTRICITY","D400","ELECTRICITY","HOUSING SERVICES","UTILITIES"
"http://statistics.data.gov.uk/id/local-authority/43UM","Woking Borough Council","05/07/2023","02/08/2023","0000492141/243","CORONA ENERGY RETAIL 4 LIMITED","41080700","127.00","HOUSING SERVICES - LANDLORDS EXPENSES","ELECTRICITY","D400","ELECTRICITY","HOUSING SERVICES","UTILITIES"
"http://statistics.data.gov.uk/id/local-authority/43UM","Woking Borough Council","05/07/2023","02/08/2023","0000492141/244","CORONA ENERGY RETAIL 4 LIMITED","41080700","192.59","HOUSING SERVICES - LANDLORDS EXPENSES","ELECTRICITY","D400","ELECTRICITY","HOUSING SERVICES","UTILITIES"
"http://statistics.data.gov.uk/id/local-authority/43UM","Woking Borough Council","05/07/2023","02/08/2023","0000492141/245","CORONA ENERGY RETAIL 4 LIMITED","41080700","80.90","HOUSING SERVICES - LANDLORDS EXPENSES","ELECTRICITY","D400","ELECTRICITY","HOUSING SERVICES","UTILITIES"
"http://statistics.data.gov.uk/id/local-authority/43UM","Woking Borough Council","05/07/2023","02/08/2023","0000492141/246","CORONA ENERGY RETAIL 4 LIMITED","41080700","3637.94","NEIGHBOURHOOD SERVICES - HEATHSIDE CRESCENT","ELECTRICITY","D400","ELECTRICITY","NEIGHBOURHOOD SERVICES","UTILITIES"
"http://statistics.data.gov.uk/id/local-authority/43UM","Woking Borough Council","05/07/2023","02/08/2023","0000492141/247","CORONA ENERGY RETAIL 4 LIMITED","41080700","33.99","NEIGHBOURHOOD SERVICES - HEATHSIDE CRESCENT","CLIMATE CHANGE LEVY","D430","CLIMATE CHANGE LEVY","NEIGHBOURHOOD SERVICES","UTILITIES"
"http://statistics.data.gov.uk/id/local-authority/43UM","Woking Borough Council","05/07/2023","02/08/2023","0000492141/248","CORONA ENERGY RETAIL 4 LIMITED","41080700","447.04","HOUSING SERVICES - LANDLORDS EXPENSES","ELECTRICITY","D400","ELECTRICITY","HOUSING SERVICES","UTILITIES"
"http://statistics.data.gov.uk/id/local-authority/43UM","Woking Borough Council","05/07/2023","02/08/2023","0000492141/249","CORONA ENERGY RETAIL 4 LIMITED","41080700","730.43","HOUSING SERVICES - LANDLORDS EXPENSES","ELECTRICITY","D400","ELECTRICITY","HOUSING SERVICES","UTILITIES"
"http://statistics.data.gov.uk/id/local-authority/43UM","Woking Borough Council","05/07/2023","02/08/2023","0000492141/250","CORONA ENERGY RETAIL 4 LIMITED","41080700","31.93","HOUSING SERVICES - LANDLORDS EXPENSES","ELECTRICITY","D400","ELECTRICITY","HOUSING SERVICES","UTILITIES"
"http://statistics.data.gov.uk/id/local-authority/43UM","Woking Borough Council","05/07/2023","02/08/2023","0000492141/251","CORONA ENERGY RETAIL 4 LIMITED","41080700","35.42","HOUSING SERVICES - LANDLORDS EXPENSES","ELECTRICITY","D400","ELECTRICITY","HOUSING SERVICES","UTILITIES"
"http://statistics.data.gov.uk/id/local-authority/43UM","Woking Borough Council","05/07/2023","02/08/2023","0000492141/252","CORONA ENERGY RETAIL 4 LIMITED","41080700","16.18","HOUSING SERVICES - LANDLORDS EXPENSES","ELECTRICITY","D400","ELECTRICITY","HOUSING SERVICES","UTILITIES"
"http://statistics.data.gov.uk/id/local-authority/43UM","Woking Borough Council","05/07/2023","02/08/2023","0000492141/253","CORONA ENERGY RETAIL 4 LIMITED","41080700","209.48","HOUSING SERVICES - LANDLORDS EXPENSES","ELECTRICITY","D400","ELECTRICITY","HOUSING SERVICES","UTILITIES"
"http://statistics.data.gov.uk/id/local-authority/43UM","Woking Borough Council","05/07/2023","02/08/2023","0000492141/254","CORONA ENERGY RETAIL 4 LIMITED","41080700","782.38","ASSET MANAGEMENT - PUBLIC CONVENIENCES","ELECTRICITY","D400","ELECTRICITY","ASSET MANAGEMENT","UTILITIES"
"http://statistics.data.gov.uk/id/local-authority/43UM","Woking Borough Council","05/07/2023","02/08/2023","0000492141/255","CORONA ENERGY RETAIL 4 LIMITED","41080700","255.50","HOUSING SERVICES - LANDLORDS EXPENSES","ELECTRICITY","D400","ELECTRICITY","HOUSING SERVICES","UTILITIES"
"http://statistics.data.gov.uk/id/local-authority/43UM","Woking Borough Council","05/07/2023","02/08/2023","0000492141/256","CORONA ENERGY RETAIL 4 LIMITED","41080700","835.73","HOUSING SERVICES - LANDLORDS EXPENSES","ELECTRICITY","D400","ELECTRICITY","HOUSING SERVICES","UTILITIES"
"http://statistics.data.gov.uk/id/local-authority/43UM","Woking Borough Council","05/07/2023","02/08/2023","0000492141/257","CORONA ENERGY RETAIL 4 LIMITED","41080700","33.67","HOUSING SERVICES - LANDLORDS EXPENSES","ELECTRICITY","D400","ELECTRICITY","HOUSING SERVICES","UTILITIES"
"http://statistics.data.gov.uk/id/local-authority/43UM","Woking Borough Council","05/07/2023","02/08/2023","0000492141/258","CORONA ENERGY RETAIL 4 LIMITED","41080700","567.75","ASSET MANAGEMENT - PUBLIC CONVENIENCES","ELECTRICITY","D400","ELECTRICITY","ASSET MANAGEMENT","UTILITIES"
"http://statistics.data.gov.uk/id/local-authority/43UM","Woking Borough Council","05/07/2023","02/08/2023","0000492141/259","CORONA ENERGY RETAIL 4 LIMITED","41080700","-288.91","NEIGHBOURHOOD SERVICES - PARKS-GENERAL","ELECTRICITY","D400","ELECTRICITY","NEIGHBOURHOOD SERVICES","UTILITIES"
"http://statistics.data.gov.uk/id/local-authority/43UM","Woking Borough Council","05/07/2023","02/08/2023","0000492141/260","CORONA ENERGY RETAIL 4 LIMITED","41080700","-249.73","NEIGHBOURHOOD SERVICES - PARKS-GENERAL","ELECTRICITY","D400","ELECTRICITY","NEIGHBOURHOOD SERVICES","UTILITIES"
"http://statistics.data.gov.uk/id/local-authority/43UM","Woking Borough Council","05/07/2023","02/08/2023","0000492141/261","CORONA ENERGY RETAIL 4 LIMITED","41080700","-279.28","NEIGHBOURHOOD SERVICES - PARKS-GENERAL","ELECTRICITY","D400","ELECTRICITY","NEIGHBOURHOOD SERVICES","UTILITIES"
"http://statistics.data.gov.uk/id/local-authority/43UM","Woking Borough Council","05/07/2023","02/08/2023","0000492141/262","CORONA ENERGY RETAIL 4 LIMITED","41080700","-495.15","NEIGHBOURHOOD SERVICES - PARKS-GENERAL","ELECTRICITY","D400","ELECTRICITY","NEIGHBOURHOOD SERVICES","UTILITIES"
"http://statistics.data.gov.uk/id/local-authority/43UM","Woking Borough Council","05/07/2023","02/08/2023","0000492141/263","CORONA ENERGY RETAIL 4 LIMITED","41080700","-256.26","NEIGHBOURHOOD SERVICES - PARKS-GENERAL","ELECTRICITY","D400","ELECTRICITY","NEIGHBOURHOOD SERVICES","UTILITIES"
"http://statistics.data.gov.uk/id/local-authority/43UM","Woking Borough Council","05/07/2023","02/08/2023","0000492141/264","CORONA ENERGY RETAIL 4 LIMITED","41080700","255.91","NEIGHBOURHOOD SERVICES - PARKS-GENERAL","ELECTRICITY","D400","ELECTRICITY","NEIGHBOURHOOD SERVICES","UTILITIES"
"http://statistics.data.gov.uk/id/local-authority/43UM","Woking Borough Council","05/07/2023","02/08/2023","0000492141/265","CORONA ENERGY RETAIL 4 LIMITED","41080700","287.88","NEIGHBOURHOOD SERVICES - PARKS-GENERAL","ELECTRICITY","D400","ELECTRICITY","NEIGHBOURHOOD SERVICES","UTILITIES"
"http://statistics.data.gov.uk/id/local-authority/43UM","Woking Borough Council","05/07/2023","02/08/2023","0000492141/266","CORONA ENERGY RETAIL 4 LIMITED","41080700","299.91","NEIGHBOURHOOD SERVICES - PARKS-GENERAL","ELECTRICITY","D400","ELECTRICITY","NEIGHBOURHOOD SERVICES","UTILITIES"
"http://statistics.data.gov.uk/id/local-authority/43UM","Woking Borough Council","05/07/2023","02/08/2023","0000492141/267","CORONA ENERGY RETAIL 4 LIMITED","41080700","438.30","NEIGHBOURHOOD SERVICES - PARKS-GENERAL","ELECTRICITY","D400","ELECTRICITY","NEIGHBOURHOOD SERVICES","UTILITIES"
"http://statistics.data.gov.uk/id/local-authority/43UM","Woking Borough Council","05/07/2023","02/08/2023","0000492141/268","CORONA ENERGY RETAIL 4 LIMITED","41080700","510.02","NEIGHBOURHOOD SERVICES - PARKS-GENERAL","ELECTRICITY","D400","ELECTRICITY","NEIGHBOURHOOD SERVICES","UTILITIES"
"http://statistics.data.gov.uk/id/local-authority/43UM","Woking Borough Council","05/07/2023","02/08/2023","0000492141/269","CORONA ENERGY RETAIL 4 LIMITED","41080700","267.60","NEIGHBOURHOOD SERVICES - PARKS-GENERAL","ELECTRICITY","D400","ELECTRICITY","NEIGHBOURHOOD SERVICES","UTILITIES"
"http://statistics.data.gov.uk/id/local-authority/43UM","Woking Borough Council","05/07/2023","02/08/2023","0000492141/270","CORONA ENERGY RETAIL 4 LIMITED","41080700","300.17","HOUSING SERVICES - LANDLORDS EXPENSES","ELECTRICITY","D400","ELECTRICITY","HOUSING SERVICES","UTILITIES"
"http://statistics.data.gov.uk/id/local-authority/43UM","Woking Borough Council","05/07/2023","02/08/2023","0000492141/271","CORONA ENERGY RETAIL 4 LIMITED","41080700","1370.13","HOUSING SERVICES - LANDLORDS EXPENSES","ELECTRICITY","D400","ELECTRICITY","HOUSING SERVICES","UTILITIES"
"http://statistics.data.gov.uk/id/local-authority/43UM","Woking Borough Council","05/07/2023","02/08/2023","0000492141/272","CORONA ENERGY RETAIL 4 LIMITED","41080700","29.30","HOUSING SERVICES - LANDLORDS EXPENSES","ELECTRICITY","D400","ELECTRICITY","HOUSING SERVICES","UTILITIES"
"http://statistics.data.gov.uk/id/local-authority/43UM","Woking Borough Council","05/07/2023","02/08/2023","0000492141/273","CORONA ENERGY RETAIL 4 LIMITED","41080700","25.81","HOUSING SERVICES - LANDLORDS EXPENSES","ELECTRICITY","D400","ELECTRICITY","HOUSING SERVICES","UTILITIES"
"http://statistics.data.gov.uk/id/local-authority/43UM","Woking Borough Council","05/07/2023","02/08/2023","0000492141/274","CORONA ENERGY RETAIL 4 LIMITED","41080700","-16.18","HOUSING SERVICES - LANDLORDS EXPENSES","ELECTRICITY","D400","ELECTRICITY","HOUSING SERVICES","UTILITIES"
"http://statistics.data.gov.uk/id/local-authority/43UM","Woking Borough Council","05/07/2023","02/08/2023","0000492141/275","CORONA ENERGY RETAIL 4 LIMITED","41080700","-21.40","HOUSING SERVICES - LANDLORDS EXPENSES","ELECTRICITY","D400","ELECTRICITY","HOUSING SERVICES","UTILITIES"
"http://statistics.data.gov.uk/id/local-authority/43UM","Woking Borough Council","05/07/2023","02/08/2023","0000492141/276","CORONA ENERGY RETAIL 4 LIMITED","41080700","-12.47","HOUSING SERVICES - LANDLORDS EXPENSES","ELECTRICITY","D400","ELECTRICITY","HOUSING SERVICES","UTILITIES"
"http://statistics.data.gov.uk/id/local-authority/43UM","Woking Borough Council","05/07/2023","02/08/2023","0000492141/277","CORONA ENERGY RETAIL 4 LIMITED","41080700","-17.05","HOUSING SERVICES - LANDLORDS EXPENSES","ELECTRICITY","D400","ELECTRICITY","HOUSING SERVICES","UTILITIES"
"http://statistics.data.gov.uk/id/local-authority/43UM","Woking Borough Council","05/07/2023","02/08/2023","0000492141/278","CORONA ENERGY RETAIL 4 LIMITED","41080700","17.93","HOUSING SERVICES - LANDLORDS EXPENSES","ELECTRICITY","D400","ELECTRICITY","HOUSING SERVICES","UTILITIES"
"http://statistics.data.gov.uk/id/local-authority/43UM","Woking Borough Council","05/07/2023","02/08/2023","0000492141/279","CORONA ENERGY RETAIL 4 LIMITED","41080700","20.71","HOUSING SERVICES - LANDLORDS EXPENSES","ELECTRICITY","D400","ELECTRICITY","HOUSING SERVICES","UTILITIES"
"http://statistics.data.gov.uk/id/local-authority/43UM","Woking Borough Council","05/07/2023","02/08/2023","0000492141/280","CORONA ENERGY RETAIL 4 LIMITED","41080700","13.56","HOUSING SERVICES - LANDLORDS EXPENSES","ELECTRICITY","D400","ELECTRICITY","HOUSING SERVICES","UTILITIES"
"http://statistics.data.gov.uk/id/local-authority/43UM","Woking Borough Council","05/07/2023","02/08/2023","0000492141/281","CORONA ENERGY RETAIL 4 LIMITED","41080700","10.06","HOUSING SERVICES - LANDLORDS EXPENSES","ELECTRICITY","D400","ELECTRICITY","HOUSING SERVICES","UTILITIES"
"http://statistics.data.gov.uk/id/local-authority/43UM","Woking Borough Council","05/07/2023","02/08/2023","0000492141/282","CORONA ENERGY RETAIL 4 LIMITED","41080700","10.06","HOUSING SERVICES - LANDLORDS EXPENSES","ELECTRICITY","D400","ELECTRICITY","HOUSING SERVICES","UTILITIES"
"http://statistics.data.gov.uk/id/local-authority/43UM","Woking Borough Council","05/07/2023","02/08/2023","0000492141/283","CORONA ENERGY RETAIL 4 LIMITED","41080700","10.06","HOUSING SERVICES - LANDLORDS EXPENSES","ELECTRICITY","D400","ELECTRICITY","HOUSING SERVICES","UTILITIES"
"http://statistics.data.gov.uk/id/local-authority/43UM","Woking Borough Council","05/07/2023","02/08/2023","0000492141/284","CORONA ENERGY RETAIL 4 LIMITED","41080700","198.98","HOUSING SERVICES - LANDLORDS EXPENSES","ELECTRICITY","D400","ELECTRICITY","HOUSING SERVICES","UTILITIES"
"http://statistics.data.gov.uk/id/local-authority/43UM","Woking Borough Council","05/07/2023","02/08/2023","0000492141/285","CORONA ENERGY RETAIL 4 LIMITED","41080700","-25.19","HOUSING SERVICES - LANDLORDS EXPENSES","ELECTRICITY","D400","ELECTRICITY","HOUSING SERVICES","UTILITIES"
"http://statistics.data.gov.uk/id/local-authority/43UM","Woking Borough Council","05/07/2023","02/08/2023","0000492141/286","CORONA ENERGY RETAIL 4 LIMITED","41080700","-46.80","HOUSING SERVICES - LANDLORDS EXPENSES","ELECTRICITY","D400","ELECTRICITY","HOUSING SERVICES","UTILITIES"
"http://statistics.data.gov.uk/id/local-authority/43UM","Woking Borough Council","05/07/2023","02/08/2023","0000492141/287","CORONA ENERGY RETAIL 4 LIMITED","41080700","-17.05","HOUSING SERVICES - LANDLORDS EXPENSES","ELECTRICITY","D400","ELECTRICITY","HOUSING SERVICES","UTILITIES"
"http://statistics.data.gov.uk/id/local-authority/43UM","Woking Borough Council","05/07/2023","02/08/2023","0000492141/288","CORONA ENERGY RETAIL 4 LIMITED","41080700","-12.47","HOUSING SERVICES - LANDLORDS EXPENSES","ELECTRICITY","D400","ELECTRICITY","HOUSING SERVICES","UTILITIES"
"http://statistics.data.gov.uk/id/local-authority/43UM","Woking Borough Council","05/07/2023","02/08/2023","0000492141/289","CORONA ENERGY RETAIL 4 LIMITED","41080700","-12.47","HOUSING SERVICES - LANDLORDS EXPENSES","ELECTRICITY","D400","ELECTRICITY","HOUSING SERVICES","UTILITIES"
"http://statistics.data.gov.uk/id/local-authority/43UM","Woking Borough Council","05/07/2023","02/08/2023","0000492141/290","CORONA ENERGY RETAIL 4 LIMITED","41080700","-17.05","HOUSING SERVICES - LANDLORDS EXPENSES","ELECTRICITY","D400","ELECTRICITY","HOUSING SERVICES","UTILITIES"
"http://statistics.data.gov.uk/id/local-authority/43UM","Woking Borough Council","05/07/2023","02/08/2023","0000492141/291","CORONA ENERGY RETAIL 4 LIMITED","41080700","31.05","HOUSING SERVICES - LANDLORDS EXPENSES","ELECTRICITY","D400","ELECTRICITY","HOUSING SERVICES","UTILITIES"
"http://statistics.data.gov.uk/id/local-authority/43UM","Woking Borough Council","05/07/2023","02/08/2023","0000492141/292","CORONA ENERGY RETAIL 4 LIMITED","41080700","30.18","HOUSING SERVICES - LANDLORDS EXPENSES","ELECTRICITY","D400","ELECTRICITY","HOUSING SERVICES","UTILITIES"
"http://statistics.data.gov.uk/id/local-authority/43UM","Woking Borough Council","05/07/2023","02/08/2023","0000492141/293","CORONA ENERGY RETAIL 4 LIMITED","41080700","19.34","HOUSING SERVICES - LANDLORDS EXPENSES","ELECTRICITY","D400","ELECTRICITY","HOUSING SERVICES","UTILITIES"
"http://statistics.data.gov.uk/id/local-authority/43UM","Woking Borough Council","05/07/2023","02/08/2023","0000492141/294","CORONA ENERGY RETAIL 4 LIMITED","41080700","10.06","HOUSING SERVICES - LANDLORDS EXPENSES","ELECTRICITY","D400","ELECTRICITY","HOUSING SERVICES","UTILITIES"
"http://statistics.data.gov.uk/id/local-authority/43UM","Woking Borough Council","05/07/2023","02/08/2023","0000492141/295","CORONA ENERGY RETAIL 4 LIMITED","41080700","10.06","HOUSING SERVICES - LANDLORDS EXPENSES","ELECTRICITY","D400","ELECTRICITY","HOUSING SERVICES","UTILITIES"
"http://statistics.data.gov.uk/id/local-authority/43UM","Woking Borough Council","05/07/2023","02/08/2023","0000492141/296","CORONA ENERGY RETAIL 4 LIMITED","41080700","10.06","HOUSING SERVICES - LANDLORDS EXPENSES","ELECTRICITY","D400","ELECTRICITY","HOUSING SERVICES","UTILITIES"
"http://statistics.data.gov.uk/id/local-authority/43UM","Woking Borough Council","05/07/2023","02/08/2023","0000492141/297","CORONA ENERGY RETAIL 4 LIMITED","41080700","10.06","HOUSING SERVICES - LANDLORDS EXPENSES","ELECTRICITY","D400","ELECTRICITY","HOUSING SERVICES","UTILITIES"
"http://statistics.data.gov.uk/id/local-authority/43UM","Woking Borough Council","05/07/2023","02/08/2023","0000492141/298","CORONA ENERGY RETAIL 4 LIMITED","41080700","10.06","HOUSING SERVICES - LANDLORDS EXPENSES","ELECTRICITY","D400","ELECTRICITY","HOUSING SERVICES","UTILITIES"
"http://statistics.data.gov.uk/id/local-authority/43UM","Woking Borough Council","05/07/2023","02/08/2023","0000492141/299","CORONA ENERGY RETAIL 4 LIMITED","41080700","10.06","HOUSING SERVICES - LANDLORDS EXPENSES","ELECTRICITY","D400","ELECTRICITY","HOUSING SERVICES","UTILITIES"
"http://statistics.data.gov.uk/id/local-authority/43UM","Woking Borough Council","05/07/2023","02/08/2023","0000492141/300","CORONA ENERGY RETAIL 4 LIMITED","41080700","139.18","HOUSING SERVICES - LANDLORDS EXPENSES","ELECTRICITY","D400","ELECTRICITY","HOUSING SERVICES","UTILITIES"
"http://statistics.data.gov.uk/id/local-authority/43UM","Woking Borough Council","05/07/2023","02/08/2023","0000492141/301","CORONA ENERGY RETAIL 4 LIMITED","41080700","51.17","HOUSING SERVICES - LANDLORDS EXPENSES","ELECTRICITY","D400","ELECTRICITY","HOUSING SERVICES","UTILITIES"
"http://statistics.data.gov.uk/id/local-authority/43UM","Woking Borough Council","05/07/2023","02/08/2023","0000492141/302","CORONA ENERGY RETAIL 4 LIMITED","41080700","80.03","HOUSING SERVICES - LANDLORDS EXPENSES","ELECTRICITY","D400","ELECTRICITY","HOUSING SERVICES","UTILITIES"
"http://statistics.data.gov.uk/id/local-authority/43UM","Woking Borough Council","05/07/2023","02/08/2023","0000492141/303","CORONA ENERGY RETAIL 4 LIMITED","41080700","25.81","HOUSING SERVICES - LANDLORDS EXPENSES","ELECTRICITY","D400","ELECTRICITY","HOUSING SERVICES","UTILITIES"
"http://statistics.data.gov.uk/id/local-authority/43UM","Woking Borough Council","05/07/2023","02/08/2023","0000492141/304","CORONA ENERGY RETAIL 4 LIMITED","41080700","19524.92","LEISURE SERVICES - SHEERWATER LEISURE CENTRE","UTILITIES","Q506","UTILITIES","LEISURE SERVICES","UTILITIES"
"http://statistics.data.gov.uk/id/local-authority/43UM","Woking Borough Council","05/07/2023","02/08/2023","0000492141/305","CORONA ENERGY RETAIL 4 LIMITED","41080700","493.23","LEISURE SERVICES - SHEERWATER LEISURE CENTRE","UTILITIES","Q506","UTILITIES","LEISURE SERVICES","UTILITIES"
"http://statistics.data.gov.uk/id/local-authority/43UM","Woking Borough Council","05/07/2023","02/08/2023","0000492141/306","CORONA ENERGY RETAIL 4 LIMITED","41080700","12.68","NEIGHBOURHOOD SERVICES - COUNTRYSIDE SERVICES - GENERAL","ELECTRICITY","D400","ELECTRICITY","NEIGHBOURHOOD SERVICES","UTILITIES"
"http://statistics.data.gov.uk/id/local-authority/43UM","Woking Borough Council","05/07/2023","02/08/2023","0000492141/307","CORONA ENERGY RETAIL 4 LIMITED","41080700","402.44","HOUSING SERVICES - LANDLORDS EXPENSES","ELECTRICITY","D400","ELECTRICITY","HOUSING SERVICES","UTILITIES"
"http://statistics.data.gov.uk/id/local-authority/43UM","Woking Borough Council","05/07/2023","02/08/2023","0000492141/308","CORONA ENERGY RETAIL 4 LIMITED","41080700","46.82","HOUSING SERVICES - LANDLORDS EXPENSES","ELECTRICITY","D400","ELECTRICITY","HOUSING SERVICES","UTILITIES"
"http://statistics.data.gov.uk/id/local-authority/43UM","Woking Borough Council","05/07/2023","02/08/2023","0000492141/309","CORONA ENERGY RETAIL 4 LIMITED","41080700","-16.18","HOUSING SERVICES - LANDLORDS EXPENSES","ELECTRICITY","D400","ELECTRICITY","HOUSING SERVICES","UTILITIES"
"http://statistics.data.gov.uk/id/local-authority/43UM","Woking Borough Council","05/07/2023","02/08/2023","0000492141/310","CORONA ENERGY RETAIL 4 LIMITED","41080700","-12.81","HOUSING SERVICES - LANDLORDS EXPENSES","ELECTRICITY","D400","ELECTRICITY","HOUSING SERVICES","UTILITIES"
"http://statistics.data.gov.uk/id/local-authority/43UM","Woking Borough Council","05/07/2023","02/08/2023","0000492141/311","CORONA ENERGY RETAIL 4 LIMITED","41080700","10.06","HOUSING SERVICES - LANDLORDS EXPENSES","ELECTRICITY","D400","ELECTRICITY","HOUSING SERVICES","UTILITIES"
"http://statistics.data.gov.uk/id/local-authority/43UM","Woking Borough Council","05/07/2023","02/08/2023","0000492141/312","CORONA ENERGY RETAIL 4 LIMITED","41080700","10.06","HOUSING SERVICES - LANDLORDS EXPENSES","ELECTRICITY","D400","ELECTRICITY","HOUSING SERVICES","UTILITIES"
"http://statistics.data.gov.uk/id/local-authority/43UM","Woking Borough Council","05/07/2023","02/08/2023","0000492141/313","CORONA ENERGY RETAIL 4 LIMITED","41080700","10.06","HOUSING SERVICES - LANDLORDS EXPENSES","ELECTRICITY","D400","ELECTRICITY","HOUSING SERVICES","UTILITIES"
"http://statistics.data.gov.uk/id/local-authority/43UM","Woking Borough Council","05/07/2023","02/08/2023","0000492141/314","CORONA ENERGY RETAIL 4 LIMITED","41080700","116.77","ASSET MANAGEMENT - PUBLIC CONVENIENCES","ELECTRICITY","D400","ELECTRICITY","ASSET MANAGEMENT","UTILITIES"
"http://statistics.data.gov.uk/id/local-authority/43UM","Woking Borough Council","05/07/2023","02/08/2023","0000492141/315","CORONA ENERGY RETAIL 4 LIMITED","41080700","16.18","HOUSING SERVICES - LANDLORDS EXPENSES","ELECTRICITY","D400","ELECTRICITY","HOUSING SERVICES","UTILITIES"
"http://statistics.data.gov.uk/id/local-authority/43UM","Woking Borough Council","05/07/2023","02/08/2023","0000492141/316","CORONA ENERGY RETAIL 4 LIMITED","41080700","291.36","HOUSING SERVICES - LANDLORDS EXPENSES","ELECTRICITY","D400","ELECTRICITY","HOUSING SERVICES","UTILITIES"
"http://statistics.data.gov.uk/id/local-authority/43UM","Woking Borough Council","05/07/2023","02/08/2023","0000492141/317","CORONA ENERGY RETAIL 4 LIMITED","41080700","-12.81","HOUSING SERVICES - LANDLORDS EXPENSES","ELECTRICITY","D400","ELECTRICITY","HOUSING SERVICES","UTILITIES"
"http://statistics.data.gov.uk/id/local-authority/43UM","Woking Borough Council","05/07/2023","02/08/2023","0000492141/318","CORONA ENERGY RETAIL 4 LIMITED","41080700","-16.18","HOUSING SERVICES - LANDLORDS EXPENSES","ELECTRICITY","D400","ELECTRICITY","HOUSING SERVICES","UTILITIES"
"http://statistics.data.gov.uk/id/local-authority/43UM","Woking Borough Council","05/07/2023","02/08/2023","0000492141/319","CORONA ENERGY RETAIL 4 LIMITED","41080700","10.06","HOUSING SERVICES - LANDLORDS EXPENSES","ELECTRICITY","D400","ELECTRICITY","HOUSING SERVICES","UTILITIES"
"http://statistics.data.gov.uk/id/local-authority/43UM","Woking Borough Council","05/07/2023","02/08/2023","0000492141/320","CORONA ENERGY RETAIL 4 LIMITED","41080700","10.06","HOUSING SERVICES - LANDLORDS EXPENSES","ELECTRICITY","D400","ELECTRICITY","HOUSING SERVICES","UTILITIES"
"http://statistics.data.gov.uk/id/local-authority/43UM","Woking Borough Council","05/07/2023","02/08/2023","0000492141/321","CORONA ENERGY RETAIL 4 LIMITED","41080700","10.06","HOUSING SERVICES - LANDLORDS EXPENSES","ELECTRICITY","D400","ELECTRICITY","HOUSING SERVICES","UTILITIES"
"http://statistics.data.gov.uk/id/local-authority/43UM","Woking Borough Council","05/07/2023","02/08/2023","0000492141/322","CORONA ENERGY RETAIL 4 LIMITED","41080700","231.02","ASSET MANAGEMENT - PUBLIC CONVENIENCES","ELECTRICITY","D400","ELECTRICITY","ASSET MANAGEMENT","UTILITIES"
"http://statistics.data.gov.uk/id/local-authority/43UM","Woking Borough Council","05/07/2023","02/08/2023","0000492141/323","CORONA ENERGY RETAIL 4 LIMITED","41080700","43.29","HOUSING SERVICES - LANDLORDS EXPENSES","ELECTRICITY","D400","ELECTRICITY","HOUSING SERVICES","UTILITIES"
"http://statistics.data.gov.uk/id/local-authority/43UM","Woking Borough Council","05/07/2023","02/08/2023","0000492141/324","CORONA ENERGY RETAIL 4 LIMITED","41080700","47.67","HOUSING SERVICES - LANDLORDS EXPENSES","ELECTRICITY","D400","ELECTRICITY","HOUSING SERVICES","UTILITIES"
"http://statistics.data.gov.uk/id/local-authority/43UM","Woking Borough Council","05/07/2023","02/08/2023","0000492141/325","CORONA ENERGY RETAIL 4 LIMITED","41080700","242.38","HOUSING SERVICES - LANDLORDS EXPENSES","ELECTRICITY","D400","ELECTRICITY","HOUSING SERVICES","UTILITIES"
"http://statistics.data.gov.uk/id/local-authority/43UM","Woking Borough Council","05/07/2023","02/08/2023","0000492141/326","CORONA ENERGY RETAIL 4 LIMITED","41080700","400.14","HOUSING SERVICES - LANDLORDS EXPENSES","ELECTRICITY","D400","ELECTRICITY","HOUSING SERVICES","UTILITIES"
"http://statistics.data.gov.uk/id/local-authority/43UM","Woking Borough Council","05/07/2023","02/08/2023","0000492141/327","CORONA ENERGY RETAIL 4 LIMITED","41080700","86.15","HOUSING SERVICES - LANDLORDS EXPENSES","ELECTRICITY","D400","ELECTRICITY","HOUSING SERVICES","UTILITIES"
"http://statistics.data.gov.uk/id/local-authority/43UM","Woking Borough Council","05/07/2023","02/08/2023","0000492141/328","CORONA ENERGY RETAIL 4 LIMITED","41080700","7547.35","HOUSING SERVICES - LANDLORDS EXPENSES","ELECTRICITY","D400","ELECTRICITY","HOUSING SERVICES","UTILITIES"
"http://statistics.data.gov.uk/id/local-authority/43UM","Woking Borough Council","05/07/2023","02/08/2023","0000492141/329","CORONA ENERGY RETAIL 4 LIMITED","41080700","57.29","HOUSING SERVICES - LANDLORDS EXPENSES","ELECTRICITY","D400","ELECTRICITY","HOUSING SERVICES","UTILITIES"
"http://statistics.data.gov.uk/id/local-authority/43UM","Woking Borough Council","05/07/2023","02/08/2023","0000492141/330","CORONA ENERGY RETAIL 4 LIMITED","41080700","373.58","HOUSING SERVICES - LANDLORDS EXPENSES","ELECTRICITY","D400","ELECTRICITY","HOUSING SERVICES","UTILITIES"
"http://statistics.data.gov.uk/id/local-authority/43UM","Woking Borough Council","05/07/2023","02/08/2023","0000492141/331","CORONA ENERGY RETAIL 4 LIMITED","41080700","429.01","HOUSING SERVICES - LANDLORDS EXPENSES","ELECTRICITY","D400","ELECTRICITY","HOUSING SERVICES","UTILITIES"
"http://statistics.data.gov.uk/id/local-authority/43UM","Woking Borough Council","05/07/2023","02/08/2023","0000492141/332","CORONA ENERGY RETAIL 4 LIMITED","41080700","66.92","HOUSING SERVICES - LANDLORDS EXPENSES","ELECTRICITY","D400","ELECTRICITY","HOUSING SERVICES","UTILITIES"
"http://statistics.data.gov.uk/id/local-authority/43UM","Woking Borough Council","05/07/2023","02/08/2023","0000492141/333","CORONA ENERGY RETAIL 4 LIMITED","41080700","58.16","HOUSING SERVICES - LANDLORDS EXPENSES","ELECTRICITY","D400","ELECTRICITY","HOUSING SERVICES","UTILITIES"
"http://statistics.data.gov.uk/id/local-authority/43UM","Woking Borough Council","05/07/2023","02/08/2023","0000492141/334","CORONA ENERGY RETAIL 4 LIMITED","41080700","772.77","ASSET MANAGEMENT - MABLE ST GARAGE & SHOP","ELECTRICITY","D400","ELECTRICITY","ASSET MANAGEMENT","UTILITIES"
"http://statistics.data.gov.uk/id/local-authority/43UM","Woking Borough Council","05/07/2023","02/08/2023","0000492141/335","CORONA ENERGY RETAIL 4 LIMITED","41080700","799.44","ASSET MANAGEMENT - MABLE ST GARAGE & SHOP","ELECTRICITY","D400","ELECTRICITY","ASSET MANAGEMENT","UTILITIES"
"http://statistics.data.gov.uk/id/local-authority/43UM","Woking Borough Council","05/07/2023","02/08/2023","0000492141/336","CORONA ENERGY RETAIL 4 LIMITED","41080700","-658.67","ASSET MANAGEMENT - MABLE ST GARAGE & SHOP","ELECTRICITY","D400","ELECTRICITY","ASSET MANAGEMENT","UTILITIES"
"http://statistics.data.gov.uk/id/local-authority/43UM","Woking Borough Council","05/07/2023","02/08/2023","0000492141/337","CORONA ENERGY RETAIL 4 LIMITED","41080700","9511.20","ASSET MANAGEMENT - UNIT 15A MON WAY EAST","ELECTRICITY","D400","ELECTRICITY","ASSET MANAGEMENT","UTILITIES"
"http://statistics.data.gov.uk/id/local-authority/43UM","Woking Borough Council","05/07/2023","02/08/2023","0000492141/338","CORONA ENERGY RETAIL 4 LIMITED","41080700","88.23","ASSET MANAGEMENT - UNIT 15A MON WAY EAST","CLIMATE CHANGE LEVY","D430","CLIMATE CHANGE LEVY","ASSET MANAGEMENT","UTILITIES"
"http://statistics.data.gov.uk/id/local-authority/43UM","Woking Borough Council","05/07/2023","02/08/2023","0000492141/339","CORONA ENERGY RETAIL 4 LIMITED","41080700","1284.13","HOUSING SERVICES - TEMPORARY ACCOMMODATION","ELECTRICITY","D400","ELECTRICITY","HOUSING SERVICES","UTILITIES"
"http://statistics.data.gov.uk/id/local-authority/43UM","Woking Borough Council","05/07/2023","02/08/2023","0000492141/340","CORONA ENERGY RETAIL 4 LIMITED","41080700","11.27","HOUSING SERVICES - TEMPORARY ACCOMMODATION","CLIMATE CHANGE LEVY","D430","CLIMATE CHANGE LEVY","HOUSING SERVICES","UTILITIES"
"http://statistics.data.gov.uk/id/local-authority/43UM","Woking Borough Council","05/07/2023","02/08/2023","0000492141/341","CORONA ENERGY RETAIL 4 LIMITED","41080700","73.58","HOUSING SERVICES - LANDLORDS EXPENSES","ELECTRICITY","D400","ELECTRICITY","HOUSING SERVICES","UTILITIES"
"http://statistics.data.gov.uk/id/local-authority/43UM","Woking Borough Council","05/07/2023","02/08/2023","0000492141/342","CORONA ENERGY RETAIL 4 LIMITED","41080700","16.73","HOUSING SERVICES - LANDLORDS EXPENSES","ELECTRICITY","D400","ELECTRICITY","HOUSING SERVICES","UTILITIES"
"http://statistics.data.gov.uk/id/local-authority/43UM","Woking Borough Council","05/07/2023","02/08/2023","0000492141/343","CORONA ENERGY RETAIL 4 LIMITED","41080700","1117.88","HOUSING SERVICES - LANDLORDS EXPENSES","ELECTRICITY","D400","ELECTRICITY","HOUSING SERVICES","UTILITIES"
"http://statistics.data.gov.uk/id/local-authority/43UM","Woking Borough Council","05/07/2023","02/08/2023","0000492141/344","CORONA ENERGY RETAIL 4 LIMITED","41080700","1360.23","HOUSING SERVICES - LANDLORDS EXPENSES","ELECTRICITY","D400","ELECTRICITY","HOUSING SERVICES","UTILITIES"
"http://statistics.data.gov.uk/id/local-authority/43UM","Woking Borough Council","05/07/2023","02/08/2023","0000492141/345","CORONA ENERGY RETAIL 4 LIMITED","41080700","18.83","HOUSING SERVICES - LANDLORDS EXPENSES","ELECTRICITY","D400","ELECTRICITY","HOUSING SERVICES","UTILITIES"
"http://statistics.data.gov.uk/id/local-authority/43UM","Woking Borough Council","05/07/2023","02/08/2023","0000492141/346","CORONA ENERGY RETAIL 4 LIMITED","41080700","840.08","HOUSING SERVICES - LANDLORDS EXPENSES","ELECTRICITY","D400","ELECTRICITY","HOUSING SERVICES","UTILITIES"
"http://statistics.data.gov.uk/id/local-authority/43UM","Woking Borough Council","05/07/2023","02/08/2023","0000492141/347","CORONA ENERGY RETAIL 4 LIMITED","41080700","2543.53","HOUSING SERVICES - LANDLORDS EXPENSES","ELECTRICITY","D400","ELECTRICITY","HOUSING SERVICES","UTILITIES"
"http://statistics.data.gov.uk/id/local-authority/43UM","Woking Borough Council","05/07/2023","02/08/2023","0000492141/348","CORONA ENERGY RETAIL 4 LIMITED","41080700","311.80","HOUSING SERVICES - LANDLORDS EXPENSES","ELECTRICITY","D400","ELECTRICITY","HOUSING SERVICES","UTILITIES"
"http://statistics.data.gov.uk/id/local-authority/43UM","Woking Borough Council","05/07/2023","02/08/2023","0000492141/349","CORONA ENERGY RETAIL 4 LIMITED","41080700","38.05","HOUSING SERVICES - LANDLORDS EXPENSES","ELECTRICITY","D400","ELECTRICITY","HOUSING SERVICES","UTILITIES"
"http://statistics.data.gov.uk/id/local-authority/43UM","Woking Borough Council","05/07/2023","02/08/2023","0000492141/350","CORONA ENERGY RETAIL 4 LIMITED","41080700","186.41","HOUSING SERVICES - LANDLORDS EXPENSES","ELECTRICITY","D400","ELECTRICITY","HOUSING SERVICES","UTILITIES"
"http://statistics.data.gov.uk/id/local-authority/43UM","Woking Borough Council","05/07/2023","02/08/2023","0000492141/351","CORONA ENERGY RETAIL 4 LIMITED","41080700","670.95","HOUSING SERVICES - LANDLORDS EXPENSES","ELECTRICITY","D400","ELECTRICITY","HOUSING SERVICES","UTILITIES"
"http://statistics.data.gov.uk/id/local-authority/43UM","Woking Borough Council","05/07/2023","02/08/2023","0000492141/352","CORONA ENERGY RETAIL 4 LIMITED","41080700","319.68","HOUSING SERVICES - LANDLORDS EXPENSES","ELECTRICITY","D400","ELECTRICITY","HOUSING SERVICES","UTILITIES"
"http://statistics.data.gov.uk/id/local-authority/43UM","Woking Borough Council","05/07/2023","02/08/2023","0000492141/353","CORONA ENERGY RETAIL 4 LIMITED","41080700","1952.35","HOUSING SERVICES - LANDLORDS EXPENSES","ELECTRICITY","D400","ELECTRICITY","HOUSING SERVICES","UTILITIES"
"http://statistics.data.gov.uk/id/local-authority/43UM","Woking Borough Council","05/07/2023","02/08/2023","0000492141/354","CORONA ENERGY RETAIL 4 LIMITED","41080700","216.47","HOUSING SERVICES - LANDLORDS EXPENSES","ELECTRICITY","D400","ELECTRICITY","HOUSING SERVICES","UTILITIES"
"http://statistics.data.gov.uk/id/local-authority/43UM","Woking Borough Council","05/07/2023","02/08/2023","0000492141/355","CORONA ENERGY RETAIL 4 LIMITED","41080700","129.01","HOUSING SERVICES - LANDLORDS EXPENSES","ELECTRICITY","D400","ELECTRICITY","HOUSING SERVICES","UTILITIES"
"http://statistics.data.gov.uk/id/local-authority/43UM","Woking Borough Council","05/07/2023","02/08/2023","0000492141/356","CORONA ENERGY RETAIL 4 LIMITED","41080700","115.89","HOUSING SERVICES - LANDLORDS EXPENSES","ELECTRICITY","D400","ELECTRICITY","HOUSING SERVICES","UTILITIES"
"http://statistics.data.gov.uk/id/local-authority/43UM","Woking Borough Council","05/07/2023","02/08/2023","0000492141/357","CORONA ENERGY RETAIL 4 LIMITED","41080700","66.92","HOUSING SERVICES - LANDLORDS EXPENSES","ELECTRICITY","D400","ELECTRICITY","HOUSING SERVICES","UTILITIES"
"http://statistics.data.gov.uk/id/local-authority/43UM","Woking Borough Council","05/07/2023","02/08/2023","0000492141/358","CORONA ENERGY RETAIL 4 LIMITED","41080700","3343.01","ASSET MANAGEMENT - PEACOCK WALK MARKET","ELECTRICITY","D400","ELECTRICITY","ASSET MANAGEMENT","UTILITIES"
"http://statistics.data.gov.uk/id/local-authority/43UM","Woking Borough Council","05/07/2023","02/08/2023","0000492141/359","CORONA ENERGY RETAIL 4 LIMITED","41080700","30.84","ASSET MANAGEMENT - PEACOCK WALK MARKET","CLIMATE CHANGE LEVY","D430","CLIMATE CHANGE LEVY","ASSET MANAGEMENT","UTILITIES"
"http://statistics.data.gov.uk/id/local-authority/43UM","Woking Borough Council","03/07/2023","02/08/2023","0000492176/001","CW-2253608","41094800","100.65","ASSET MANAGEMENT - SHEERWATER SURGERY","WATER","D700","WATER","ASSET MANAGEMENT","UTILITIES"
"http://statistics.data.gov.uk/id/local-authority/43UM","Woking Borough Council","02/07/2023","02/08/2023","0000492249/001","POZITIVE ENERGY","40980200","377.00","ASSET MANAGEMENT - WOLSEY PLACE","ELECTRICITY","D400","ELECTRICITY","ASSET MANAGEMENT","UTILITIES"
"http://statistics.data.gov.uk/id/local-authority/43UM","Woking Borough Council","11/07/2023","02/08/2023","0000492272/001","NPOWER BUSINESS SOLUTIONS","41069600","32.25","ASSET MANAGEMENT - ANCHOR PUBLIC HOUSE","GAS","D420","GAS","ASSET MANAGEMENT","UTILITIES"
"http://statistics.data.gov.uk/id/local-authority/43UM","Woking Borough Council","07/07/2023","02/08/2023","0000492278/001","NPOWER","40619800","180.01","BUILDING SERVICES - L.M.C. - HOE VALLEY SCHOOL","CLIMATE CHANGE LEVY","D430","CLIMATE CHANGE LEVY","BUILDING SERVICES","UTILITIES"
"http://statistics.data.gov.uk/id/local-authority/43UM","Woking Borough Council","07/07/2023","02/08/2023","0000492278/002","NPOWER","40619800","7076.97","BUILDING SERVICES - L.M.C. - HOE VALLEY SCHOOL","ELECTRICITY","D400","ELECTRICITY","BUILDING SERVICES","UTILITIES"
"http://statistics.data.gov.uk/id/local-authority/43UM","Woking Borough Council","05/07/2023","02/08/2023","0000492282/001","BRITISH GAS BUSINESS","00065700","68.52","ASSET MANAGEMENT - 39 DARTMOUTH AVE (XHRA)","GAS","D420","GAS","ASSET MANAGEMENT","UTILITIES"
"http://statistics.data.gov.uk/id/local-authority/43UM","Woking Borough Council","05/07/2023","02/08/2023","0000492283/001","BRITISH GAS BUSINESS","00065700","56.28","INDEPENDENT LIVING SERVICES - PARKVIEW","TEL GAS/HEATING","D481","TEL GAS/HEATING","INDEPENDENT LIVING SERVICES","UTILITIES"
"http://statistics.data.gov.uk/id/local-authority/43UM","Woking Borough Council","06/07/2023","02/08/2023","0000492301/001","TOTAL GAS & POWER LIMITED","40456400","619.36","ASSET MANAGEMENT - PEACOCK WALK MARKET","ELECTRICITY","D400","ELECTRICITY","ASSET MANAGEMENT","UTILITIES"
"http://statistics.data.gov.uk/id/local-authority/43UM","Woking Borough Council","05/05/2023","02/08/2023","0000492303/001","TOTAL GAS & POWER LIMITED","40456400","701.67","ASSET MANAGEMENT - PEACOCK WALK MARKET","ELECTRICITY","D400","ELECTRICITY","ASSET MANAGEMENT","UTILITIES"
"http://statistics.data.gov.uk/id/local-authority/43UM","Woking Borough Council","05/04/2023","02/08/2023","0000492304/001","TOTAL GAS & POWER LIMITED","40456400","654.71","ASSET MANAGEMENT - PEACOCK WALK MARKET","ELECTRICITY","D400","ELECTRICITY","ASSET MANAGEMENT","UTILITIES"
"http://statistics.data.gov.uk/id/local-authority/43UM","Woking Borough Council","05/02/2023","02/08/2023","0000492308/001","TOTAL GAS & POWER LIMITED","40456400","929.28","ASSET MANAGEMENT - PEACOCK WALK MARKET","ELECTRICITY","D400","ELECTRICITY","ASSET MANAGEMENT","UTILITIES"
"http://statistics.data.gov.uk/id/local-authority/43UM","Woking Borough Council","13/07/2023","02/08/2023","0000492426/001","THAMESWEY ENERGY LTD","40156000","1765.90","ASSET MANAGEMENT - GOLDWATER LODGE","TEL ELECTRICITY","D480","TEL ELECTRICITY","ASSET MANAGEMENT","UTILITIES"
"http://statistics.data.gov.uk/id/local-authority/43UM","Woking Borough Council","13/07/2023","02/08/2023","0000492426/002","THAMESWEY ENERGY LTD","40156000","318.77","ASSET MANAGEMENT - GOLDWATER LODGE","RENEWABLE SOURCE ELECTRICITY","D431","RENEWABLE SOURCE ELECTRICITY","ASSET MANAGEMENT","UTILITIES"
"http://statistics.data.gov.uk/id/local-authority/43UM","Woking Borough Council","13/07/2023","02/08/2023","0000492428/001","THAMESWEY ENERGY LTD","40156000","1086.04","ASSET MANAGEMENT - UNIT 15A MON WAY EAST","TEL ELECTRICITY","D480","TEL ELECTRICITY","ASSET MANAGEMENT","UTILITIES"
"http://statistics.data.gov.uk/id/local-authority/43UM","Woking Borough Council","13/07/2023","02/08/2023","0000492428/002","THAMESWEY ENERGY LTD","40156000","196.05","ASSET MANAGEMENT - UNIT 15A MON WAY EAST","TEL PV MAINTENANCE CHARGES","D184","TEL PV MAINTENANCE CHARGES","ASSET MANAGEMENT","UTILITIES"
"http://statistics.data.gov.uk/id/local-authority/43UM","Woking Borough Council","29/06/2023","02/08/2023","0000492604/001","EDF ENERGY CUSTOMERS PLC","01451600","1438.39","ASSET MANAGEMENT - WISTERIA COTTAGE 34 HIGH ST","ELECTRICITY","D400","ELECTRICITY","ASSET MANAGEMENT","UTILITIES"
"http://statistics.data.gov.uk/id/local-authority/43UM","Woking Borough Council","10/07/2023","02/08/2023","0000492627/001","EDF ENERGY CUSTOMERS PLC","01451600","33.06","HOUSING SERVICES - LANDLORDS EXPENSES","GAS","D420","GAS","HOUSING SERVICES","UTILITIES"
"http://statistics.data.gov.uk/id/local-authority/43UM","Woking Borough Council","10/07/2023","02/08/2023","0000492628/001","EDF ENERGY CUSTOMERS PLC","01451600","78.53","HOUSING SERVICES - LANDLORDS EXPENSES","ELECTRICITY","D400","ELECTRICITY","HOUSING SERVICES","UTILITIES"
"http://statistics.data.gov.uk/id/local-authority/43UM","Woking Borough Council","10/07/2023","02/08/2023","0000492628/002","EDF ENERGY CUSTOMERS PLC","01451600","9.48","HOUSING SERVICES - LANDLORDS EXPENSES","GAS","D420","GAS","HOUSING SERVICES","UTILITIES"
"http://statistics.data.gov.uk/id/local-authority/43UM","Woking Borough Council","19/07/2023","02/08/2023","0000492629/001","E.ON ENERGY SOLUTIONS LIMITED","40941500","-126.16","ASSET MANAGEMENT - WOLSEY PLACE","ELECTRICITY","D400","ELECTRICITY","ASSET MANAGEMENT","UTILITIES"
"http://statistics.data.gov.uk/id/local-authority/43UM","Woking Borough Council","10/07/2023","02/08/2023","0000492631/001","EDF ENERGY CUSTOMERS PLC","01451600","60.52","HOUSING SERVICES - LANDLORDS EXPENSES","ELECTRICITY","D400","ELECTRICITY","HOUSING SERVICES","UTILITIES"
"http://statistics.data.gov.uk/id/local-authority/43UM","Woking Borough Council","10/07/2023","02/08/2023","0000492631/002","EDF ENERGY CUSTOMERS PLC","01451600","10.79","HOUSING SERVICES - LANDLORDS EXPENSES","GAS","D420","GAS","HOUSING SERVICES","UTILITIES"
"http://statistics.data.gov.uk/id/local-authority/43UM","Woking Borough Council","10/07/2023","02/08/2023","0000492637/001","EDF ENERGY CUSTOMERS PLC","01451600","112.84","HOUSING SERVICES - LANDLORDS EXPENSES","ELECTRICITY","D400","ELECTRICITY","HOUSING SERVICES","UTILITIES"
"http://statistics.data.gov.uk/id/local-authority/43UM","Woking Borough Council","10/07/2023","02/08/2023","0000492637/002","EDF ENERGY CUSTOMERS PLC","01451600","9.48","HOUSING SERVICES - LANDLORDS EXPENSES","GAS","D420","GAS","HOUSING SERVICES","UTILITIES"
"http://statistics.data.gov.uk/id/local-authority/43UM","Woking Borough Council","10/07/2023","02/08/2023","0000492639/001","EDF ENERGY CUSTOMERS PLC","01451600","12.14","HOUSING SERVICES - LANDLORDS EXPENSES","GAS","D420","GAS","HOUSING SERVICES","UTILITIES"
"http://statistics.data.gov.uk/id/local-authority/43UM","Woking Borough Council","19/07/2023","02/08/2023","0000492643/001","CW-2254682","41087900","51.95","INDEPENDENT LIVING SERVICES - ALPHA RD COMMUNITY HALL","WATER","D700","WATER","INDEPENDENT LIVING SERVICES","UTILITIES"
"http://statistics.data.gov.uk/id/local-authority/43UM","Woking Borough Council","11/07/2023","02/08/2023","0000492678/001","AFFINITY WATER","01095900","6336.95","HOUSING SERVICES - WATERMAN HOUSE TEMP ACC.","WATER","D700","WATER","HOUSING SERVICES","UTILITIES"
"http://statistics.data.gov.uk/id/local-authority/43UM","Woking Borough Council","15/06/2023","02/08/2023","0000492695/001","EDF ENERGY CUSTOMERS PLC","01451600","231.39","ASSET MANAGEMENT - HIF WTC F1 4-5 GUILDFORD RD OP","OTHER CONSULTANTS","Q430","OTHER CONSULTANTS","ASSET MANAGEMENT","UTILITIES"
"http://statistics.data.gov.uk/id/local-authority/43UM","Woking Borough Council","27/06/2023","02/08/2023","0000492696/001","EDF ENERGY CUSTOMERS PLC","01451600","309.06","ASSET MANAGEMENT - HIF WTC F1 4-5 GUILDFORD RD OP","OTHER CONSULTANTS","Q430","OTHER CONSULTANTS","ASSET MANAGEMENT","UTILITIES"
"http://statistics.data.gov.uk/id/local-authority/43UM","Woking Borough Council","22/07/2023","02/08/2023","0000492832/001","E.ON ENERGY SOLUTIONS LIMITED","40941500","-34.34","HOUSING SERVICES - LANDLORDS EXPENSES","ELECTRICITY","D400","ELECTRICITY","HOUSING SERVICES","UTILITIES"
"http://statistics.data.gov.uk/id/local-authority/43UM","Woking Borough Council","01/05/2023","02/08/2023","0000491762/001","ENTERPRISE RENT-A-CAR UK LTD","01705800","309.96","INDEPENDENT LIVING SERVICES - MEALS ON WHEELS","VEHICLE LEASING COSTS","F400","VEHICLE LEASING COSTS","INDEPENDENT LIVING SERVICES","VEHICLE MANAGEMENT"
"http://statistics.data.gov.uk/id/local-authority/43UM","Woking Borough Council","06/07/2023","02/08/2023","0000492171/001","VIP-SYSTEM LIMITED","40173300","1060.00","CORPORATE STRATEGY - PRIVATE CAR HIRE LICENCE","BADGES & PLATES","G142","BADGES & PLATES","CORPORATE STRATEGY","VEHICLE MANAGEMENT"
"http://statistics.data.gov.uk/id/local-authority/43UM","Woking Borough Council","06/07/2023","02/08/2023","0000492171/002","VIP-SYSTEM LIMITED","40173300","263.15","CORPORATE STRATEGY - PRIVATE CAR HIRE LICENCE","BADGES & PLATES","G142","BADGES & PLATES","CORPORATE STRATEGY","VEHICLE MANAGEMENT"
"http://statistics.data.gov.uk/id/local-authority/43UM","Woking Borough Council","06/07/2023","02/08/2023","0000492171/003","VIP-SYSTEM LIMITED","40173300","352.60","CORPORATE STRATEGY - PRIVATE CAR HIRE LICENCE","BADGES & PLATES","G142","BADGES & PLATES","CORPORATE STRATEGY","VEHICLE MANAGEMENT"
"http://statistics.data.gov.uk/id/local-authority/43UM","Woking Borough Council","06/07/2023","02/08/2023","0000492171/004","VIP-SYSTEM LIMITED","40173300","442.00","CORPORATE STRATEGY - PRIVATE CAR HIRE LICENCE","BADGES & PLATES","G142","BADGES & PLATES","CORPORATE STRATEGY","VEHICLE MANAGEMENT"
"http://statistics.data.gov.uk/id/local-authority/43UM","Woking Borough Council","06/07/2023","02/08/2023","0000492171/005","VIP-SYSTEM LIMITED","40173300","314.52","CORPORATE STRATEGY - PRIVATE CAR HIRE LICENCE","BADGES & PLATES","G142","BADGES & PLATES","CORPORATE STRATEGY","VEHICLE MANAGEMENT"
"http://statistics.data.gov.uk/id/local-authority/43UM","Woking Borough Council","06/07/2023","02/08/2023","0000492171/006","VIP-SYSTEM LIMITED","40173300","92.01","CORPORATE STRATEGY - PRIVATE CAR HIRE LICENCE","BADGES & PLATES","G142","BADGES & PLATES","CORPORATE STRATEGY","VEHICLE MANAGEMENT"
"http://statistics.data.gov.uk/id/local-authority/43UM","Woking Borough Council","11/07/2023","02/08/2023","0000492339/001","VIP-SYSTEM LIMITED","40173300","487.60","CORPORATE STRATEGY - PRIVATE CAR HIRE LICENCE","BADGES & PLATES","G142","BADGES & PLATES","CORPORATE STRATEGY","VEHICLE MANAGEMENT"
"http://statistics.data.gov.uk/id/local-authority/43UM","Woking Borough Council","07/07/2023","02/08/2023","0000492184/001","FARNBOROUGH CONTRACTING SERVICES","40501900","2943.60","PLANNING SERVICES - CIL-MOUNT HERMON","MAIN CONTRACTOR","Q200","MAIN CONTRACTOR","PLANNING SERVICES","WORKS (CONSTRUCTION REPAIR MAINTENANCE)"
"http://statistics.data.gov.uk/id/local-authority/43UM","Woking Borough Council","10/07/2023","02/08/2023","0000492591/001","KNK BUILDING SERVICES LTD","41091100","621.73","HOUSING SERVICES - RESPONSIVE REPARS HRA","HRA REPAIRS CONTRACTOR","D112","HRA REPAIRS CONTRACTOR","HOUSING SERVICES","WORKS (CONSTRUCTION REPAIR MAINTENANCE)"
"http://statistics.data.gov.uk/id/local-authority/43UM","Woking Borough Council","10/07/2023","02/08/2023","0000492592/001","KNK BUILDING SERVICES LTD","41091100","637.08","HOUSING SERVICES - RESPONSIVE REPARS HRA","HRA REPAIRS CONTRACTOR","D112","HRA REPAIRS CONTRACTOR","HOUSING SERVICES","WORKS (CONSTRUCTION REPAIR MAINTENANCE)"
"http://statistics.data.gov.uk/id/local-authority/43UM","Woking Borough Council","10/07/2023","02/08/2023","0000492593/001","KNK BUILDING SERVICES LTD","41091100","615.52","HOUSING SERVICES - RESPONSIVE REPARS HRA","HRA REPAIRS CONTRACTOR","D112","HRA REPAIRS CONTRACTOR","HOUSING SERVICES","WORKS (CONSTRUCTION REPAIR MAINTENANCE)"
"http://statistics.data.gov.uk/id/local-authority/43UM","Woking Borough Council","26/07/2023","02/08/2023","0000492727/001","WAVERLEY BOROUGH COUNCIL","00331100","206.25","CORPORATE MANAGEMENT GROUP - STAFF TRAINING/GENERAL COSTS","TRAINING - CORPORATE","A910","TRAINING - CORPORATE","CORPORATE MANAGEMENT GROUP","WORKS (CONSTRUCTION REPAIR MAINTENANCE)"
"http://statistics.data.gov.uk/id/local-authority/43UM","Woking Borough Council","26/07/2023","02/08/2023","0000492727/002","WAVERLEY BOROUGH COUNCIL","00331100","62.86","CORPORATE MANAGEMENT GROUP - STAFF TRAINING/GENERAL COSTS","TRAINING - CORPORATE","A910","TRAINING - CORPORATE","CORPORATE MANAGEMENT GROUP","WORKS (CONSTRUCTION REPAIR MAINTENANCE)"
"http://statistics.data.gov.uk/id/local-authority/43UM","Woking Borough Council","26/07/2023","02/08/2023","0000492727/003","WAVERLEY BOROUGH COUNCIL","00331100","130.00","CORPORATE MANAGEMENT GROUP - STAFF TRAINING/GENERAL COSTS","TRAINING - CORPORATE","A910","TRAINING - CORPORATE","CORPORATE MANAGEMENT GROUP","WORKS (CONSTRUCTION REPAIR MAINTENANCE)"
"http://statistics.data.gov.uk/id/local-authority/43UM","Woking Borough Council","26/07/2023","02/08/2023","0000492727/004","WAVERLEY BOROUGH COUNCIL","00331100","55.00","CORPORATE MANAGEMENT GROUP - STAFF TRAINING/GENERAL COSTS","TRAINING - CORPORATE","A910","TRAINING - CORPORATE","CORPORATE MANAGEMENT GROUP","WORKS (CONSTRUCTION REPAIR MAINTENANCE)"
"http://statistics.data.gov.uk/id/local-authority/43UM","Woking Borough Council","26/04/2023","02/08/2023","0000492886/001","BBF FIELDING LIMITED","00114900","2350.00","ASSET MANAGEMENT - 31 WOLSEY WALK REMOVAL","MAIN CONTRACTOR","Q200","MAIN CONTRACTOR","ASSET MANAGEMENT","WORKS (CONSTRUCTION REPAIR MAINTENANCE)"
"http://statistics.data.gov.uk/id/local-authority/43UM","Woking Borough Council","03/08/2023","03/08/2023","GPC/00024534","ASDA PETROL 4823","PROCUREMENT CARD","40.83","INDEPENDENT LIVING SERVICES - MEALS ON WHEELS","PETROL","F200","PETROL FOR MOW","REBECCA STEVENS","AUTOMATED FUEL DISPENSERS"
"http://statistics.data.gov.uk/id/local-authority/43UM","Woking Borough Council","03/08/2023","03/08/2023","GPC/00024535","C & E ELECTRICAL WHOLES","PROCUREMENT CARD","120.00","NEIGHBOURHOOD SERVICES - VICTORIA WAY CAR PARK","FACILITIES MANAGEMENT CONTRACT","D909","LIGHTS FOR VIC WAY STAIRWELL","MR D JONES","SMALL APPLIANCE REPAIR DEF"
"http://statistics.data.gov.uk/id/local-authority/43UM","Woking Borough Council","03/08/2023","03/08/2023","GPC/00024536","AMAZON PRIME","PROCUREMENT CARD","-7.49","INDEPENDENT LIVING SERVICES - SOCIAL PRESCRIBING","SHELTERED SCHEMES","G260","SHELTERED EXT FUND ITEMS FOR SCHEME","MANDY JORDAN","CONTINUITY/SUBSCRIPTION MERCHANT"
"http://statistics.data.gov.uk/id/local-authority/43UM","Woking Borough Council","03/08/2023","03/08/2023","GPC/00024537","TOOLSTATION WOKING","PROCUREMENT CARD","30.67","HOUSING SERVICES - HOME IMPS & BEN AGENCY","HANDYPERSON MATERIALS","G201","EXTERNAL FUNDING HANDYMAN MATERIALS","GARY COCKBURN","LUMBER/BUILD SUPPLY STORES"
"http://statistics.data.gov.uk/id/local-authority/43UM","Woking Borough Council","03/08/2023","03/08/2023","GPC/00024538","AMAZON PRIME","PROCUREMENT CARD","-7.49","INDEPENDENT LIVING SERVICES - SOCIAL PRESCRIBING","SHELTERED SCHEMES","G260","SHELTERED EXT FUND ITEMS FOR SCHEME","MANDY JORDAN","CONTINUITY/SUBSCRIPTION MERCHANT"
"http://statistics.data.gov.uk/id/local-authority/43UM","Woking Borough Council","03/08/2023","03/08/2023","GPC/00024539","AMAZON PRIME","PROCUREMENT CARD","-7.49","INDEPENDENT LIVING SERVICES - SOCIAL PRESCRIBING","SHELTERED SCHEMES","G260","SHELTERED EXT FUND ITEMS FOR SCHEME","MANDY JORDAN","CONTINUITY/SUBSCRIPTION MERCHANT"
"http://statistics.data.gov.uk/id/local-authority/43UM","Woking Borough Council","03/08/2023","03/08/2023","GPC/00024540","AMZNMKTPLACE","PROCUREMENT CARD","5.42","FINANCIAL SERVICES - BROCKHILL SOCIAL FUND","MISCELLANEOUS EXPENSES","X827","BINGO DABBERS","OVIDIU MITROFAN","MISC SPECIALITY RETAIL"
"http://statistics.data.gov.uk/id/local-authority/43UM","Woking Borough Council","03/08/2023","03/08/2023","GPC/00024541","ASDA PETROL 4823","PROCUREMENT CARD","24.17","INDEPENDENT LIVING SERVICES - MEALS ON WHEELS","PETROL","F200","PETROL FOR MOW","REBECCA STEVENS","SERVICE STATIONS"
"http://statistics.data.gov.uk/id/local-authority/43UM","Woking Borough Council","04/08/2023","04/08/2023","GPC/00024544","QRTIGER QR CODE","PROCUREMENT CARD","293.18","CORPORATE STRATEGY - PUBLIC RELATIONS","GENERAL PUBLIC RELATIONS EXPNS","H915","ANNUAL SUBSCRIPTION FOR DYNAMIC & CUSTOMABLE","MISS K MAIR","COMPUTER SOFTWARE STORES"
"http://statistics.data.gov.uk/id/local-authority/43UM","Woking Borough Council","04/08/2023","04/08/2023","GPC/00024546","WWW.MONEYCLAIM.GOV","PROCUREMENT CARD","50.00","CORPORATE STRATEGY - LEGAL","COURT COSTS","H620","COURT FEE TO ISSUE CLAIM - 8400","MISS A J FRANCIS","GOV'T SERV - DEFAULT"
"http://statistics.data.gov.uk/id/local-authority/43UM","Woking Borough Council","15/07/2023","04/08/2023","0030004207/001","MARKETPLACE MERCHANT SOLUTIONS LTD","40799000","17.00","INDEPENDENT LIVING SERVICES - BROCKHILL EXTRA CARE","CARD BANKING FEES - EXEMPT VAT","H618","CARD BANKING FEES - EXEMPT VAT","INDEPENDENT LIVING SERVICES","FINANCIAL SERVICES"
"http://statistics.data.gov.uk/id/local-authority/43UM","Woking Borough Council","15/07/2023","04/08/2023","0030004207/002","MARKETPLACE MERCHANT SOLUTIONS LTD","40799000","17.00","INDEPENDENT LIVING SERVICES - MOORCROFT","CARD BANKING FEES - EXEMPT VAT","H618","CARD BANKING FEES - EXEMPT VAT","INDEPENDENT LIVING SERVICES","FINANCIAL SERVICES"
"http://statistics.data.gov.uk/id/local-authority/43UM","Woking Borough Council","15/07/2023","04/08/2023","0030004207/003","MARKETPLACE MERCHANT SOLUTIONS LTD","40799000","17.00","INDEPENDENT LIVING SERVICES - BROCKHILL EXTRA CARE","CARD BANKING FEES - EXEMPT VAT","H618","CARD BANKING FEES - EXEMPT VAT","INDEPENDENT LIVING SERVICES","FINANCIAL SERVICES"
"http://statistics.data.gov.uk/id/local-authority/43UM","Woking Borough Council","15/07/2023","04/08/2023","0030004207/004","MARKETPLACE MERCHANT SOLUTIONS LTD","40799000","17.00","INDEPENDENT LIVING SERVICES - ST MARY'S DAY CENTRE","CARD BANKING FEES - EXEMPT VAT","H618","CARD BANKING FEES - EXEMPT VAT","INDEPENDENT LIVING SERVICES","FINANCIAL SERVICES"
"http://statistics.data.gov.uk/id/local-authority/43UM","Woking Borough Council","15/07/2023","04/08/2023","0030004207/005","MARKETPLACE MERCHANT SOLUTIONS LTD","40799000","17.00","INDEPENDENT LIVING SERVICES - THE VYNE","CARD BANKING FEES - EXEMPT VAT","H618","CARD BANKING FEES - EXEMPT VAT","INDEPENDENT LIVING SERVICES","FINANCIAL SERVICES"
"http://statistics.data.gov.uk/id/local-authority/43UM","Woking Borough Council","27/07/2023","04/08/2023","0030004223/001","PUBLIC WORKS LOAN BOARD","00021400","120475.29","FINANCIAL SERVICES - INTEREST PAYABLE & SIMILAR CHG","PWLB ANNUITY","U111","PWLB ANNUITY","FINANCIAL SERVICES","FINANCIAL SERVICES"
"http://statistics.data.gov.uk/id/local-authority/43UM","Woking Borough Council","28/07/2023","04/08/2023","0030004224/001","PUBLIC WORKS LOAN BOARD","00021400","264926.05","FINANCIAL SERVICES - INTEREST PAYABLE & SIMILAR CHG","PWLB ANNUITY","U111","PWLB ANNUITY","FINANCIAL SERVICES","FINANCIAL SERVICES"
"http://statistics.data.gov.uk/id/local-authority/43UM","Woking Borough Council","28/07/2023","04/08/2023","0030004225/001","HMRC SHIPLEY","40960900","1815.00","HOUSING SERVICES - SALE COUNCIL HOUSES","OTHER CONSULTANTS","Q430","OTHER CONSULTANTS","HOUSING SERVICES","FINANCIAL SERVICES"
"http://statistics.data.gov.uk/id/local-authority/43UM","Woking Borough Council","31/07/2023","04/08/2023","0030004226/001","PUBLIC WORKS LOAN BOARD","00021400","276896.58","FINANCIAL SERVICES - INTEREST PAYABLE & SIMILAR CHG","PWLB ANNUITY","U111","PWLB ANNUITY","FINANCIAL SERVICES","FINANCIAL SERVICES"
"http://statistics.data.gov.uk/id/local-authority/43UM","Woking Borough Council","31/07/2023","04/08/2023","0030004227/001","PUBLIC WORKS LOAN BOARD","00021400","163630.57","FINANCIAL SERVICES - INTEREST PAYABLE & SIMILAR CHG","PWLB ANNUITY","U111","PWLB ANNUITY","FINANCIAL SERVICES","FINANCIAL SERVICES"
"http://statistics.data.gov.uk/id/local-authority/43UM","Woking Borough Council","31/07/2023","04/08/2023","0030004228/001","PUBLIC WORKS LOAN BOARD","00021400","122660.39","FINANCIAL SERVICES - INTEREST PAYABLE & SIMILAR CHG","PWLB ANNUITY","U111","PWLB ANNUITY","FINANCIAL SERVICES","FINANCIAL SERVICES"
"http://statistics.data.gov.uk/id/local-authority/43UM","Woking Borough Council","31/01/2023","04/08/2023","0030004229/001","BARCLAYS CAPITAL","00132800","117773.97","FINANCIAL SERVICES - INTEREST PAYABLE & SIMILAR CHG","L.O.B.O. LOAN","U113","L.O.B.O. LOAN","FINANCIAL SERVICES","FINANCIAL SERVICES"
"http://statistics.data.gov.uk/id/local-authority/43UM","Woking Borough Council","31/07/2023","04/08/2023","0030004230/001","BARCLAYS CAPITAL","00132800","117773.97","FINANCIAL SERVICES - INTEREST PAYABLE & SIMILAR CHG","L.O.B.O. LOAN","U113","L.O.B.O. LOAN","FINANCIAL SERVICES","FINANCIAL SERVICES"
"http://statistics.data.gov.uk/id/local-authority/43UM","Woking Borough Council","01/08/2023","04/08/2023","0030004231/001","PUBLIC WORKS LOAN BOARD","00021400","111000.00","FINANCIAL SERVICES - INTEREST PAYABLE & SIMILAR CHG","PWLB MATURITY LOAN","U112","PWLB MATURITY LOAN","FINANCIAL SERVICES","FINANCIAL SERVICES"
"http://statistics.data.gov.uk/id/local-authority/43UM","Woking Borough Council","01/08/2023","04/08/2023","0030004232/001","PUBLIC WORKS LOAN BOARD","00021400","110750.00","FINANCIAL SERVICES - INTEREST PAYABLE & SIMILAR CHG","PWLB MATURITY LOAN","U112","PWLB MATURITY LOAN","FINANCIAL SERVICES","FINANCIAL SERVICES"
"http://statistics.data.gov.uk/id/local-authority/43UM","Woking Borough Council","31/07/2023","04/08/2023","0030004234/002","WIGAN COUNCIL","41109200","94739.73","FINANCIAL SERVICES - INTEREST PAYABLE & SIMILAR CHG","TEMP LOANS","U115","TEMP LOANS","FINANCIAL SERVICES","FINANCIAL SERVICES"
"http://statistics.data.gov.uk/id/local-authority/43UM","Woking Borough Council","04/08/2023","04/08/2023","0030004235/001","PUBLIC WORKS LOAN BOARD","00021400","111500.00","FINANCIAL SERVICES - INTEREST PAYABLE & SIMILAR CHG","PWLB MATURITY LOAN","U112","PWLB MATURITY LOAN","FINANCIAL SERVICES","FINANCIAL SERVICES"
"http://statistics.data.gov.uk/id/local-authority/43UM","Woking Borough Council","11/07/2023","04/08/2023","0000492508/001","MARTIN & CO","40441800","3661.00","HOUSING SERVICES - HOUSING OPTIONS DEPOSITS","DEPOSITS","T720","DEPOSITS","HOUSING SERVICES","HOUSING MANAGEMENT"
"http://statistics.data.gov.uk/id/local-authority/43UM","Woking Borough Council","05/08/2023","05/08/2023","GPC/00024548","CLOUD NEXT","PROCUREMENT CARD","13.97","INFORMATION TECHNOLOGY - IT STAFF","OTHER COMPUTER CHARGES","G901","COMPUTERS/PERIPHERALS/SOFTWARE","ANDREW GRESHAM","COMPUTERS/PERIPHERALS/SOFTWARE"
"http://statistics.data.gov.uk/id/local-authority/43UM","Woking Borough Council","06/08/2023","06/08/2023","GPC/00024542","BOOKER LIMITED ECOM","PROCUREMENT CARD","6.99","INDEPENDENT LIVING SERVICES - MEALS SERVICE - BROCKHILL","PROVISIONS","G410","GROCERIES FOR HEC","REBECCA STEVENS","GROCERY STORES"
"http://statistics.data.gov.uk/id/local-authority/43UM","Woking Borough Council","06/08/2023","06/08/2023","GPC/00024542","BOOKER LIMITED ECOM","PROCUREMENT CARD","17.34","INDEPENDENT LIVING SERVICES - MEALS SERVICE - HALE END COURT","PROVISIONS","G410","GROCERIES FOR HEC","REBECCA STEVENS","GROCERY STORES"
"http://statistics.data.gov.uk/id/local-authority/43UM","Woking Borough Council","06/08/2023","06/08/2023","GPC/00024542","BOOKER LIMITED ECOM","PROCUREMENT CARD","95.83","INDEPENDENT LIVING SERVICES - MEALS SERVICE - HALE END COURT","PROVISIONS","G410","GROCERIES FOR HEC","REBECCA STEVENS","GROCERY STORES"
"http://statistics.data.gov.uk/id/local-authority/43UM","Woking Borough Council","06/08/2023","06/08/2023","GPC/00024543","BOOKER LIMITED ECOM","PROCUREMENT CARD","12.64","INDEPENDENT LIVING SERVICES - MEALS SERVICE -THE VYNE","PROVISIONS","G410","GROCERIES FOR THE VYNE","REBECCA STEVENS","GROCERY STORES"
"http://statistics.data.gov.uk/id/local-authority/43UM","Woking Borough Council","06/08/2023","06/08/2023","GPC/00024543","BOOKER LIMITED ECOM","PROCUREMENT CARD","38.96","INDEPENDENT LIVING SERVICES - MEALS SERVICE -THE VYNE","PROVISIONS","G410","GROCERIES FOR THE VYNE","REBECCA STEVENS","GROCERY STORES"
"http://statistics.data.gov.uk/id/local-authority/43UM","Woking Borough Council","06/08/2023","06/08/2023","GPC/00024547","BOOKER LIMITED ECOM","PROCUREMENT CARD","9.65","INDEPENDENT LIVING SERVICES - MEALS ON WHEELS","PROVISIONS","G410","GROCERIES FOR MOW","REBECCA STEVENS","GROCERY STORES"
"http://statistics.data.gov.uk/id/local-authority/43UM","Woking Borough Council","06/08/2023","06/08/2023","GPC/00024547","BOOKER LIMITED ECOM","PROCUREMENT CARD","15.65","INDEPENDENT LIVING SERVICES - MEALS SERVICE - BROCKHILL","PROVISIONS","G410","GROCERIES FOR MOW","REBECCA STEVENS","GROCERY STORES"
"http://statistics.data.gov.uk/id/local-authority/43UM","Woking Borough Council","06/08/2023","06/08/2023","GPC/00024547","BOOKER LIMITED ECOM","PROCUREMENT CARD","15.65","INDEPENDENT LIVING SERVICES - MEALS SERVICE -THE VYNE","PROVISIONS","G410","GROCERIES FOR MOW","REBECCA STEVENS","GROCERY STORES"
"http://statistics.data.gov.uk/id/local-authority/43UM","Woking Borough Council","06/08/2023","06/08/2023","GPC/00024547","BOOKER LIMITED ECOM","PROCUREMENT CARD","15.69","INDEPENDENT LIVING SERVICES - MEALS SERVICE - HALE END COURT","PROVISIONS","G410","GROCERIES FOR MOW","REBECCA STEVENS","GROCERY STORES"
"http://statistics.data.gov.uk/id/local-authority/43UM","Woking Borough Council","06/08/2023","06/08/2023","GPC/00024547","BOOKER LIMITED ECOM","PROCUREMENT CARD","126.28","INDEPENDENT LIVING SERVICES - MEALS ON WHEELS","PROVISIONS","G410","GROCERIES FOR MOW","REBECCA STEVENS","GROCERY STORES"
"http://statistics.data.gov.uk/id/local-authority/43UM","Woking Borough Council","07/08/2023","07/08/2023","GPC/00024545","FOREIGN EXCHANGE FEE","PROCUREMENT CARD","9.68","CORPORATE STRATEGY - PUBLIC RELATIONS","GENERAL PUBLIC RELATIONS EXPNS","H915","FOREIGN EXCHANGE FEE FOR QR TIGER SOFTWARE","MISS K MAIR","MERCHANT CATEGORY UNKNOWN"
"http://statistics.data.gov.uk/id/local-authority/43UM","Woking Borough Council","07/08/2023","07/08/2023","GPC/00024549","TRAVELODGE GB0000","PROCUREMENT CARD","393.28","HOUSING SERVICES - HOUSING OPTIONS","BED & BREAKFAST EXPENDITURE","H786","B&B TRAVELODGE","HEATHER WOODWARD","TRAVELODGE"
"http://statistics.data.gov.uk/id/local-authority/43UM","Woking Borough Council","07/08/2023","07/08/2023","GPC/00024550","EDF ENERGY-ECOM","PROCUREMENT CARD","120.36","CORPORATE STRATEGY - HOUSEHOLD SUPPORT FUND","HSF ENERGY/WATER CHILDREN","G255","EXT FUNDING - HSF ENERGY PAYMENT","HANNAH SCOTT","UTILITIES / ELEC/GAS/H20/SANI"
"http://statistics.data.gov.uk/id/local-authority/43UM","Woking Borough Council","07/08/2023","07/08/2023","GPC/00024551","ASDA GROCERIES ONLINE","PROCUREMENT CARD","4.65","INDEPENDENT LIVING SERVICES - MEALS SERVICE - BROCKHILL","PROVISIONS","G410","GROCERIES FOR KITCHENS","REBECCA STEVENS","GROCERY STORES"
"http://statistics.data.gov.uk/id/local-authority/43UM","Woking Borough Council","07/08/2023","07/08/2023","GPC/00024551","ASDA GROCERIES ONLINE","PROCUREMENT CARD","10.83","INDEPENDENT LIVING SERVICES - MEALS SERVICE -THE VYNE","PROVISIONS","G410","GROCERIES FOR KITCHENS","REBECCA STEVENS","GROCERY STORES"
"http://statistics.data.gov.uk/id/local-authority/43UM","Woking Borough Council","07/08/2023","07/08/2023","GPC/00024551","ASDA GROCERIES ONLINE","PROCUREMENT CARD","24.62","INDEPENDENT LIVING SERVICES - MEALS SERVICE - HALE END COURT","PROVISIONS","G410","GROCERIES FOR KITCHENS","REBECCA STEVENS","GROCERY STORES"
"http://statistics.data.gov.uk/id/local-authority/43UM","Woking Borough Council","07/08/2023","07/08/2023","GPC/00024551","ASDA GROCERIES ONLINE","PROCUREMENT CARD","35.74","INDEPENDENT LIVING SERVICES - MEALS ON WHEELS","PROVISIONS","G410","GROCERIES FOR KITCHENS","REBECCA STEVENS","GROCERY STORES"
"http://statistics.data.gov.uk/id/local-authority/43UM","Woking Borough Council","07/08/2023","07/08/2023","GPC/00024552","TRAVELODGE GB0000","PROCUREMENT CARD","286.63","HOUSING SERVICES - HOUSING OPTIONS","BED & BREAKFAST EXPENDITURE","H786","TRAVELODGE B&B","HEATHER WOODWARD","TRAVELODGE"
"http://statistics.data.gov.uk/id/local-authority/43UM","Woking Borough Council","07/08/2023","07/08/2023","GPC/00024553","ASDA GROCERIES ONLINE","PROCUREMENT CARD","-3.50","INDEPENDENT LIVING SERVICES - MEALS ON WHEELS","PROVISIONS","G410","MOW GROCERY REFUND","REBECCA STEVENS","GROCERY STORES"
"http://statistics.data.gov.uk/id/local-authority/43UM","Woking Borough Council","07/08/2023","07/08/2023","GPC/00024554","TRAVELODGE GB0000","PROCUREMENT CARD","281.63","HOUSING SERVICES - HOUSING OPTIONS","BED & BREAKFAST EXPENDITURE","H786","TRAVELODGE B&B","HEATHER WOODWARD","TRAVELODGE"
"http://statistics.data.gov.uk/id/local-authority/43UM","Woking Borough Council","07/08/2023","07/08/2023","GPC/00024555","GIBBS AND DANDY","PROCUREMENT CARD","1.90","HOUSING SERVICES - HOME IMPS & BEN AGENCY","HANDYPERSON MATERIALS","G201","EXTERNAL FUNDING HANDYPERSON MATERIALS","ROBERT ELDRIDGE","LUMBER/BUILD SUPPLY STORES"
"http://statistics.data.gov.uk/id/local-authority/43UM","Woking Borough Council","07/08/2023","07/08/2023","GPC/00024555","GIBBS AND DANDY","PROCUREMENT CARD","3.79","HOUSING SERVICES - HOME IMPS & BEN AGENCY","HANDYPERSON MATERIALS","G201","EXTERNAL FUNDING HANDYPERSON MATERIALS","ROBERT ELDRIDGE","LUMBER/BUILD SUPPLY STORES"
"http://statistics.data.gov.uk/id/local-authority/43UM","Woking Borough Council","07/08/2023","07/08/2023","GPC/00024555","GIBBS AND DANDY","PROCUREMENT CARD","4.34","HOUSING SERVICES - HOME IMPS & BEN AGENCY","HANDYPERSON MATERIALS","G201","EXTERNAL FUNDING HANDYPERSON MATERIALS","ROBERT ELDRIDGE","LUMBER/BUILD SUPPLY STORES"
"http://statistics.data.gov.uk/id/local-authority/43UM","Woking Borough Council","07/08/2023","07/08/2023","GPC/00024555","GIBBS AND DANDY","PROCUREMENT CARD","17.95","HOUSING SERVICES - HOME IMPS & BEN AGENCY","HANDYPERSON MATERIALS","G201","EXTERNAL FUNDING HANDYPERSON MATERIALS","ROBERT ELDRIDGE","LUMBER/BUILD SUPPLY STORES"
"http://statistics.data.gov.uk/id/local-authority/43UM","Woking Borough Council","07/08/2023","07/08/2023","GPC/00024555","GIBBS AND DANDY","PROCUREMENT CARD","20.04","HOUSING SERVICES - HOME IMPS & BEN AGENCY","HANDYPERSON MATERIALS","G201","EXTERNAL FUNDING HANDYPERSON MATERIALS","ROBERT ELDRIDGE","LUMBER/BUILD SUPPLY STORES"
"http://statistics.data.gov.uk/id/local-authority/43UM","Woking Borough Council","07/08/2023","07/08/2023","GPC/00024556","ASDA STORES 4823","PROCUREMENT CARD","17.65","FINANCIAL SERVICES - BROCKHILL SOCIAL FUND","MISCELLANEOUS EXPENSES","X827","EXTRA CAKES CREAM TEA","JULIE COWELL","GROCERY STORES"
"http://statistics.data.gov.uk/id/local-authority/43UM","Woking Borough Council","07/08/2023","07/08/2023","GPC/00024557","AMZNMKTPLACE","PROCUREMENT CARD","114.70","HOUSING SERVICES - HOMELESSNESS DIRECTRTE FUNDING","PERSONALISED BDGT. EXPENSES","H126","PANS FOR NEW CLIENTS AND BED BUG SPRAY","PHILIP OGLESBY","MISC SPECIALITY RETAIL"
"http://statistics.data.gov.uk/id/local-authority/43UM","Woking Borough Council","07/08/2023","07/08/2023","GPC/00024558","EDF ENERGY-ECOM","PROCUREMENT CARD","120.00","CORPORATE STRATEGY - HOUSEHOLD SUPPORT FUND","HSF ENERGY/WATER CHILDREN","G255","EXT FUNDING - HSF ENERGY PAYMENT","HANNAH SCOTT","UTILITIES / ELEC/GAS/H20/SANI"
"http://statistics.data.gov.uk/id/local-authority/43UM","Woking Borough Council","07/08/2023","07/08/2023","GPC/00024559","TRAVELODGE GB0000","PROCUREMENT CARD","281.63","HOUSING SERVICES - HOUSING OPTIONS","BED & BREAKFAST EXPENDITURE","H786","TRAVELODGE B&B","HEATHER WOODWARD","TRAVELODGE"
"http://statistics.data.gov.uk/id/local-authority/43UM","Woking Borough Council","07/08/2023","07/08/2023","GPC/00024560","TRAVELODGE GB0000","PROCUREMENT CARD","281.63","HOUSING SERVICES - HOUSING OPTIONS","BED & BREAKFAST EXPENDITURE","H786","TRAVELODGE B&B","HEATHER WOODWARD","TRAVELODGE"
"http://statistics.data.gov.uk/id/local-authority/43UM","Woking Borough Council","07/08/2023","07/08/2023","GPC/00024561","ASDA GROCERIES ONLINE","PROCUREMENT CARD","-0.27","INDEPENDENT LIVING SERVICES - MEALS ON WHEELS","PROVISIONS","G410","REFUND FOR KITCHEN GROCERIES","REBECCA STEVENS","GROCERY STORES"
"http://statistics.data.gov.uk/id/local-authority/43UM","Woking Borough Council","07/08/2023","07/08/2023","GPC/00024562","TRAVELODGE GB0000","PROCUREMENT CARD","281.63","HOUSING SERVICES - HOUSING OPTIONS","BED & BREAKFAST EXPENDITURE","H786","TRAVELODGE B&B","HEATHER WOODWARD","TRAVELODGE"
"http://statistics.data.gov.uk/id/local-authority/43UM","Woking Borough Council","07/08/2023","07/08/2023","GPC/00024563","TRAVELODGE GB0000","PROCUREMENT CARD","108.32","HOUSING SERVICES - HOUSING OPTIONS","BED & BREAKFAST EXPENDITURE","H786","TRAVELODGE B&B","HEATHER WOODWARD","TRAVELODGE"
"http://statistics.data.gov.uk/id/local-authority/43UM","Woking Borough Council","07/08/2023","07/08/2023","GPC/00024564","WILKO RETAIL LIMITED","PROCUREMENT CARD","1.08","HOUSING SERVICES - AFGHAN REFUGEE","PROVISIONS","Q519","SUPPLIES FOR AFGHAN RESETTLEMENT FAMILY","FATIMA GHAZAL TABREZ","MISC GEN MERCHANDISE - DEF"
"http://statistics.data.gov.uk/id/local-authority/43UM","Woking Borough Council","07/08/2023","07/08/2023","GPC/00024565","NTS COLLEGE SERVICE STATI","PROCUREMENT CARD","26.43","INDEPENDENT LIVING SERVICES - MEALS ON WHEELS","PETROL","F200","PETROL FOR MOW","REBECCA STEVENS","SERVICE STATIONS"
"http://statistics.data.gov.uk/id/local-authority/43UM","Woking Borough Council","07/08/2023","07/08/2023","GPC/00024566","SCHOOL UNIFORM DIRECT - W","PROCUREMENT CARD","94.12","HOUSING SERVICES - AFGHAN REFUGEE","SCHOOL EDUCATION","Q588","SCHOOL UNIFORM FOR AFGHAN RESETTLEMENT FAMILY","FATIMA GHAZAL TABREZ","UNIFORMS AND COMMERCIAL CLOTHING"
"http://statistics.data.gov.uk/id/local-authority/43UM","Woking Borough Council","07/08/2023","07/08/2023","GPC/00024567","TRAVELODGE GB0000","PROCUREMENT CARD","272.47","HOUSING SERVICES - HOUSING OPTIONS","BED & BREAKFAST EXPENDITURE","H786","TRAVELODGE B&B","HEATHER WOODWARD","TRAVELODGE"
"http://statistics.data.gov.uk/id/local-authority/43UM","Woking Borough Council","07/08/2023","07/08/2023","GPC/00024568","TRAVELODGE GB0000","PROCUREMENT CARD","385.80","HOUSING SERVICES - HOUSING OPTIONS","BED & BREAKFAST EXPENDITURE","H786","TRAVELODGE B&B","HEATHER WOODWARD","TRAVELODGE"
"http://statistics.data.gov.uk/id/local-authority/43UM","Woking Borough Council","07/08/2023","07/08/2023","GPC/00024569","TRAVELODGE GB0000","PROCUREMENT CARD","375.77","HOUSING SERVICES - HOUSING OPTIONS","BED & BREAKFAST EXPENDITURE","H786","TRAVELODGE B&B","HEATHER WOODWARD","TRAVELODGE"
"http://statistics.data.gov.uk/id/local-authority/43UM","Woking Borough Council","07/08/2023","07/08/2023","GPC/00024589","ASHFORD/ST PETERS HOSP","PROCUREMENT CARD","28.75","HOUSING SERVICES - HOME IMPS & BEN AGENCY","PARKING COSTS","F510","EXTERNAL FUNDING FOR PARKING CGDAAF510","DOMINIQUE RAYMOND","GOV'T SERV - DEFAULT"
"http://statistics.data.gov.uk/id/local-authority/43UM","Woking Borough Council","08/08/2023","08/08/2023","GPC/00024571","ASDA STORES 4823","PROCUREMENT CARD","17.66","INDEPENDENT LIVING SERVICES - MEALS ON WHEELS","PROVISIONS","G410","GROCERIES FOR MOW'S","FAYE MCCOMBE","GROCERY STORES"
"http://statistics.data.gov.uk/id/local-authority/43UM","Woking Borough Council","08/08/2023","08/08/2023","GPC/00024572","TRAVELODGE GB0000","PROCUREMENT CARD","349.96","HOUSING SERVICES - HOUSING OPTIONS","BED & BREAKFAST EXPENDITURE","H786","TRAVELODGE B&B","HEATHER WOODWARD","TRAVELODGE"
"http://statistics.data.gov.uk/id/local-authority/43UM","Woking Borough Council","08/08/2023","08/08/2023","GPC/00024573","FIND A WILL","PROCUREMENT CARD","1.25","REVENUES AND BENEFITS - COUNCIL TAX","LEGAL FEES","H677","WILL ORDER TO VALIDATE COUNCIL TAX LIABILITY.","MR T STOCKS","PROFESSIONAL SERVICES - DEF"
"http://statistics.data.gov.uk/id/local-authority/43UM","Woking Borough Council","08/08/2023","08/08/2023","GPC/00024574","CO-OP GROUP 500987","PROCUREMENT CARD","19.85","FINANCIAL SERVICES - BROCKHILL SOCIAL FUND","MISCELLANEOUS EXPENSES","X827","EXTRA CAKES","JULIE COWELL","GROCERY STORES"
"http://statistics.data.gov.uk/id/local-authority/43UM","Woking Borough Council","08/08/2023","08/08/2023","GPC/00024575","ASDA PETROL 4823","PROCUREMENT CARD","20.74","INDEPENDENT LIVING SERVICES - MEALS ON WHEELS","PETROL","F200","FUEL FOR MOW'S","FAYE MCCOMBE","SERVICE STATIONS"
"http://statistics.data.gov.uk/id/local-authority/43UM","Woking Borough Council","08/08/2023","08/08/2023","GPC/00024576","MAILCHIMP","PROCUREMENT CARD","106.74","CORPORATE STRATEGY - PUBLIC RELATIONS","GENERAL PUBLIC RELATIONS EXPNS","H915","MONTHLY SUBSCRIPTION COSTS FOR ENEWSLETTERS","MISS K MAIR","DIGITAL GOODS-MULTI-CATEGORY"
"http://statistics.data.gov.uk/id/local-authority/43UM","Woking Borough Council","08/08/2023","08/08/2023","GPC/00024577","RAPTOR SUPPLIES LTD","PROCUREMENT CARD","93.60","NEIGHBOURHOOD SERVICES - TOWN CTR MANAGEMENT","R&M BUILDINGS - CONTRACTORS","D100","SPARES FOR PUBLIC WATER FOUNTAIN IN TOWN CENTRE","GEORGE CHISENGA","MISC GEN MERCHANDISE - DEF"
"http://statistics.data.gov.uk/id/local-authority/43UM","Woking Borough Council","08/08/2023","08/08/2023","GPC/00024578","ASDA PETROL 4823","PROCUREMENT CARD","11.90","INDEPENDENT LIVING SERVICES - MEALS ON WHEELS","PETROL","F200","FUEL FOR MOW'S CARS","FAYE MCCOMBE","SERVICE STATIONS"
"http://statistics.data.gov.uk/id/local-authority/43UM","Woking Borough Council","08/08/2023","08/08/2023","GPC/00024579","ASDA PETROL 4823","PROCUREMENT CARD","46.22","INDEPENDENT LIVING SERVICES - MEALS ON WHEELS","PETROL","F200","FUEL FOR MOW'S CARS","FAYE MCCOMBE","SERVICE STATIONS"
"http://statistics.data.gov.uk/id/local-authority/43UM","Woking Borough Council","08/08/2023","08/08/2023","GPC/00024580","GOOGLE GOOGLE PLAY APPS","PROCUREMENT CARD","10.82","HOUSING SERVICES - PRIVATE SECTOR HOUSING","EQUIPMENT","G100","NEW INSPECTION APP FOR VOIDS","CLARE HADLEY","DIGITAL GOODS-GAMES"
